Workbook

Sheet Read Me

Sheet EXAMPLE, Normal
A1: Notes | B1: Load (Stress) | D1: Coefficient of Variation, δ = σ/μ | E1: Safety Factor, SF = μc / μL | S1: x | T1: Normal Strength | U1: x | V1: Lognormal Strength | W1: x | X1: Exponential Strength | Y1: x | Z1: Uniform Strength | AA1: x | AB1: Gumbel Strength | AC1: y | AD1: Normal Stress | AE1: y | AF1: Lognormal Stress | AG1: y | AH1: Exponential Stress | AI1: y | AJ1: Uniform Stress | AK1: y | AL1: Gumbel | AM1: y | AN1: Constant | AO1: y | AP1: =C6&" Strength" -> Normal Strength | AQ1: y | AR1: =C2&" Stress" -> Normal Stress | AT1: Strength | AU1: Stress
A2: Inputs are yellow | B2: Select Distribution: | C2: Normal | S2: =_xlfn.NORM.INV(0.001,$C$7,$C$8) -> 1075.781732 | T2: =NORMDIST(S2,$C$7,$C$8,0) -> 2.162688726e-05 | U2: =_xlfn.LOGNORM.INV(0.001,U104,U106) -> 0.001067811501 | V2: =EXP(-1*(LN(U2)-$U$104)^2/(2*$U$106^2))/(SQRT(2*PI())*($U$106*U2)) -> 1.027494502 | W2: =-LN(1-0.001)/C7 -> 6.426233757e-07 | X2: =$C$7*EXP(-W2*$C$7) -> 1555.3431 | Y2: =C7 -> 1556.9 | Z2: =1/($C$8-$C$7) -> -0.0007136689005 | AA2: =$AA$106*LN(-1*LN(1-0.001))+$AA$104 -> 1495.316761 | AB2: =EXP((AA2-$AA$104)/$AA$106)*EXP(-EXP((AA2-$AA$104)/$AA$106))/$AA$106 -> 0.0001027369372 | AC2: =_xlfn.NORM.INV(0.001,$C$3,$C$4) -> 536.4651541 | AD2: =NORMDIST(AC2,$C$3,$C$4,0) -> 2.244726718e-05 | AE2: =_xlfn.LOGNORM.INV(0.001,AE104,AE106) -> 0.0007882587454 | AF2: =EXP(-1*(LN(AE2)-$AE$104)^2/(2*$AE$106^2))/(SQRT(2*PI())*($AE$106*AE2)) -> 1.402233701 | AG2: =-LN(1-0.001)/C3 -> 1.000500334e-06 | AH2: =$C$3*EXP(-AG2*$C$3) -> 999 | AI2: =C3 -> 1000 | AJ2: =1/($C$4-$C$3) -> -0.001176470588 | AK2: =$AK$106*LN(-1*LN(1-0.001))+$AK$104 -> 939.5525763 | AL2: =EXP((AK2-$AK$104)/$AK$106)*EXP(-EXP((AK2-$AK$104)/$AK$106))/$AK$106 -> 0.0001046673778 | AM2: =$C$3 -> 1000 | AN2: 0 | AO2: =OFFSET($R$2,ROW(AO2)-2,2*$AT$7-1) -> 1075.781732 | AP2: =OFFSET($R$2,ROW(AO2)-2,2*$AT$7) -> 2.162688726e-05 | AQ2: =OFFSET($AB$2,ROW(AQ2)-2,2*$AU$8-1) -> 536.4651541 | AR2: =OFFSET($AB$2,ROW(AQ2)-2,2*$AU$8) -> 2.244726718e-05 | AT2: Normal | AU2: Normal
A3: Results are green | B3: =IF(C2="Uniform", "Enter Min:","Enter Mean:") -> Enter Mean: | C3: 1000 | D3: =C4/C3 -> 0.15 | E3: =C7/C3 -> 1.5569 | S3: =($S$101-$S$2)/100+S2 -> 1085.404098 | T3: 2.612827674e-05 | U3: =($U$101-$U$2)/100+U2 -> 1844.239605 | V3: 1.99249e-05 | W3: =($W$101-$W$2)/100+W2 -> 4.500484817e-05 | X3: 1451.54516 | Y3: =($Y$101-$Y$2)/100+Y2 -> 1542.8879 | Z3: -0.0007136689005 | AA3: =($AA$101-$AA$2)/100+AA2 -> 1496.176771 | AB3: 0.0001122219089 | AC3: =($AC$101-$AC$2)/100+AC2 -> 545.735851 | AD3: 2.711940937e-05 | AE3: =($AE$101-$AE$2)/100+AE2 -> 1183.683401 | AF3: 3.183198911e-05 | AG3: =($AG$101-$AG$2)/100+AG2 -> 7.006804812e-05 | AH3: 932.3303744 | AI3: =($AI$101-$AI$2)/100+AI2 -> 991.5 | AJ3: -0.001176470588 | AK3: =($AK$101-$AK$2)/100+AK2 -> 940.3967245 | AL3: =EXP((AK3-$AK$104)/$AK$106)*EXP(-EXP((AK3-$AK$104)/$AK$106))/$AK$106 -> 0.0001143305734 | AM3: 1000 | AN3: =MAX(AP:AP) -> 0.002562414287 | AO3: 1085.404098 | AP3: 2.612827674e-05 | AQ3: =OFFSET($AB$2,ROW(AQ3)-2,2*$AU$8-1) -> 545.735851 | AR3: =OFFSET($AB$2,ROW(AQ3)-2,2*$AU$8) -> 2.711940937e-05 | AT3: Lognormal | AU3: Lognormal
A4: Replications | B4: =IF(C2="Lognormal","Enter Error Factor:",IF(C2="Normal","Enter Standard Deviation:",IF(C2="Gumbel","Enter Variance:",IF(C2="Uniform","Enter Max:","")))) -> Enter Standard Deviation: | C4: 150 | S4: =($S$101-$S$2)/100+S3 -> 1095.026463 | T4: 3.144623055e-05 | U4: =($U$101-$U$2)/100+U3 -> 3688.478142 | V4: 6.78203775e-06 | W4: =($W$101-$W$2)/100+W3 -> 8.936707297e-05 | X4: 1354.674317 | Y4: =($Y$101-$Y$2)/100+Y3 -> 1528.8758 | Z4: -0.0007136689005 | AA4: =($AA$101-$AA$2)/100+AA3 -> 1497.036781 | AB4: 0.0001225815132 | AC4: 555.0065479 | AD4: 3.26390909e-05 | AE4: =($AE$101-$AE$2)/100+AE3 -> 2367.366014 | AF4: 1.082943644e-05 | AG4: =($AG$101-$AG$2)/100+AG3 -> 0.0001391355959 | AH4: 870.1100371 | AI4: =($AI$101-$AI$2)/100+AI3 -> 983 | AJ4: -0.001176470588 | AK4: =($AK$101-$AK$2)/100+AK3 -> 941.2408728 | AL4: 0.000124884836 | AM4: 1000 | AN4: =MAX(AP:AP) -> 0.002562414287 | AO4: 1095.026463 | AP4: 3.144623055e-05 | AQ4: 555.0065479 | AR4: 3.26390909e-05 | AT4: Exponential | AU4: Exponential
A5: 100000 | B5: Capacity (Strength) | E5: Safety Index, β = f(SF,δ) | S5: 1104.648828 | T5: 3.770226978e-05 | U5: 5532.716679 | V5: 3.526193946e-06 | W5: 0.0001337292978 | X5: 1264.268281 | Y5: 1514.8637 | Z5: -0.0007136689005 | AA5: 1497.896791 | AB5: 0.0001338961993 | AC5: 564.2772448 | AD5: 3.913244255e-05 | AE5: 3551.048627 | AF5: 5.626894859e-06 | AG5: 0.0002082031437 | AH5: 812.0420587 | AI5: 974.5 | AJ5: -0.001176470588 | AK5: 942.085021 | AL5: 0.0001364121265 | AM5: 1000 | AN5: 0.002562414287 | AO5: 1104.648828 | AP5: 3.770226978e-05 | AQ5: 564.2772448 | AR5: 3.913244255e-05 | AT5: Uniform | AU5: Uniform
A6: Seed Value | B6: Select Distribution: | C6: Normal | S6: 1114.271194 | T6: 4.503057319e-05 | U6: 7376.955216 | V6: 2.193658687e-06 | W6: 0.0001780915226 | X6: 1179.895616 | Y6: 1500.8516 | Z6: -0.0007136689005 | AA6: 1498.756801 | AB6: 0.0001462537773 | AC6: 573.5479417 | AD6: 4.673873293e-05 | AE6: 4734.731239 | AF6: 3.498341915e-06 | AG6: 0.0002772706915 | AH6: 757.849326 | AI6: 966 | AJ6: -0.001176470588 | AK6: 942.9291693 | AL6: 0.0001490019051 | AM6: 1000 | AN6: 0.002562414287 | AO6: 1114.271194 | AP6: 4.503057319e-05 | AQ6: 573.5479417 | AR6: 4.673873293e-05 | AT6: Gumbel | AU6: Gumbel
A7: 5 | B7: =IF(C6<>"Uniform","Enter Mean:","Enter Minimum Value") -> Enter Mean: | C7: 1556.9 | D7: =C8/C7 -> 0.1 | E7: =(E3-1)/((D7^2)*(E3^2)+(D3^2))^0.5 -> 2.575940115 | S7: 1123.893559 | T7: 5.357825059e-05 | U7: 9221.193752 | V7: 1.508858502e-06 | W7: 0.0002224537474 | X7: 1101.153675 | Y7: 1486.8395 | Z7: -0.0007136689005 | AA7: 1499.616811 | AB7: 0.0001597500837 | AC7: 582.8186387 | AD7: 5.561065223e-05 | AE7: 5918.413852 | AF7: 2.404880717e-06 | AG7: 0.0003463382393 | AH7: 707.2732191 | AI7: 957.5 | AJ7: -0.001176470588 | AK7: 943.7733175 | AL7: 0.0001627518089 | AM7: 1000 | AN7: 0.002562414287 | AO7: 1123.893559 | AP7: 5.357825059e-05 | AQ7: 582.8186387 | AR7: 5.561065223e-05 | AT7: =MATCH(C6,AT2:AT6,0) -> 1 | AU7: Constant
B8: =IF(C6="Lognormal","Enter Error Factor:",IF(C6="Normal","Enter Standard Deviation:",IF(C6="Uniform","Enter Maximum Value",IF(C6="Gumbel","Enter Variance","")))) -> Enter Standard Deviation: | C8: 155.69 | S8: 1133.515924 | T8: 6.350540045e-05 | U8: 11065.43229 | V8: 1.107019086e-06 | W8: 0.0002668159722 | X8: 1027.666685 | Y8: 1472.8274 | Z8: -0.0007136689005 | AA8: 1500.476821 | AB8: 0.0001744897062 | AC8: 592.0893356 | AD8: 6.591437197e-05 | AE8: 7102.096465 | AF8: 1.763485688e-06 | AG8: 0.0004154057871 | AH8: 660.0723775 | AI8: 949 | AJ8: -0.001176470588 | AK8: 944.6174658 | AL8: 0.0001777683908 | AM8: 1000 | AN8: 0.002562414287 | AO8: 1133.515924 | AP8: 6.350540045e-05 | AQ8: 592.0893356 | AR8: 6.591437197e-05 | AU8: =MATCH(C2,AU2:AU7,0) -> 1
B9: Results | S9: 1143.13829 | T9: 7.498490825e-05 | U9: 12909.67083 | V9: 8.496629337e-07 | W9: 0.000311178197 | X9: 959.0839488 | Y9: 1458.8153 | Z9: -0.0007136689005 | AA9: 1501.336831 | AB9: 0.0001905867716 | AC9: 601.3600325 | AD9: 7.782933577e-05 | AE9: 8285.779078 | AF9: 1.352859603e-06 | AG9: 0.0004844733348 | AH9: 616.0215484 | AI9: 940.5 | AJ9: -0.001176470588 | AK9: 945.461614 | AL9: 0.0001941679223 | AM9: 1000 | AN9: 0.002562414287 | AO9: 1143.13829 | AP9: 7.498490825e-05 | AQ9: 601.3600325 | AR9: 7.782933577e-05
A10: Do not insert or delete any rows or columns. There are formulas on the right that would be corrupted. | B10: Mean Failure Probability | C10: 0.005001486003 | S10: 1152.760655 | T10: 8.820194165e-05 | U10: 14753.90936 | V10: 6.742527889e-07 | W10: 0.0003555404218 | X10: 895.0781752 | Y10: 1444.8032 | Z10: -0.0007136689005 | AA10: 1502.19684 | AB10: 0.0002081658036 | AC10: 610.6307294 | AD10: 9.15477353e-05 | AE10: 9469.46169 | AF10: 1.073082259e-06 | AG10: 0.0005535408826 | AH10: 574.9105114 | AI10: 932 | AJ10: -0.001176470588 | AK10: 946.3057623 | AL10: 0.0002120772666 | AM10: 1000 | AN10: 0.002562414287 | AO10: 1152.760655 | AP10: 8.820194165e-05 | AQ10: 610.6307294 | AR10: 9.15477353e-05
B11: 90% Half-Width About Mean, +/- | C11: 0.0001069459778 | E11: Closed Form for Normal Dist. | S11: 1162.38302 | T11: 0.0001033530988 | U11: 16598.1479 | V11: 5.489845083e-07 | W11: 0.0003999026465 | X11: 835.3439141 | Y11: 1430.7911 | Z11: -0.0007136689005 | AA11: 1503.05685 | AB11: 0.0002273626539 | AC11: 619.9014263 | AD11: 0.0001072736264 | AE11: 10653.1443 | AF11: 8.733482834e-07 | AG11: 0.0006226084304 | AH11: 536.5430754 | AI11: 923.5 | AJ11: -0.001176470588 | AK11: 947.1499105 | AL11: 0.0002316348282 | AM11: 1000 | AN11: 0.002562414287 | AO11: 1162.38302 | AP11: 0.0001033530988 | AQ11: 619.9014263 | AR11: 0.0001072736264
B12: Variance | C12: 0.0004227331941 | S12: 1172.005386 | T12: 0.0001206451688 | U12: 18442.38644 | V12: 4.562153008e-07 | W12: 0.0004442648713 | X12: 779.5961003 | Y12: 1416.779 | Z12: -0.0007136689005 | AA12: 1503.91686 | AB12: 0.0002483255146 | AC12: 629.1721233 | AD12: 0.0001252216422 | AE12: 11836.82692 | AF12: 7.254801756e-07 | AG12: 0.0006916759782 | AH12: 500.7361426 | AI12: 915 | AJ12: -0.001176470588 | AK12: 947.9940588 | AL12: 0.0002529915838 | AM12: 1000 | AN12: 0.002562414287 | AO12: 1172.005386 | AP12: 0.0001206451688 | AQ12: 629.1721233 | AR12: 0.0001252216422
B13: Mean Success Probability | C13: 0.994998514 | E13: =_xlfn.NORM.S.DIST(E7,TRUE) -> 0.9950016021 | S13: 1181.627751 | T13: 0.0001402934657 | U13: 20286.62497 | V13: 3.854846143e-07 | W13: 0.0004886270961 | X13: 727.5686928 | Y13: 1402.7669 | Z13: -0.0007136689005 | AA13: 1504.77687 | AB13: 0.0002712160172 | AC13: 638.4428202 | AD13: 0.0001456152645 | AE13: 13020.50953 | AF13: 6.127747638e-07 | AG13: 0.000760743526 | AH13: 467.3188341 | AI13: 906.5 | AJ13: -0.001176470588 | AK13: 948.838207 | AL13: 0.000276312202 | AM13: 1000 | AN13: 0.002562414287 | AO13: 1181.627751 | AP13: 0.0001402934657 | AQ13: 638.4428202 | AR13: 0.0001456152645
B14: Run Time (Minutes) | C14: 0.03177083333 | S14: 1191.250117 | T14: 0.000162519706 | U14: 22130.86351 | V14: 3.302546019e-07 | W14: 0.0005329893209 | X14: 679.0134052 | Y14: 1388.7548 | Z14: -0.0007136689005 | AA14: 1505.63688 | AB14: 0.0002962104254 | AC14: 647.7135171 | AD14: 0.0001686846202 | AE14: 14204.19214 | AF14: 5.247947229e-07 | AG14: 0.0008298110738 | AH14: 436.1316753 | AI14: 898 | AJ14: -0.001176470588 | AK14: 949.6823553 | AL14: 0.0003017762584 | AM14: 1000 | AN14: 0.002562414287 | AO14: 1191.250117 | AP14: 0.000162519706 | AQ14: 647.7135171 | AR14: 0.0001686846202
S15: 1200.872482 | T15: 0.0001875494038 | U15: 23975.10205 | V15: 2.862602528e-07 | W15: 0.0005773515457 | X15: 633.6985208 | Y15: 1374.7427 | Z15: -0.0007136689005 | AA15: 1506.49689 | AB15: 0.0003235009281 | AC15: 656.984214 | AD15: 0.0001946637779 | AE15: 15387.87475 | AF15: 4.547325737e-07 | AG15: 0.0008988786216 | AH15: 407.0258339 | AI15: 889.5 | AJ15: -0.001176470588 | AK15: 950.5265035 | AL15: 0.0003295795533 | AM15: 1000 | AN15: 0.002562414287 | AO15: 1200.872482 | AP15: 0.0001875494038 | AQ15: 656.984214 | AR15: 0.0001946637779
S16: 1210.494847 | T16: 0.0002156087708 | U16: 25819.34058 | V16: 2.506186049e-07 | W16: 0.0006217137705 | X16: 591.407787 | Y16: 1360.7306 | Z16: -0.0007136689005 | AA16: 1507.3569 | AB16: 0.0003532970412 | AC16: 666.2549109 | AD16: 0.0002237875302 | AE16: 16571.55737 | AF16: 3.979876723e-07 | AG16: 0.0009679461693 | AH16: 379.8624105 | AI16: 881 | AJ16: -0.001176470588 | AK16: 951.3706518 | AL16: 0.0003599355393 | AM16: 1000 | AN16: 0.002562414287 | AO16: 1210.494847 | AP16: 0.0002156087708 | AQ16: 666.2549109 | AR16: 0.0002237875302
S17: 1220.117213 | T17: 0.0002469211182 | U17: 27663.57912 | V17: 2.213216049e-07 | W17: 0.0006660759953 | X17: 551.9393828 | Y17: 1346.7185 | Z17: -0.0007136689005 | AA17: 1508.21691 | AB17: 0.0003858271252 | AC17: 675.5256079 | AD17: 0.0002562876593 | AE17: 17755.23998 | AF17: 3.513561812e-07 | AG17: 0.001037013717 | AH17: 354.5117752 | AI17: 872.5 | AJ17: -0.001176470588 | AK17: 952.2148 | AL17: 0.0003930768679 | AM17: 1000 | AN17: 0.002562414287 | AO17: 1220.117213 | AP17: 0.0002469211182 | AQ17: 675.5256079 | AR17: 0.0002562876593
S18: 1229.739578 | T18: 0.000281702773 | U18: 29507.81766 | V18: 1.969342757e-07 | W18: 0.0007104382201 | X18: 515.1049564 | Y18: 1332.7064 | Z18: -0.0007136689005 | AA18: 1509.07692 | AB18: 0.0004213400268 | AC18: 684.7963048 | AD18: 0.0002923886982 | AE18: 18938.92259 | AF18: 3.125490369e-07 | AG18: 0.001106081265 | AH18: 330.8529491 | AI18: 864 | AJ18: -0.001176470588 | AK18: 953.0589483 | AL18: 0.0004292570616 | AM18: 1000 | AN18: 0.002562414287 | AO18: 1229.739578 | AP18: 0.000281702773 | AQ18: 684.7963048 | AR18: 0.0002923886982
S19: 1239.361943 | T19: 0.0003201585357 | U19: 31352.0562 | V19: 1.764081638e-07 | W19: 0.0007548004449 | X19: 480.7287256 | Y19: 1318.6943 | Z19: -0.0007136689005 | AA19: 1509.93693 | AB19: 0.0004601068535 | AC19: 694.0670017 | AD19: 0.0003323032162 | AE19: 20122.60521 | AF19: 2.798940655e-07 | AG19: 0.001175148813 | AH19: 308.7730269 | AI19: 855.5 | AJ19: -0.001176470588 | AK19: 953.9030965 | AL19: 0.000468752322 | AM19: 1000 | AN19: 0.002562414287 | AO19: 1239.361943 | AP19: 0.0003201585357 | AQ19: 694.0670017 | AR19: 0.0003323032162
S20: 1248.984309 | T20: 0.0003624767236 | U20: 33196.29473 | V20: 1.589622267e-07 | W20: 0.0007991626697 | X20: 448.6466394 | Y20: 1304.6822 | Z20: -0.0007136689005 | AA20: 1510.79694 | AB20: 0.0005024228889 | AC20: 703.3376986 | AD20: 0.000376226674 | AE20: 21306.28782 | AF20: 2.521458098e-07 | AG20: 0.00124421636 | AH20: 288.1666384 | AI20: 847 | AJ20: -0.001176470588 | AK20: 954.7472448 | AL20: 0.0005118634814 | AM20: 1000 | AN20: 0.002562414287 | AO20: 1248.984309 | AP20: 0.0003624767236 | AQ20: 703.3376986 | AR20: 0.000376226674
S21: 1258.606674 | T21: 0.0004088238634 | U21: 35040.53327 | V21: 1.440045942e-07 | W21: 0.0008435248945 | X21: 418.7055949 | Y21: 1290.6701 | Z21: -0.0007136689005 | AA21: 1511.656949 | AB21: 0.0005486096588 | AC21: 712.6083955 | AD21: 0.0004243319152 | AE21: 22489.97043 | AF21: 2.28360635e-07 | AG21: 0.001313283908 | AH21: 268.9354454 | AI21: 838.5 | AJ21: -0.001176470588 | AK21: 955.591393 | AL21: 0.0005589181068 | AM21: 1000 | AN21: 0.002562414287 | AO21: 1258.606674 | AP21: 0.0004088238634 | AQ21: 712.6083955 | AR21: 0.0004243319152
S22: 1268.229039 | T22: 0.0004593391136 | U22: 36884.77181 | V22: 1.310798836e-07 | W22: 0.0008878871193 | X22: 390.7627067 | Y22: 1276.658 | Z22: -0.0007136689005 | AA22: 1512.516959 | AB22: 0.0005990171548 | AC22: 721.8790924 | AD22: 0.0004767633774 | AE22: 23673.65304 | AF22: 2.078126369e-07 | AG22: 0.001382351456 | AH22: 250.9876721 | AI22: 830 | AJ22: -0.001176470588 | AK22: 956.4355413 | AL22: 0.0006102727663 | AM22: 1000 | AN22: 0.002562414287 | AO22: 1268.229039 | AP22: 0.0004593391136 | AQ22: 721.8790924 | AR22: 0.0004767633774
S23: 1277.851405 | T23: 0.0005141285175 | U23: 38729.01034 | V23: 1.198329306e-07 | W23: 0.0009322493441 | X23: 364.6846253 | Y23: 1262.6459 | Z23: -0.0007136689005 | AA23: 1513.376969 | AB23: 0.000654026226 | AC23: 731.1497894 | AD23: 0.000533631126 | AE23: 24857.33566 | AF23: 1.899357592e-07 | AG23: 0.001451419004 | AH23: 234.237668 | AI23: 821.5 | AJ23: -0.001176470588 | AK23: 957.2796895 | AL23: 0.0006663154653 | AM23: 1000 | AN23: 0.002562414287 | AO23: 1277.851405 | AP23: 0.0005141285175 | AQ23: 731.1497894 | AR23: 0.000533631126
S24: 1287.47377 | T24: 0.0005732592028 | U24: 40573.24888 | V24: 1.099833241e-07 | W24: 0.0009766115689 | X24: 340.3469002 | Y24: 1248.6338 | Z24: -0.0007136689005 | AA24: 1514.236979 | AB24: 0.000714051146 | AC24: 740.4204863 | AD24: 0.0005950048352 | AE24: 26041.01827 | AF24: 1.7428316e-07 | AG24: 0.001520486552 | AH24: 218.6054982 | AI24: 813 | AJ24: -0.001176470588 | AK24: 958.1238378 | AL24: 0.0007274682614 | AM24: 1000 | AN24: 0.002562414287 | AO24: 1287.47377 | AP24: 0.0005732592028 | AQ24: 740.4204863 | AR24: 0.0005950048352
S25: 1297.096135 | T25: 0.000636753664 | U25: 42417.48742 | V25: 1.013072087e-07 | W25: 0.001020973794 | X25: 317.6333862 | Y25: 1234.6217 | Z25: -0.0007136689005 | AA25: 1515.096989 | AB25: 0.0007795423621 | AC25: 749.6911832 | AD25: 0.000660907853 | AE25: 27224.70088 | AF25: 1.604981772e-07 | AG25: 0.001589554099 | AH25: 204.0165626 | AI25: 804.5 | AJ25: -0.001176470588 | AK25: 958.967986 | AL25: 0.0007941900661 | AM25: 1000 | AN25: 0.002562414287 | AO25: 1297.096135 | AP25: 0.000636753664 | AQ25: 749.6911832 | AR25: 0.000660907853
S26: 1306.718501 | T26: 0.000704584274 | U26: 44261.72595 | V26: 9.362407031e-08 | W26: 0.001065336019 | X26: 296.4356896 | Y26: 1220.6096 | Z26: -0.0007136689005 | AA26: 1515.956999 | AB26: 0.0008509894354 | AC26: 758.9618801 | AD26: 0.0007313115041 | AE26: 28408.38349 | AF26: 1.482932478e-07 | AG26: 0.001658621647 | AH26: 190.4012394 | AI26: 796 | AJ26: -0.001176470588 | AK26: 959.8121343 | AL26: 0.0008669796393 | AM26: 1000 | AN26: 0.002562414287 | AO26: 1306.718501 | AP26: 0.000704584274 | AQ26: 758.9618801 | AR26: 0.0007313115041
S27: 1316.340866 | T27: 0.0007766681834 | U27: 46105.96449 | V27: 8.678700045e-08 | W27: 0.001109698243 | X27: 276.6526501 | Y27: 1206.5975 | Z27: -0.0007136689005 | AA27: 1516.817009 | AB27: 0.0009289241751 | AC27: 768.232577 | AD27: 0.0008061297965 | AE27: 29592.06611 | AF27: 1.374343794e-07 | AG27: 0.001727689195 | AH27: 177.6945534 | AI27: 787.5 | AJ27: -0.001176470588 | AK27: 960.6562825 | AL27: 0.0009463787831 | AM27: 1000 | AN27: 0.002562414287 | AO27: 1316.340866 | AP27: 0.0007766681834 | AQ27: 768.232577 | AR27: 0.0008061297965
S28: 1325.963231 | T28: 0.0008528627746 | U28: 47950.20303 | V28: 8.067542808e-08 | W28: 0.001154060468 | X28: 258.1898587 | Y28: 1192.5854 | Z28: -0.0007136689005 | AA28: 1517.677019 | AB28: 0.001013923972 | AC28: 777.503274 | AD28: 0.0008852147025 | AE28: 30775.74872 | AF28: 1.277295578e-07 | AG28: 0.001796756743 | AH28: 165.8358653 | AI28: 779 | AJ28: -0.001176470588 | AK28: 961.5004308 | AL28: 0.001032975737 | AM28: 1000 | AN28: 0.002562414287 | AO28: 1325.963231 | AP28: 0.0008528627746 | AQ28: 777.503274 | AR28: 0.0008852147025
S29: 1335.585597 | T29: 0.0009329618369 | U29: 49794.44157 | V29: 7.518962729e-08 | W29: 0.001198422693 | X29: 240.9592069 | Y29: 1178.5733 | Z29: -0.0007136689005 | AA29: 1518.537029 | AB29: 0.001106615332 | AC29: 786.7739709 | AD29: 0.0009683521892 | AE29: 31959.43133 | AF29: 1.190199887e-07 | AG29: 0.001865824291 | AH29: 154.768583 | AI29: 770.5 | AJ29: -0.001176470588 | AK29: 962.344579 | AL29: 0.00112740878 | AM29: 1000 | AN29: 0.002562414287 | AO29: 1335.585597 | AP29: 0.0009329618369 | AQ29: 786.7739709 | AR29: 0.0009683521892
S30: 1345.207962 | T30: 0.001016692629 | U30: 51638.6801 | V30: 7.02465204e-08 | W30: 0.001242784918 | X30: 224.878466 | Y30: 1164.5612 | Z30: -0.0007136689005 | AA30: 1519.397039 | AB30: 0.001207677608 | AC30: 796.0446678 | AD30: 0.00105525917 | AE30: 33143.11395 | AF30: 1.111734061e-07 | AG30: 0.001934891838 | AH30: 144.4398908 | AI30: 762 | AJ30: -0.001176470588 | AK30: 963.1887273 | AL30: 0.00123037003 | AM30: 1000 | AN30: 0.002562414287 | AO30: 1345.207962 | AP30: 0.001016692629 | AQ30: 796.0446678 | AR30: 0.00105525917
S31: 1354.830328 | T31: 0.001103713988 | U31: 53482.91864 | V31: 6.5776438e-08 | W31: 0.001287147142 | X31: 209.8708953 | Y31: 1150.5491 | Z31: -0.0007136689005 | AA31: 1520.257049 | AB31: 0.001317846927 | AC31: 805.3153647 | AD31: 0.001145581539 | AE31: 34326.79656 | AF31: 1.040789063e-07 | AG31: 0.002003959386 | AH31: 134.800498 | AI31: 753.5 | AJ31: -0.001176470588 | AK31: 964.0328755 | AL31: 0.001342609445 | AM31: 1000 | AN31: 0.002562414287 | AO31: 1354.830328 | AP31: 0.001103713988 | AQ31: 805.3153647 | AR31: 0.001145581539
S32: 1364.452693 | T32: 0.001193615622 | U32: 55327.15718 | V32: 6.172059362e-08 | W32: 0.001331509367 | X32: 195.8648753 | Y32: 1136.537 | Z32: -0.0007136689005 | AA32: 1521.117058 | AB32: 0.001437920297 | AC32: 814.5860616 | AD32: 0.001238893441 | AE32: 35510.47917 | AF32: 9.76429228e-08 | AG32: 0.002073026934 | AH32: 125.8044032 | AI32: 745 | AJ32: -0.001176470588 | AK32: 964.8770238 | AL32: 0.001464939009 | AM32: 1000 | AN32: 0.002562414287 | AO32: 1364.452693 | AP32: 0.001193615622 | AQ32: 814.5860616 | AR32: 0.001238893441
S33: 1374.075058 | T33: 0.001285918716 | U33: 57171.39571 | V33: 5.802909808e-08 | W33: 0.001375871592 | X33: 182.7935661 | Y33: 1122.5249 | Z33: -0.0007136689005 | AA33: 1521.977068 | AB33: 0.001568759881 | AC33: 823.8567585 | AD33: 0.001334697899 | AE33: 36694.16178 | AF33: 9.178606089e-08 | AG33: 0.002142094482 | AH33: 117.408675 | AI33: 736.5 | AJ33: -0.001176470588 | AK33: 965.721172 | AL33: 0.001598237086 | AM33: 1000 | AN33: 0.002562414287 | AO33: 1374.075058 | AP33: 0.001285918716 | AQ33: 823.8567585 | AR33: 0.001334697899
S34: 1383.697424 | T34: =NORMDIST(S34,$C$7,$C$8,0) -> 0.001380077948 | U34: 59015.63425 | V34: =EXP(-1*(LN(U34)-$U$104)^2/(2*$U$106^2))/(SQRT(2*PI())*($U$106*U34)) -> 5.465938531e-08 | W34: 0.001420233817 | X34: =$C$7*EXP(-W34*$C$7) -> 170.5945885 | Y34: 1108.5128 | Z34: =1/($C$8-$C$7) -> -0.0007136689005 | AA34: 1522.837078 | AB34: =EXP((AA34-$AA$104)/$AA$106)*EXP(-EXP((AA34-$AA$104)/$AA$106))/$AA$106 -> 0.00171129742 | AC34: 833.1274555 | AD34: =NORMDIST(AC34,$C$3,$C$4,0) -> 0.001432428904 | AE34: 37877.8444 | AF34: =EXP(-1*(LN(AE34)-$AE$104)^2/(2*$AE$106^2))/(SQRT(2*PI())*($AE$106*AE34)) -> 8.644058901e-08 | AG34: 0.00221116203 | AH34: =$C$3*EXP(-AG34*$C$3) -> 109.5732472 | AI34: 728 | AJ34: =1/($C$4-$C$3) -> -0.001176470588 | AK34: 966.5653203 | AL34: 0.001743452925 | AM34: =$C$3 -> 1000 | AN34: 0.002562414287 | AO34: =OFFSET($R$2,ROW(AO34)-2,2*$AT$7-1) -> 1383.697424 | AP34: =OFFSET($R$2,ROW(AO34)-2,2*$AT$7) -> 0.001380077948 | AQ34: 833.1274555 | AR34: 0.001432428904
S35: 1393.319789 | T35: 0.001475484973 | U35: 60859.87279 | V35: 5.157495464e-08 | W35: 0.001464596042 | X35: 159.2097263 | Y35: 1094.5007 | Z35: -0.0007136689005 | AA35: 1523.697088 | AB35: 0.001866538761 | AC35: 842.3981524 | AD35: 0.001531455037 | AE35: 39061.52701 | AF35: 8.154843454e-08 | AG35: 0.002280229577 | AH35: 102.2607273 | AI35: 719.5 | AJ35: -0.001176470588 | AK35: 967.4094685 | AL35: 0.001901611271 | AM35: 1000 | AN35: 0.002562414287 | AO35: 1393.319789 | AP35: 0.001475484973 | AQ35: 842.3981524 | AR35: 0.001531455037
S36: 1402.942154 | T36: 0.001571473426 | U36: 62704.11132 | V36: 4.874435892e-08 | W36: 0.001508958266 | X36: 148.5846484 | Y36: 1080.4886 | Z36: -0.0007136689005 | AA36: 1524.557098 | AB36: 0.002035568455 | AC36: 851.6688493 | AD36: 0.001631084651 | AE36: 40245.20962 | AF36: 7.705957136e-08 | AG36: 0.002349297125 | AH36: 95.43621837 | AI36: 711 | AJ36: -0.001176470588 | AK36: 968.2536168 | AL36: 0.002073817055 | AM36: 1000 | AN36: 0.002562414287 | AO36: 1402.942154 | AP36: 0.001571473426 | AQ36: 851.6688493 | AR36: 0.001631084651
S37: 1412.56452 | T37: 0.001667325404 | U37: 64548.34986 | V37: 4.61403847e-08 | W37: 0.001553320491 | X37: 138.6686495 | Y37: 1066.4765 | Z37: -0.0007136689005 | AA37: 1525.417108 | AB37: 0.002219554362 | AC37: 860.9395462 | AD37: 0.001730572615 | AE37: 41428.89223 | AF37: 7.293071373e-08 | AG37: 0.002418364673 | AH37: 89.06715236 | AI37: 702.5 | AJ37: -0.001176470588 | AK37: 969.097765 | AL37: 0.002261260081 | AM37: 1000 | AN37: 0.002562414287 | AO37: 1412.56452 | AP37: 0.001667325404 | AQ37: 860.9395462 | AR37: 0.001730572615
S38: 1422.186885 | T38: 0.001762279419 | U38: 66392.5884 | V38: 4.373938395e-08 | W38: 0.001597682716 | X38: 129.4144083 | Y38: 1052.4644 | Z38: -0.0007136689005 | AA38: 1526.277118 | AB38: 0.002419752201 | AC38: 870.2102431 | AD38: 0.001829128551 | AE38: 42612.57485 | AF38: 6.912425177e-08 | AG38: 0.002487432221 | AH38: 83.12313464 | AI38: 694 | AJ38: -0.001176470588 | AK38: 969.9419133 | AL38: 0.002465219664 | AM38: 1000 | AN38: 0.002562414287 | AO38: 1422.186885 | AP38: 0.001762279419 | AQ38: 870.2102431 | AR38: 0.001829128551
S39: 1431.80925 | T39: 0.001855539683 | U39: 68236.82693 | V39: 4.152072605e-08 | W39: 0.001642044941 | X39: 120.7777615 | Y39: 1038.4523 | Z39: -0.0007136689005 | AA39: 1527.137128 | AB39: 0.002637509938 | AC39: 879.4809401 | AD39: 0.001925926489 | AE39: 43796.25746 | AF39: 6.56073784e-08 | AG39: 0.002556499768 | AH39: 77.57579904 | AI39: 685.5 | AJ39: -0.001176470588 | AK39: 970.7860615 | AL39: 0.002687069098 | AM39: 1000 | AN39: 0.002562414287 | AO39: 1431.80925 | AP39: 0.001855539683 | AQ39: 879.4809401 | AR39: 0.001925926489
S40: 1441.431616 | T40: 0.001946286634 | U40: 70081.06547 | V40: 3.946634581e-08 | W40: 0.001686407166 | X40: 112.7174931 | Y40: 1024.4402 | Z40: -0.0007136689005 | AA40: 1527.997138 | AB40: 0.002874271913 | AC40: 888.751637 | AD40: 0.002020115773 | AE40: 44979.94007 | AF40: 6.235136956e-08 | AG40: 0.002625567316 | AH40: 72.39867244 | AI40: 677 | AJ40: -0.001176470588 | AK40: 971.6302098 | AL40: 0.002928279862 | AM40: 1000 | AN40: 0.002562414287 | AO40: 1441.431616 | AP40: 0.001946286634 | AQ40: 888.751637 | AR40: 0.002020115773
S41: 1451.053981 | T41: 0.002033688483 | U41: 71925.30401 | V41: 3.756036877e-08 | W41: 0.00173076939 | X41: 105.1951377 | Y41: 1010.4281 | Z41: -0.0007136689005 | AA41: 1528.857148 | AB41: 0.003131582543 | AC41: 898.0223339 | AD41: 0.002110833066 | AE41: 46163.62269 | AF41: 5.93309875e-08 | AG41: 0.002694634864 | AH41: 67.56704843 | AI41: 668.5 | AJ41: -0.001176470588 | AK41: 972.474358 | AL41: 0.003190425393 | AM41: 1000 | AN41: 0.002562414287 | AO41: 1451.053981 | AP41: 0.002033688483 | AQ41: 898.0223339 | AR41: 0.002110833066
S42: 1460.676346 | T42: 0.002116913604 | U42: 73769.54255 | V42: 3.578879901e-08 | W42: 0.001775131615 | X42: 98.17479692 | Y42: 996.416 | Z42: -0.0007136689005 | AA42: 1529.717157 | AB42: 0.003411089459 | AC42: 907.2930308 | AD42: 0.002197215194 | AE42: 47347.3053 | AF42: 5.652398357e-08 | AG42: 0.002763702412 | AH42: 63.05786943 | AI42: 660 | AJ42: -0.001176470588 | AK42: 973.3185063 | AL42: 0.00347518428 | AM42: 1000 | AN42: 0.002562414287 | AO42: 1460.676346 | AP42: 0.002116913604 | AQ42: 907.2930308 | AR42: 0.002197215194
S43: 1470.298712 | T43: 0.002195143492 | U43: 75613.78108 | V43: 3.413925778e-08 | W43: 0.00181949384 | X43: 91.62296814 | Y43: 982.4039 | Z43: -0.0007136689005 | AA43: 1530.577167 | AB43: 0.003714545827 | AC43: 916.5637277 | AD43: 0.002278412602 | AE43: 48530.98791 | AF43: 5.391068209e-08 | AG43: 0.00283276996 | AH43: 58.84961663 | AI43: 651.5 | AJ43: -0.001176470588 | AK43: 974.1626545 | AL43: 0.003784342634 | AM43: 1000 | AN43: 0.002562414287 | AO43: 1470.298712 | AP43: 0.002195143492 | AQ43: 916.5637277 | AR43: 0.002278412602
S44: 1479.921077 | T44: 0.002267586019 | U44: 77458.01962 | V44: 3.26007637e-08 | W44: 0.001863856065 | X44: 85.50838457 | Y44: 968.3918 | Z44: -0.0007136689005 | AA44: 1531.437177 | AB44: 0.004043811637 | AC44: 925.8344247 | AD44: 0.002353603116 | AE44: 49714.67052 | AF44: 5.14736304e-08 | AG44: 0.002901837507 | AH44: 54.92220732 | AI44: 643 | AJ44: -0.001176470588 | AK44: 975.0068028 | AL44: 0.004119795392 | AM44: 1000 | AN44: 0.002562414287 | AO44: 1479.921077 | AP44: 0.002267586019 | AQ44: 925.8344247 | AR44: 0.002353603116
S45: 1489.543443 | T45: 0.002333488703 | U45: 79302.25816 | V45: 3.116354711e-08 | W45: 0.00190821829 | X45: 79.80186607 | Y45: 954.3797 | Z45: -0.0007136689005 | AA45: 1532.297187 | AB45: 0.00440085363 | AC45: 935.1051216 | AD45: 0.002422005708 | AE45: 50898.35314 | AF45: 4.919730336e-08 | AG45: 0.002970905055 | AH45: 51.25689901 | AI45: 634.5 | AJ45: -0.001176470588 | AK45: 975.850951 | AL45: 0.004483546251 | AM45: 1000 | AN45: 0.002562414287 | AO45: 1489.543443 | AP45: 0.002333488703 | AQ45: 935.1051216 | AR45: 0.002422005708
S46: 1499.165808 | T46: 0.002392151662 | U46: 81146.49669 | V46: 2.981889267e-08 | W46: 0.001952580514 | X46: 74.47617985 | Y46: 940.3676 | Z46: -0.0007136689005 | AA46: 1533.157197 | AB46: 0.004787743509 | AC46: 944.3758185 | AD46: 0.002482893949 | AE46: 52082.03575 | AF46: 4.706785276e-08 | AG46: 0.003039972603 | AH46: 47.83620005 | AI46: 626 | AJ46: -0.001176470588 | AK46: 976.6950993 | AL46: 0.004877705842 | AM46: 1000 | AN46: 0.002562414287 | AO46: 1499.165808 | AP46: 0.002392151662 | AQ46: 944.3758185 | AR46: 0.002482893949
S47: 1508.788173 | T47: 0.002442939962 | U47: 82990.73523 | V47: 2.855900535e-08 | W47: 0.001996942739 | X47: 69.50591056 | Y47: 926.3555 | Z47: -0.0007136689005 | AA47: 1534.017207 | AB47: 0.005206654014 | AC47: 953.6465154 | AD47: 0.002535608818 | AE47: 53265.71836 | AF47: 4.507289401e-08 | AG47: 0.003109040151 | AH47: 44.64378609 | AI47: 617.5 | AJ47: -0.001176470588 | AK47: 977.5392475 | AL47: 0.005304487731 | AM47: 1000 | AN47: 0.002562414287 | AO47: 1508.788173 | AP47: 0.002442939962 | AQ47: 953.6465154 | AR47: 0.002535608818
S48: 1518.410539 | T48: 0.00248529504 | U48: 84834.97377 | V48: 2.73768959e-08 | W48: 0.002041304964 | X48: 64.86733895 | Y48: 912.3434 | Z48: -0.0007136689005 | AA48: 1534.877217 | AB48: 0.005659852352 | AC48: 962.9172123 | AD48: 0.002579570565 | AE48: 54449.40097 | AF48: 4.320132394e-08 | AG48: 0.003178107699 | AH48: 41.66442222 | AI48: 609 | AJ48: -0.001176470588 | AK48: 978.3833958 | AL48: 0.005766201725 | AM48: 1000 | AN48: 0.002562414287 | AO48: 1518.410539 | AP48: 0.00248529504 | AQ48: 962.9172123 | AR48: 0.002579570565
S49: 1528.032904 | T49: 0.002518744922 | U49: 86679.2123 | V49: 2.62662827e-08 | W49: 0.002085667189 | X49: 60.53832874 | Y49: 898.3313 | Z49: -0.0007136689005 | AA49: 1535.737227 | AB49: 0.0061496904 | AC49: 972.1879092 | AD49: 0.002614289313 | AE49: 55633.08359 | AF49: 4.144316453e-08 | AG49: 0.003247175246 | AH49: 38.88389026 | AI49: 600.5 | AJ49: -0.001176470588 | AK49: 979.227544 | AL49: 0.006265243896 | AM49: 1000 | AN49: 0.002562414287 | AO49: 1528.032904 | AP49: 0.002518744922 | AQ49: 972.1879092 | AR49: 0.002614289313
S50: 1537.655269 | T50: 0.00254291298 | U50: 88523.45084 | V50: 2.522150727e-08 | W50: 0.002130029414 | X50: 56.49822093 | Y50: 884.3192 | Z50: -0.0007136689005 | AA50: 1536.597237 | AB50: 0.006678591017 | AC50: 981.4586062 | AD50: 0.002639374146 | AE50: 56816.7662 | AF50: 3.97894285e-08 | AG50: 0.003316242794 | AH50: 36.28892088 | AI50: 592 | AJ50: -0.001176470588 | AK50: 980.0716923 | AL50: 0.006804082625 | AM50: 1000 | AN50: 0.002562414287 | AO50: 1537.655269 | AP50: 0.00254291298 | AQ50: 981.4586062 | AR50: 0.002639374146
S51: 1547.277635 | T51: 0.002557524985 | U51: 90367.68938 | V51: 2.423746134e-08 | W51: 0.002174391638 | X51: 52.7277352 | Y51: 870.3071 | Z51: -0.0007136689005 | AA51: 1537.457247 | AB51: 0.007249029674 | AC51: 990.7293031 | AD51: 0.002654540432 | AE51: 58000.44881 | AF51: 3.823200333e-08 | AG51: 0.003385310342 | AH51: 33.86713033 | AI51: 583.5 | AJ51: -0.001176470588 | AK51: 980.9158405 | AL51: 0.007385239899 | AM51: 1000 | AN51: 0.002562414287 | AO51: 1547.277635 | AP51: 0.002557524985 | AQ51: 990.7293031 | AR51: 0.002654540432
S52: 1556.9 | T52: 0.002562414287 | U52: 92211.92791 | V52: 2.330952376e-08 | W52: 0.002218753863 | X52: 49.20887798 | Y52: 856.295 | Z52: -0.0007136689005 | AA52: 1538.317257 | AB52: 0.00786351054 | AC52: 1000 | AD52: 0.002659615203 | AE52: 59184.13143 | AF52: 3.676355078e-08 | AG52: 0.00345437789 | AH52: 31.60696126 | AI52: 575 | AJ52: -0.001176470588 | AK52: 981.7599888 | AL52: 0.008011266942 | AM52: 1000 | AN52: 0.002562414287 | AO52: 1556.9 | AP52: 0.002562414287 | AQ52: 1000 | AR52: 0.002659615203
S53: 1566.522365 | T53: 0.002557524985 | U53: 94056.16645 | V53: 2.243350567e-08 | W53: 0.002263116088 | X53: 45.92485649 | Y53: 842.2829 | Z53: -0.0007136689005 | AA53: 1539.177266 | AB53: 0.00852453603 | AC53: 1009.270697 | AD53: 0.002654540432 | AE53: 60367.81404 | AF53: 3.537741973e-08 | AG53: 0.003523445437 | AH53: 29.49762765 | AI53: 566.5 | AJ53: -0.001176470588 | AK53: 982.604137 | AL53: 0.008684713188 | AM53: 1000 | AN53: 0.002562414287 | AO53: 1566.522365 | AP53: 0.002557524985 | AQ53: 1009.270697 | AR53: 0.002654540432
S54: 1576.144731 | T54: 0.00254291298 | U54: 95900.40499 | V54: 2.160560271e-08 | W54: 0.002307478313 | X54: 42.85999865 | Y54: 828.2708 | Z54: -0.0007136689005 | AA54: 1540.037276 | AB54: 0.00923456871 | AC54: 1018.541394 | AD54: 0.002639374146 | AE54: 61551.49665 | AF54: 3.40675702e-08 | AG54: 0.003592512985 | AH54: 27.5290633 | AI54: 558 | AJ54: -0.001176470588 | AK54: 983.4482853 | AL54: 0.009408087476 | AM54: 1000 | AN54: 0.002562414287 | AO54: 1576.144731 | AP54: 0.00254291298 | AQ54: 1018.541394 | AR54: 0.002639374146
S55: 1585.767096 | T55: 0.002518744922 | U55: 97744.64353 | V55: 2.082235341e-08 | W55: 0.002351840538 | X55: 39.99967826 | Y55: 814.2587 | Z55: -0.0007136689005 | AA55: 1540.897286 | AB55: 0.009995984353 | AC55: 1027.812091 | AD55: 0.002614289313 | AE55: 62735.17926 | AF55: 3.28285071e-08 | AG55: 0.003661580533 | AH55: 25.69187376 | AI55: 549.5 | AJ55: -0.001176470588 | AK55: 984.2924335 | AL55: 0.01018381022 | AM55: 1000 | AN55: 0.002562414287 | AO55: 1585.767096 | AP55: 0.002518744922 | AQ55: 1027.812091 | AR55: 0.002614289313
S56: 1595.389461 | T56: 0.00248529504 | U56: 99588.88206 | V56: 2.008060264e-08 | W56: 0.002396202762 | X56: 37.33024526 | Y56: 800.2466 | Z56: -0.0007136689005 | AA56: 1541.757296 | AB56: 0.01081101484 | AC56: 1037.082788 | AD56: 0.002579570565 | AE56: 63918.86188 | AF56: 3.165522211e-08 | AG56: 0.003730648081 | AH56: 23.97729158 | AI56: 541 | AJ56: -0.001176470588 | AK56: 985.1365818 | AL56: 0.01101415524 | AM56: 1000 | AN56: 0.002562414287 | AO56: 1595.389461 | AP56: 0.00248529504 | AQ56: 1037.082788 | AR56: 0.002579570565
S57: 1605.011827 | T57: 0.002442939962 | U57: 101433.1206 | V57: 1.937746958e-08 | W57: 0.002440564987 | X57: 34.8389605 | Y57: 786.2345 | Z57: -0.0007136689005 | AA57: 1542.617306 | AB57: 0.01168167952 | AC57: 1046.353485 | AD57: 0.002535608818 | AE57: 65102.54449 | AF57: 3.054314281e-08 | AG57: 0.003799715629 | AH57: 22.37713437 | AI57: 532.5 | AJ57: -0.001176470588 | AK57: 985.98073 | AL57: 0.01190117982 | AM57: 1000 | AN57: 0.002562414287 | AO57: 1605.011827 | AP57: 0.002442939962 | AQ57: 1046.353485 | AR57: 0.002535608818
S58: 1614.634192 | T58: 0.002392151662 | U58: 103277.3591 | V58: 1.871031956e-08 | W58: 0.002484927212 | X58: 32.51393502 | Y58: 772.2224 | Z58: -0.0007136689005 | AA58: 1543.477316 | AB58: 0.01260970361 | AC58: 1055.624182 | AD58: 0.002482893949 | AE58: 66286.2271 | AF58: 2.948808781e-08 | AG58: 0.003868783176 | AH58: 20.88376583 | AI58: 524 | AJ58: -0.001176470588 | AK58: 986.8248783 | AL58: 0.0128466416 | AM58: 1000 | AN58: 0.002562414287 | AO58: 1614.634192 | AP58: 0.002392151662 | AQ58: 1055.624182 | AR58: 0.002482893949
S59: 1624.256557 | T59: 0.002333488703 | U59: 105121.5977 | V59: 1.807673917e-08 | W59: 0.002529289437 | X59: 30.34407329 | Y59: 758.2103 | Z59: -0.0007136689005 | AA59: 1544.337326 | AB59: 0.01359642217 | AC59: 1064.894878 | AD59: 0.002422005708 | AE59: 67469.90972 | AF59: 2.848622724e-08 | AG59: 0.003937850724 | AH59: 19.49005928 | AI59: 515.5 | AJ59: -0.001176470588 | AK59: 987.6690265 | AL59: 0.01385190074 | AM59: 1000 | AN59: 0.002562414287 | AO59: 1624.256557 | AP59: 0.002333488703 | AQ59: 1064.894878 | AR59: 0.002422005708
S60: 1633.878923 | T60: 0.002267586019 | U60: 106965.8362 | V60: 1.747451429e-08 | W60: 0.002573651662 | X60: 28.31902023 | Y60: 744.1982 | Z60: -0.0007136689005 | AA60: 1545.197336 | AB60: 0.0146426684 | AC60: 1074.165575 | AD60: 0.002353603116 | AE60: 68653.59233 | AF60: 2.753404782e-08 | AG60: 0.004006918272 | AH60: 18.18936362 | AI60: 507 | AJ60: -0.001176470588 | AK60: 988.5131748 | AL60: 0.01491780607 | AM60: 1000 | AN60: 0.002562414287 | AO60: 1633.878923 | AP60: 0.002267586019 | AQ60: 1074.165575 | AR60: 0.002353603116
S61: 1643.501288 | T61: 0.002195143492 | U61: 108810.0747 | V61: 1.690161065e-08 | W61: 0.002618013886 | X61: 26.42911184 | Y61: 730.1861 | Z61: -0.0007136689005 | AA61: 1546.057346 | AB61: 0.01574864492 | AC61: 1083.436272 | AD61: 0.002278412602 | AE61: 69837.27494 | AF61: 2.662832192e-08 | AG61: 0.00407598582 | AH61: 16.97547167 | AI61: 498.5 | AJ61: -0.001176470588 | AK61: 989.357323 | AL61: 0.01604456404 | AM61: 1000 | AN61: 0.002562414287 | AO61: 1643.501288 | AP61: 0.002195143492 | AQ61: 1083.436272 | AR61: 0.002278412602
S62: 1653.123654 | T62: 0.002116913604 | U62: 110654.3133 | V62: 1.635615653e-08 | W62: 0.002662376111 | X62: 24.66532907 | Y62: 716.174 | Z62: -0.0007136689005 | AA62: 1546.917356 | AB62: 0.01691377732 | AC62: 1092.706969 | AD62: 0.002197215194 | AE62: 71020.95755 | AF62: 2.576608008e-08 | AG62: 0.004145053368 | AH62: 15.84259045 | AI62: 490 | AJ62: -0.001176470588 | AK62: 990.2014713 | AL62: 0.01723158943 | AM62: 1000 | AN62: 0.002562414287 | AO62: 1653.123654 | AP62: 0.002116913604 | AQ62: 1092.706969 | AR62: 0.002197215194
S63: 1662.746019 | T63: 0.002033688483 | U63: 112498.5518 | V63: 1.583642741e-08 | W63: 0.002706738336 | X63: 23.01925474 | Y63: 702.1619 | Z63: -0.0007136689005 | AA63: 1547.777366 | AB63: 0.01813654942 | AC63: 1101.977666 | AD63: 0.002110833066 | AE63: 72204.64017 | AF63: 2.494458659e-08 | AG63: 0.004214120915 | AH63: 14.7853136 | AI63: 481.5 | AJ63: -0.001176470588 | AK63: 991.0456195 | AL63: 0.01847733758 | AM63: 1000 | AN63: 0.002562414287 | AO63: 1662.746019 | AP63: 0.002033688483 | AQ63: 1101.977666 | AR63: 0.002110833066
S64: 1672.368384 | T64: 0.001946286634 | U64: 114342.7904 | V64: 1.534083224e-08 | W64: 0.002751100561 | X64: 21.48303343 | Y64: 688.1498 | Z64: -0.0007136689005 | AA64: 1548.637375 | AB64: 0.01941432063 | AC64: 1111.248363 | AD64: 0.002020115773 | AE64: 73388.32278 | AF64: 2.416131772e-08 | AG64: 0.004283188463 | AH64: 13.79859556 | AI64: 473 | AJ64: -0.001176470588 | AK64: 991.8897678 | AL64: 0.01977911828 | AM64: 1000 | AN64: 0.002562414287 | AO64: 1672.368384 | AP64: 0.001946286634 | AQ64: 1111.248363 | AR64: 0.002020115773
S65: 1681.99075 | T65: 0.001855539683 | U65: 116187.0289 | V65: 1.486790125e-08 | W65: 0.002795462786 | X65: 20.04933393 | Y65: 674.1377 | Z65: -0.0007136689005 | AA65: 1549.497385 | AB65: 0.02074312644 | AC65: 1120.51906 | AD65: 0.001925926489 | AE65: 74572.00539 | AF65: 2.34139423e-08 | AG65: 0.004352256011 | AH65: 12.87772749 | AI65: 464.5 | AJ65: -0.001176470588 | AK65: 992.733916 | AL65: 0.02113289253 | AM65: 1000 | AN65: 0.002562414287 | AO65: 1681.99075 | AP65: 0.001855539683 | AQ65: 1120.51906 | AR65: 0.001925926489
S66: 1691.613115 | T66: =NORMDIST(S66,$C$7,$C$8,0) -> 0.001762279419 | U66: 118031.2674 | V66: =EXP(-1*(LN(U66)-$U$104)^2/(2*$U$106^2))/(SQRT(2*PI())*($U$106*U66)) -> 1.441627497e-08 | W66: 0.00283982501 | X66: =$C$7*EXP(-W66*$C$7) -> 18.71131433 | Y66: 660.1256 | Z66: =1/($C$8-$C$7) -> -0.0007136689005 | AA66: 1550.357395 | AB66: =EXP((AA66-$AA$104)/$AA$106)*EXP(-EXP((AA66-$AA$104)/$AA$106))/$AA$106 -> 0.02211746459 | AC66: 1129.789757 | AD66: =NORMDIST(AC66,$C$3,$C$4,0) -> 0.001829128551 | AE66: 75755.688 | AF66: =EXP(-1*(LN(AE66)-$AE$104)^2/(2*$AE$106^2))/(SQRT(2*PI())*($AE$106*AE66)) -> 2.27003043e-08 | AG66: 0.004421323559 | AH66: =$C$3*EXP(-AG66*$C$3) -> 12.01831481 | AI66: 456 | AJ66: =1/($C$4-$C$3) -> -0.001176470588 | AK66: 993.5780643 | AL66: 0.02253305467 | AM66: =$C$3 -> 1000 | AN66: 0.002562414287 | AO66: =OFFSET($R$2,ROW(AO66)-2,2*$AT$7-1) -> 1691.613115 | AP66: =OFFSET($R$2,ROW(AO66)-2,2*$AT$7) -> 0.001762279419 | AQ66: 1129.789757 | AR66: 0.001829128551
S67: 1701.23548 | T67: 0.001667325404 | U67: 119875.506 | V67: 1.398469447e-08 | W67: 0.002884187235 | X67: 17.46258928 | Y67: 646.1135 | Z67: -0.0007136689005 | AA67: 1551.217405 | AB67: 0.02353007093 | AC67: =($AC$101-$AC$2)/100+AC66 -> 1139.060454 | AD67: 0.001730572615 | AE67: 76939.37062 | AF67: 2.201840727e-08 | AG67: 0.004490391106 | AH67: 11.2162562 | AI67: 447.5 | AJ67: -0.001176470588 | AK67: 994.4222125 | AL67: =EXP((AK67-$AK$104)/$AK$106)*EXP(-EXP((AK67-$AK$104)/$AK$106))/$AK$106 -> 0.02397220407 | AM67: 1000 | AN67: 0.002562414287 | AO67: 1701.23548 | AP67: 0.001667325404 | AQ67: =OFFSET($AB$2,ROW(AQ67)-2,2*$AU$8-1) -> 1139.060454 | AR67: =OFFSET($AB$2,ROW(AQ67)-2,2*$AU$8) -> 0.001730572615
S68: =($S$101-$S$2)/100+S67 -> 1710.857846 | T68: 0.001571473426 | U68: =($U$101-$U$2)/100+U67 -> 121719.7445 | V68: 1.357199252e-08 | W68: =($W$101-$W$2)/100+W67 -> 0.00292854946 | X68: 16.2971996 | Y68: =($Y$101-$Y$2)/100+Y67 -> 632.1014 | Z68: -0.0007136689005 | AA68: =($AA$101-$AA$2)/100+AA67 -> 1552.077415 | AB68: 0.02497169097 | AC68: 1148.331151 | AD68: 0.001631084651 | AE68: =($AE$101-$AE$2)/100+AE67 -> 78123.05323 | AF68: 2.136640037e-08 | AG68: =($AG$101-$AG$2)/100+AG67 -> 0.004559458654 | AH68: 10.46772407 | AI68: =($AI$101-$AI$2)/100+AI67 -> 439 | AJ68: -0.001176470588 | AK68: =($AK$101-$AK$2)/100+AK67 -> 995.2663608 | AL68: 0.02544091234 | AM68: 1000 | AN68: =MAX(AP:AP) -> 0.002562414287 | AO68: 1710.857846 | AP68: 0.001571473426 | AQ68: 1148.331151 | AR68: 0.001631084651
S69: 1720.480211 | T69: 0.001475484973 | U69: 123563.983 | V69: 1.31770857e-08 | W69: 0.002972911685 | X69: 15.20958379 | Y69: 618.0893 | Z69: -0.0007136689005 | AA69: 1552.937425 | AB69: 0.02643085572 | AC69: 1157.601848 | AD69: 0.001531455037 | AE69: 79306.73584 | AF69: 2.074256576e-08 | AG69: 0.004628526202 | AH69: 9.769146246 | AI69: 430.5 | AJ69: -0.001176470588 | AK69: 996.110509 | AL69: 0.02692749499 | AM69: 1000 | AN69: 0.002562414287 | AO69: 1720.480211 | AP69: 0.001475484973 | AQ69: 1157.601848 | AR69: 0.001531455037
S70: 1730.102576 | T70: 0.001380077948 | U70: 125408.2216 | V70: 1.279896724e-08 | W70: 0.00301727391 | X70: 14.1945515 | Y70: 604.0772 | Z70: -0.0007136689005 | AA70: 1553.797435 | AB70: 0.02789367316 | AC70: 1166.872545 | AD70: 0.001432428904 | AE70: 80490.41846 | AF70: 2.014530732e-08 | AG70: 0.00469759375 | AH70: 9.117188966 | AI70: 422 | AJ70: -0.001176470588 | AK70: 996.9546573 | AL70: 0.02841779896 | AM70: 1000 | AN70: 0.002562414287 | AO70: 1730.102576 | AP70: 0.001380077948 | AQ70: 1166.872545 | AR70: 0.001432428904
S71: 1739.724942 | T71: 0.001285918716 | U71: 127252.4601 | V71: 1.243670065e-08 | W71: 0.003061636134 | X71: 13.24725877 | Y71: 590.0651 | Z71: -0.0007136689005 | AA71: 1554.657445 | AB71: 0.02934365018 | AC71: 1176.143241 | AD71: 0.001334697899 | AE71: 81674.10107 | AF71: 1.95731404e-08 | AG71: 0.004766661298 | AH71: 8.508740943 | AI71: 413.5 | AJ71: -0.001176470588 | AK71: 997.7988055 | AL71: 0.02989502125 | AM71: 1000 | AN71: 0.002562414287 | AO71: 1739.724942 | AP71: 0.001285918716 | AQ71: 1176.143241 | AR71: 0.001334697899
S72: 1749.347307 | T72: 0.001193615622 | U72: 129096.6987 | V72: 1.208941385e-08 | W72: 0.003105998359 | X72: 12.36318492 | Y72: 576.053 | Z72: -0.0007136689005 | AA72: 1555.517455 | AB72: 0.03076156355 | AC72: 1185.413938 | AD72: 0.001238893441 | AE72: 82857.78368 | AF72: 1.902468263e-08 | AG72: 0.004835728845 | AH72: 7.940898528 | AI72: 405 | AJ72: -0.001176470588 | AK72: 998.6429538 | AL72: 0.03133957739 | AM72: 1000 | AN72: 0.002562414287 | AO72: 1749.347307 | AP72: 0.001193615622 | AQ72: 1185.413938 | AR72: 0.001238893441
S73: 1758.969672 | T73: 0.001103713988 | U73: 130940.9372 | V73: 1.175629396e-08 | W73: 0.003150360584 | X73: 11.53811093 | Y73: 562.0409 | Z73: -0.0007136689005 | AA73: 1556.377465 | AB73: 0.03212540203 | AC73: 1194.684635 | AD73: 0.001145581539 | AE73: 84041.46629 | AF73: 1.849864554e-08 | AG73: 0.004904796393 | AH73: 7.41095185 | AI73: 396.5 | AJ73: -0.001176470588 | AK73: 999.487102 | AL73: 0.03272904258 | AM73: 1000 | AN73: 0.002562414287 | AO73: 1758.969672 | AP73: 0.001103713988 | AQ73: 1194.684635 | AR73: 0.001145581539
S74: 1768.592038 | T74: 0.001016692629 | U74: 132785.1757 | V74: 1.143658251e-08 | W74: 0.003194722809 | X74: 10.76809939 | Y74: 548.0288 | Z74: -0.0007136689005 | AA74: 1557.237475 | AB74: 0.03341040605 | AC74: 1203.955332 | AD74: 0.00105525917 | AE74: 85225.14891 | AF74: 1.799382702e-08 | AG74: 0.004973863941 | AH74: 6.916371885 | AI74: 388 | AJ74: -0.001176470588 | AK74: 1000.33125 | AL74: 0.03403819199 | AM74: 1000 | AN74: 0.002562414287 | AO74: 1768.592038 | AP74: 0.001016692629 | AQ74: 1203.955332 | AR74: 0.00105525917
S75: 1778.214403 | T75: 0.0009329618369 | U75: 134629.4143 | V75: 1.112957114e-08 | W75: 0.003239085034 | X75: 10.04947561 | Y75: 534.0167 | Z75: -0.0007136689005 | AA75: 1558.097484 | AB75: 0.03458923405 | AC75: 1213.226029 | AD75: 0.0009683521892 | AE75: 86408.83152 | AF75: 1.750910446e-08 | AG75: 0.005042931489 | AH75: 6.454798387 | AI75: 379.5 | AJ75: -0.001176470588 | AK75: 1001.175399 | AL75: 0.03523917033 | AM75: 1000 | AN75: 0.002562414287 | AO75: 1778.214403 | AP75: 0.0009329618369 | AQ75: 1213.226029 | AR75: 0.0009683521892
S76: 1787.836769 | T76: 0.0008528627746 | U76: 136473.6528 | V76: 1.083459768e-08 | W76: 0.003283447258 | X76: 9.378810168 | Y76: 520.0046 | Z76: -0.0007136689005 | AA76: 1558.957494 | AB76: 0.03563228728 | AC76: 1222.496726 | AD76: 0.0008852147025 | AE76: 87592.51413 | AF76: 1.704342852e-08 | AG76: 0.005111999037 | AH76: 6.024028626 | AI76: 371 | AJ76: -0.001176470588 | AK76: 1002.019547 | AL76: 0.03630182267 | AM76: 1000 | AN76: 0.002562414287 | AO76: 1787.836769 | AP76: 0.0008528627746 | AQ76: 1222.496726 | AR76: 0.0008852147025
S77: 1797.459134 | T77: 0.0007766681834 | U77: 138317.8913 | V77: 1.055104254e-08 | W77: 0.003327809483 | X77: 8.752902498 | Y77: 505.9925 | Z77: -0.0007136689005 | AA77: 1559.817504 | AB77: 0.03650822479 | AC77: 1231.767423 | AD77: 0.0008061297965 | AE77: 88776.19674 | AF77: 1.659581743e-08 | AG77: 0.005181066584 | AH77: 5.622006871 | AI77: 362.5 | AJ77: -0.001176470588 | AK77: 1002.863695 | AL77: 0.03719421916 | AM77: 1000 | AN77: 0.002562414287 | AO77: 1797.459134 | AP77: 0.0007766681834 | AQ77: 1231.767423 | AR77: 0.0008061297965
S78: 1807.081499 | T78: 0.000704584274 | U78: 140162.1299 | V78: 1.027832552e-08 | W78: 0.003372171708 | X78: 8.168765628 | Y78: 491.9804 | Z78: -0.0007136689005 | AA78: 1560.677514 | AB78: 0.03718469832 | AC78: 1241.03812 | AD78: 0.0007313115041 | AE78: 89959.87936 | AF78: 1.616535189e-08 | AG78: 0.005250134132 | AH78: 5.246814586 | AI78: 354 | AJ78: -0.001176470588 | AK78: 1003.707843 | AL78: 0.03788340372 | AM78: 1000 | AN78: 0.002562414287 | AO78: 1807.081499 | AP78: 0.000704584274 | AQ78: 1241.03812 | AR78: 0.0007313115041
S79: 1816.703865 | T79: 0.000636753664 | U79: 142006.3684 | V79: 1.001590278e-08 | W79: 0.003416533933 | X79: 7.623611929 | Y79: 477.9683 | Z79: -0.0007136689005 | AA79: 1561.537524 | AB79: 0.03762933044 | AC79: 1250.308817 | AD79: 0.000660907853 | AE79: 91143.56197 | AF79: 1.57511703e-08 | AG79: 0.00531920168 | AH79: 4.896661268 | AI79: 345.5 | AJ79: -0.001176470588 | AK79: 1004.551992 | AL79: 0.03833639053 | AM79: 1000 | AN79: 0.002562414287 | AO79: 1816.703865 | AP79: 0.000636753664 | AQ79: 1250.308817 | AR79: 0.000660907853
S80: 1826.32623 | T80: 0.0005732592028 | U80: 143850.6069 | V80: 9.763264204e-09 | W80: 0.003460896158 | X80: 7.114839804 | Y80: 463.9562 | Z80: -0.0007136689005 | AA80: 1562.397534 | AB80: 0.03781094814 | AC80: 1259.579514 | AD80: 0.0005950048352 | AE80: 92327.24458 | AF80: 1.535246449e-08 | AG80: 0.005388269228 | AH80: 4.56987591 | AI80: 337 | AJ80: -0.001176470588 | AK80: 1005.39614 | AL80: 0.03852142086 | AM80: 1000 | AN80: 0.002562414287 | AO80: 1826.32623 | AP80: 0.0005732592028 | AQ80: 1259.579514 | AR80: 0.0005950048352
S81: 1835.948595 | T81: 0.0005141285175 | U81: 145694.8455 | V81: 9.519930851e-09 | W81: 0.003505258382 | X81: 6.64002128 | Y81: 449.9441 | Z81: -0.0007136689005 | AA81: 1563.257544 | AB81: 0.03770106737 | AC81: 1268.850211 | AD81: 0.000533631126 | AE81: 93510.9272 | AF81: 1.49684758e-08 | AG81: 0.005457336775 | AH81: 4.264899017 | AI81: 328.5 | AJ81: -0.001176470588 | AK81: 1006.240288 | AL81: 0.03840947541 | AM81: 1000 | AN81: 0.002562414287 | AO81: 1835.948595 | AP81: 0.0005141285175 | AQ81: 1268.850211 | AR81: 0.000533631126
S82: 1845.570961 | T82: 0.0004593391136 | U82: 147539.084 | V82: 9.285452742e-09 | W82: 0.003549620607 | X82: 6.196890416 | Y82: 435.932 | Z82: -0.0007136689005 | AA82: 1564.117554 | AB82: 0.03727560001 | AC82: 1278.120908 | AD82: 0.0004767633774 | AE82: 94694.60981 | AF82: 1.459849147e-08 | AG82: 0.005526404323 | AH82: 3.980275173 | AI82: 320 | AJ82: -0.001176470588 | AK82: 1007.084436 | AL82: 0.03797601346 | AM82: 1000 | AN82: 0.002562414287 | AO82: 1845.570961 | AP82: 0.0004593391136 | AQ82: 1278.120908 | AR82: 0.0004767633774
S83: 1855.193326 | T83: 0.0004088238634 | U83: 149383.3226 | V83: 9.059406765e-09 | W83: 0.003593982832 | X83: 5.783332494 | Y83: 421.9199 | Z83: -0.0007136689005 | AA83: 1564.977564 | AB83: 0.03651672471 | AC83: 1287.391604 | AD83: 0.0004243319152 | AE83: 95878.29242 | AF83: 1.424184134e-08 | AG83: 0.005595471871 | AH83: 3.714646088 | AI83: 311.5 | AJ83: -0.001176470588 | AK83: 1007.928585 | AL83: 0.03720287879 | AM83: 1000 | AN83: 0.002562414287 | AO83: 1855.193326 | AP83: 0.0004088238634 | AQ83: 1287.391604 | AR83: 0.0004243319152
S84: 1864.815691 | T84: 0.0003624767236 | U84: 151227.5611 | V84: 8.841394771e-09 | W84: 0.003638345057 | X84: 5.397373924 | Y84: 407.9078 | Z84: -0.0007136689005 | AA84: 1565.837574 | AB84: 0.0354148267 | AC84: 1296.662301 | AD84: 0.000376226674 | AE84: 97061.97503 | AF84: 1.389789483e-08 | AG84: 0.005664539419 | AH84: 3.466744122 | AI84: 303 | AJ84: -0.001176470588 | AK84: 1008.772733 | AL84: 0.03608027597 | AM84: 1000 | AN84: 0.002562414287 | AO84: 1864.815691 | AP84: 0.0003624767236 | AQ84: 1296.662301 | AR84: 0.000376226674
S85: 1874.438057 | T85: 0.0003201585357 | U85: 153071.7996 | V85: 8.631041828e-09 | W85: 0.003682707282 | X85: 5.037172824 | Y85: 393.8957 | Z85: -0.0007136689005 | AA85: 1566.697584 | AB85: 0.03397037201 | AC85: 1305.932998 | AD85: 0.0003323032162 | AE85: 98245.65765 | AF85: 1.35660582e-08 | AG85: 0.005733606967 | AH85: 3.235386232 | AI85: 294.5 | AJ85: -0.001176470588 | AK85: 1009.616881 | AL85: 0.03460867979 | AM85: 1000 | AN85: 0.002562414287 | AO85: 1874.438057 | AP85: 0.0003201585357 | AQ85: 1305.932998 | AR85: 0.0003323032162
S86: 1884.060422 | T86: 0.000281702773 | U86: 154916.0382 | V86: 8.427994615e-09 | W86: 0.003727069506 | X86: 4.701010235 | Y86: 379.8836 | Z86: -0.0007136689005 | AA86: 1567.557593 | AB86: 0.03219554274 | AC86: 1315.203695 | AD86: 0.0002923886982 | AE86: 99429.34026 | AF86: 1.324577194e-08 | AG86: 0.005802674514 | AH86: 3.019468325 | AI86: 286 | AJ86: -0.001176470588 | AK86: 1010.461029 | AL86: 0.03280050125 | AM86: 1000 | AN86: 0.002562414287 | AO86: 1884.060422 | AP86: 0.000281702773 | AQ86: 1315.203695 | AR86: 0.0002923886982
S87: 1893.682787 | T87: 0.0002469211182 | U87: 156760.2767 | V87: 8.231919943e-09 | W87: 0.003771431731 | X87: 4.387281915 | Y87: 365.8715 | Z87: -0.0007136689005 | AA87: 1568.417603 | AB87: 0.03011542775 | AC87: 1324.474392 | AD87: 0.0002562876593 | AE87: 100613.0229 | AF87: 1.293650848e-08 | AG87: 0.005871742062 | AH87: 2.817959994 | AI87: 277.5 | AJ87: -0.001176470588 | AK87: 1011.305178 | AL87: 0.03068130062 | AM87: 1000 | AN87: 0.002562414287 | AO87: 1893.682787 | AP87: 0.0002469211182 | AQ87: 1324.474392 | AR87: 0.0002562876593
S88: 1903.305153 | T88: 0.0002156087708 | U88: 158604.5152 | V88: 8.042503392e-09 | W88: 0.003815793956 | X88: 4.094490681 | Y88: 351.8594 | Z88: -0.0007136689005 | AA88: 1569.277613 | AB88: 0.02776854619 | AC88: 1333.745089 | AD88: 0.0002237875302 | AE88: 101796.7055 | AF88: 1.263776998e-08 | AG88: 0.00594080961 | AH88: 2.629899596 | AI88: 269 | AJ88: -0.001176470588 | AK88: 1012.149326 | AL88: 0.02829032084 | AM88: 1000 | AN88: 0.002562414287 | AO88: 1903.305153 | AP88: 0.0002156087708 | AQ88: 1333.745089 | AR88: 0.0002237875302
S89: 1912.927518 | T89: 0.0001875494038 | U89: 160448.7538 | V89: 7.859448057e-09 | W89: 0.003860156181 | X89: 3.821239269 | Y89: 337.8473 | Z89: -0.0007136689005 | AA89: 1570.137623 | AB89: 0.02520648838 | AC89: 1343.015786 | AD89: 0.0001946637779 | AE89: 102980.3881 | AF89: 1.234908638e-08 | AG89: 0.006009877158 | AH89: 2.454389665 | AI89: 260.5 | AJ89: -0.001176470588 | AK89: 1012.993474 | AL89: 0.02568012162 | AM89: 1000 | AN89: 0.002562414287 | AO89: 1912.927518 | AP89: 0.0001875494038 | AQ89: 1343.015786 | AR89: 0.0001946637779
S90: 1922.549883 | T90: 0.000162519706 | U90: 162292.9923 | V90: 7.68247339e-09 | W90: 0.003904518406 | X90: 3.566223662 | Y90: 323.8352 | Z90: -0.0007136689005 | AA90: 1570.997633 | AB90: 0.02249249903 | AC90: 1352.286483 | AD90: 0.0001686846202 | AE90: 104164.0707 | AF90: 1.207001355e-08 | AG90: 0.006078944706 | AH90: 2.290592628 | AI90: 252 | AJ90: -0.001176470588 | AK90: 1013.837622 | AL90: 0.02291513606 | AM90: 1000 | AN90: 0.002562414287 | AO90: 1922.549883 | AP90: 0.000162519706 | AQ90: 1352.286483 | AR90: 0.0001686846202
S91: 1932.172249 | T91: 0.0001402934657 | U91: 164137.2309 | V91: 7.511314127e-09 | W91: 0.00394888063 | X91: 3.328226869 | Y91: 309.8231 | Z91: -0.0007136689005 | AA91: 1571.857643 | AB91: 0.01969890885 | AC91: 1361.55718 | AD91: 0.0001456152645 | AE91: 105347.7533 | AF91: 1.180013157e-08 | AG91: 0.006148012253 | AH91: 2.137726809 | AI91: 243.5 | AJ91: -0.001176470588 | AK91: 1014.681771 | AL91: 0.02006905395 | AM91: 1000 | AN91: 0.002562414287 | AO91: 1932.172249 | AP91: 0.0001402934657 | AQ91: 1361.55718 | AR91: 0.0001456152645
S92: 1941.794614 | T92: 0.0001206451688 | U92: 165981.4694 | V92: 7.345719304e-09 | W92: 0.003993242855 | X92: 3.106113116 | Y92: 295.811 | Z92: -0.0007136689005 | AA92: 1572.717653 | AB92: 0.01690344253 | AC92: 1370.827877 | AD92: 0.0001252216422 | AE92: 106531.4359 | AF92: 1.15390432e-08 | AG92: 0.006217079801 | AH92: 1.995062699 | AI92: 235 | AJ92: -0.001176470588 | AK92: 1015.525919 | AL92: 0.01722106044 | AM92: 1000 | AN92: 0.002562414287 | AO92: 1941.794614 | AP92: 0.0001206451688 | AQ92: 1370.827877 | AR92: 0.0001252216422
S93: 1951.41698 | T93: 0.0001033530988 | U93: 167825.7079 | V93: 7.185451338e-09 | W93: 0.00403760508 | X93: 2.898822427 | Y93: 281.7989 | Z93: -0.0007136689005 | AA93: 1573.577663 | AB93: 0.01418458867 | AC93: 1380.098574 | AD93: 0.0001072736264 | AE93: 107715.1185 | AF93: 1.128637239e-08 | AG93: 0.006286147349 | AH93: 1.861919473 | AI93: 226.5 | AJ93: -0.001176470588 | AK93: 1016.370067 | AL93: 0.01445111897 | AM93: 1000 | AN93: 0.002562414287 | AO93: 1951.41698 | AP93: 0.0001033530988 | AQ93: 1380.098574 | AR93: 0.0001072736264
S94: 1961.039345 | T94: 8.820194165e-05 | U94: 169669.9465 | V94: 7.03028518e-09 | W94: 0.004081967305 | X94: 2.705365564 | Y94: 267.7868 | Z94: -0.0007136689005 | AA94: 1574.437673 | AB94: 0.01161639065 | AC94: 1389.369271 | AD94: 9.15477353e-05 | AE94: 108898.8012 | AF94: 1.104176295e-08 | AG94: 0.006355214897 | AH94: 1.737661741 | AI94: 218 | AJ94: -0.001176470588 | AK94: 1017.214215 | AL94: 0.01183466417 | AM94: 1000 | AN94: 0.002562414287 | AO94: 1961.039345 | AP94: 8.820194165e-05 | AQ94: 1389.369271 | AR94: 9.15477353e-05
S95: 1970.66171 | T95: 7.498490825e-05 | U95: 171514.185 | V95: 6.880007531e-09 | W95: 0.004126329529 | X95: 2.524819309 | Y95: 253.7747 | Z95: -0.0007136689005 | AA95: 1575.297683 | AB95: 0.009263178746 | AC95: 1398.639967 | AD95: 7.782933577e-05 | AE95: 110082.4838 | AF95: 1.080487733e-08 | AG95: 0.006424282444 | AH95: 1.621696518 | AI95: 209.5 | AJ95: -0.001176470588 | AK95: 1018.058364 | AL95: 0.009437235099 | AM95: 1000 | AN95: 0.002562414287 | AO95: 1970.66171 | AP95: 7.498490825e-05 | AQ95: 1398.639967 | AR95: 7.782933577e-05
S96: 1980.284076 | T96: 6.350540045e-05 | U96: 173358.4235 | V96: 6.734416112e-09 | W96: 0.004170691754 | X96: 2.356322053 | Y96: 239.7626 | Z96: -0.0007136689005 | AA96: 1576.157692 | AB96: 0.007174874576 | AC96: 1407.910664 | AD96: 6.591437197e-05 | AE96: 111266.1664 | AF96: 1.057539542e-08 | AG96: 0.006493349992 | AH96: 1.513470392 | AI96: 201 | AJ96: -0.001176470588 | AK96: 1018.902512 | AL96: 0.007309691417 | AM96: 1000 | AN96: 0.002562414287 | AO96: 1980.284076 | AP96: 6.350540045e-05 | AQ96: 1407.910664 | AR96: 6.591437197e-05
S97: 1989.906441 | T97: 5.357825059e-05 | U97: 175202.6621 | V97: 6.593318989e-09 | W97: 0.004215053979 | X97: 2.199069692 | Y97: 225.7505 | Z97: -0.0007136689005 | AA97: 1577.017702 | AB97: 0.005383519368 | AC97: 1417.181361 | AD97: 5.561065223e-05 | AE97: 112449.849 | AF97: 1.035301351e-08 | AG97: 0.00656241754 | AH97: 1.412466884 | AI97: 192.5 | AJ97: -0.001176470588 | AK97: 1019.74666 | AL97: 0.005484676408 | AM97: 1000 | AN97: 0.002562414287 | AO97: 1989.906441 | AP97: 5.357825059e-05 | AQ97: 1417.181361 | AR97: 5.561065223e-05
S98: 1999.528806 | T98: =NORMDIST(S98,$C$7,$C$8,0) -> 4.503057319e-05 | U98: 177046.9006 | V98: =EXP(-1*(LN(U98)-$U$104)^2/(2*$U$106^2))/(SQRT(2*PI())*($U$106*U98)) -> 6.456533942e-09 | W98: 0.004259416204 | X98: =$C$7*EXP(-W98*$C$7) -> 2.052311781 | Y98: 211.7384 | Z98: -0.0007136689005 | AA98: 1577.877712 | AB98: =EXP((AA98-$AA$104)/$AA$106)*EXP(-EXP((AA98-$AA$104)/$AA$106))/$AA$106 -> 0.003901577881 | AC98: 1426.452058 | AD98: =NORMDIST(AC98,$C$3,$C$4,0) -> 4.673873293e-05 | AE98: 113633.5316 | AF98: =EXP(-1*(LN(AE98)-$AE$104)^2/(2*$AE$106^2))/(SQRT(2*PI())*($AE$106*AE98)) -> 1.013744328e-08 | AG98: 0.006631485088 | AH98: =$C$3*EXP(-AG98*$C$3) -> 1.318203983 | AI98: 184 | AJ98: -0.001176470588 | AK98: 1020.590808 | AL98: 0.003974889045 | AM98: 1000 | AN98: 0.002562414287 | AO98: 1999.528806 | AP98: =OFFSET($R$2,ROW(AO98)-2,2*$AT$7) -> 4.503057319e-05 | AQ98: 1426.452058 | AR98: 4.673873293e-05
S99: 2009.151172 | T99: 3.770226978e-05 | U99: 178891.1392 | V99: 6.323887884e-09 | W99: 0.004303778429 | X99: 1.915347959 | Y99: 197.7263 | Z99: -0.0007136689005 | AA99: 1578.737722 | AB99: 0.002722342424 | AC99: 1435.722755 | AD99: 3.913244255e-05 | AE99: 114817.2142 | AF99: 9.928410858e-09 | AG99: 0.006700552636 | AH99: 1.230231845 | AI99: 175.5 | AJ99: -0.001176470588 | AK99: 1021.434957 | AL99: 0.002773495598 | AM99: 1000 | AN99: 0.002562414287 | AO99: 2009.151172 | AP99: 3.770226978e-05 | AQ99: 1435.722755 | AR99: 3.913244255e-05
S100: 2018.773537 | T100: 3.144623055e-05 | U100: 180735.3777 | V100: 6.195216315e-09 | W100: 0.004348140653 | X100: 1.787524605 | Y100: 183.7142 | Z100: -0.0007136689005 | AA100: 1579.597732 | AB100: 0.001822431982 | AC100: =($AC$101-$AC$2)/100+AC99 -> 1444.993452 | AD100: 3.26390909e-05 | AE100: 116000.8968 | AF100: 9.725656006e-09 | AG100: 0.006769620183 | AH100: 1.148130647 | AI100: 167 | AJ100: -0.001176470588 | AK100: 1022.279105 | AL100: 0.00185667572 | AM100: 1000 | AN100: 0.002562414287 | AO100: 2018.773537 | AP100: 3.144623055e-05 | AQ100: 1444.993452 | AR100: 3.26390909e-05
S101: =_xlfn.NORM.INV(0.999,C7,C8) -> 2038.018268 | T101: 2.162688726e-05 | U101: =_xlfn.LOGNORM.INV(0.999,U104,U106) -> 184423.8548 | V101: 5.94917858e-09 | W101: =-LN(1-0.999)/C7 -> 0.004436865103 | X101: 1.5569 | Y101: =C8 -> 155.69 | Z101: -0.0007136689005 | AA101: =$AA$106*LN(-1*LN(1-0.999))+$AA$104 -> 1581.317752 | AB101: 0.0007100367568 | AC101: =_xlfn.NORM.INV(0.999,$C$3,$C$4) -> 1463.534846 | AD101: 2.244726718e-05 | AE101: =_xlfn.LOGNORM.INV(0.999,AE104,AE106) -> 118368.2621 | AF101: 9.338001242e-09 | AG101: =-LN(1-0.999)/C3 -> 0.006907755279 | AH101: 1 | AI101: =C4 -> 150 | AJ101: -0.001176470588 | AK101: =$AK$106*LN(-1*LN(1-0.999))+$AK$104 -> 1023.967401 | AL101: 0.0007233784412 | AM101: 1000 | AN101: 0.002562414287 | AO101: 2038.018268 | AP101: 2.162688726e-05 | AQ101: 1463.534846 | AR101: 2.244726718e-05
U103: m | AA103: m | AE103: m | AK103: m
U104: =LN(C7)-U106^2/2 -> 2.641423947 | AA104: =C7+AA106*0.57721566 -> 1562.515575 | AE104: =LN(C3)-AE106^2/2 -> 2.267935872 | AK104: =C3+AK106*0.57721566 -> 1005.512004
U105: s | AA105: b | AE105: s | AK105: b
U106: =LN(C8)/NORMSINV(0.95) -> 3.068885138 | AA106: =(6*C8)^0.5/PI() -> 9.72872913 | AE106: =LN(C4)/NORMSINV(0.95) -> 3.046249959 | AK106: =(6*C4)^0.5/PI() -> 9.549296586

Sheet EXAMPLE, Exp
A1: Notes | B1: Load (Stress) | D1: Coefficient of Variation, δ = σ/μ | E1: Safety Factor, SF = μc / μL | S1: x | T1: Normal Strength | U1: x | V1: Lognormal Strength | W1: x | X1: Exponential Strength | Y1: x | Z1: Uniform Strength | AA1: x | AB1: Gumbel Strength | AC1: y | AD1: Normal Stress | AE1: y | AF1: Lognormal Stress | AG1: y | AH1: Exponential Stress | AI1: y | AJ1: Uniform Stress | AK1: y | AL1: Gumbel | AM1: y | AN1: Constant | AO1: y | AP1: =C6&" Strength" -> Exponential Strength | AQ1: y | AR1: =C2&" Stress" -> Exponential Stress | AT1: Strength | AU1: Stress
A2: Inputs are yellow | B2: Select Distribution: | C2: Exponential | S2: =_xlfn.NORM.INV(0.001,$C$7,$C$8) -> 18.85082993 | T2: =NORMDIST(S2,$C$7,$C$8,0) -> 2.162549825e-05 | U2: =_xlfn.LOGNORM.INV(0.001,U104,U106) -> 0.0003428462718 | V2: =EXP(-1*(LN(U2)-$U$104)^2/(2*$U$106^2))/(SQRT(2*PI())*($U$106*U2)) -> 3.20014122 | W2: =-LN(1-0.001)/C7 -> 2.001000667e-06 | X2: =$C$7*EXP(-W2*$C$7) -> 499.5 | Y2: =C7 -> 500 | Z2: =1/($C$8-$C$7) -> -0.002904443799 | AA2: =$AA$106*LN(-1*LN(1-0.001))+$AA$104 -> 438.4147835 | AB2: =EXP((AA2-$AA$104)/$AA$106)*EXP(-EXP((AA2-$AA$104)/$AA$106))/$AA$106 -> 0.0001027336379 | AC2: =_xlfn.NORM.INV(0.001,$C$3,$C$4) -> -413.5348459 | AD2: =NORMDIST(AC2,$C$3,$C$4,0) -> 2.244726718e-05 | AE2: =_xlfn.LOGNORM.INV(0.001,AE104,AE106) -> 3.941293727e-05 | AF2: =EXP(-1*(LN(AE2)-$AE$104)^2/(2*$AE$106^2))/(SQRT(2*PI())*($AE$106*AE2)) -> 28.04467403 | AG2: =-LN(1-0.001)/C3 -> 2.001000667e-05 | AH2: =$C$3*EXP(-AG2*$C$3) -> 49.95 | AI2: =C3 -> 50 | AJ2: =1/($C$4-$C$3) -> 0.01 | AK2: =$AK$106*LN(-1*LN(1-0.001))+$AK$104 -> -10.44742373 | AL2: =EXP((AK2-$AK$104)/$AK$106)*EXP(-EXP((AK2-$AK$104)/$AK$106))/$AK$106 -> 0.0001046673778 | AM2: =$C$3 -> 50 | AN2: 0 | AO2: =OFFSET($R$2,ROW(AO2)-2,2*$AT$7-1) -> 2.001000667e-06 | AP2: =OFFSET($R$2,ROW(AO2)-2,2*$AT$7) -> 499.5 | AQ2: =OFFSET($AB$2,ROW(AQ2)-2,2*$AU$8-1) -> 2.001000667e-05 | AR2: =OFFSET($AB$2,ROW(AQ2)-2,2*$AU$8) -> 49.95 | AT2: Normal | AU2: Normal
A3: Results are green | B3: =IF(C2="Uniform", "Enter Min:","Enter Mean:") -> Enter Mean: | C3: 50 | D3: =C3/C3 -> 1 | E3: =C7/C3 -> 10 | S3: =($S$101-$S$2)/100+S2 -> 28.47381333 | T3: 2.612659863e-05 | U3: =($U$101-$U$2)/100+U2 -> 592.2798961 | V3: 6.203942957e-05 | W3: =($W$101-$W$2)/100+W2 -> 0.0001401360962 | X3: 466.1651872 | Y3: =($Y$101-$Y$2)/100+Y2 -> 496.557 | Z3: -0.002904443799 | AA3: =($AA$101-$AA$2)/100+AA2 -> 439.274821 | AB3: 0.0001122183051 | AC3: =($AC$101-$AC$2)/100+AC2 -> -404.264149 | AD3: 2.711940937e-05 | AE3: =($AE$101-$AE$2)/100+AE2 -> 59.18417005 | AF3: 0.0006366397823 | AG3: =($AG$101-$AG$2)/100+AG2 -> 0.001401360962 | AH3: 46.61651872 | AI3: =($AI$101-$AI$2)/100+AI2 -> 51 | AJ3: 0.01 | AK3: =($AK$101-$AK$2)/100+AK2 -> -9.603275479 | AL3: =EXP((AK3-$AK$104)/$AK$106)*EXP(-EXP((AK3-$AK$104)/$AK$106))/$AK$106 -> 0.0001143305734 | AM3: 50 | AN3: =MAX(AP:AP) -> 499.5 | AO3: 0.0001401360962 | AP3: 466.1651872 | AQ3: =OFFSET($AB$2,ROW(AQ3)-2,2*$AU$8-1) -> 0.001401360962 | AR3: =OFFSET($AB$2,ROW(AQ3)-2,2*$AU$8) -> 46.61651872 | AT3: Lognormal | AU3: Lognormal
A4: Replications | B4: =IF(C2="Lognormal","Enter Error Factor:",IF(C2="Normal","Enter Standard Deviation:",IF(C2="Gumbel","Enter Variance:",IF(C2="Uniform","Enter Max:","")))) ->  | C4: 150 | S4: =($S$101-$S$2)/100+S3 -> 38.09679673 | T4: 3.144421088e-05 | U4: =($U$101-$U$2)/100+U3 -> 1184.559449 | V4: 2.111700104e-05 | W4: =($W$101-$W$2)/100+W3 -> 0.0002782711918 | X4: 435.0550185 | Y4: =($Y$101-$Y$2)/100+Y3 -> 493.114 | Z4: -0.002904443799 | AA4: =($AA$101-$AA$2)/100+AA3 -> 440.1348585 | AB4: 0.0001225775766 | AC4: -394.9934521 | AD4: 3.26390909e-05 | AE4: =($AE$101-$AE$2)/100+AE3 -> 118.3683007 | AF4: 0.0002165887289 | AG4: =($AG$101-$AG$2)/100+AG3 -> 0.002782711918 | AH4: 43.50550185 | AI4: =($AI$101-$AI$2)/100+AI3 -> 52 | AJ4: 0.01 | AK4: =($AK$101-$AK$2)/100+AK3 -> -8.759127229 | AL4: 0.000124884836 | AM4: 50 | AN4: =MAX(AP:AP) -> 499.5 | AO4: 0.0002782711918 | AP4: 435.0550185 | AQ4: 0.002782711918 | AR4: 43.50550185 | AT4: Exponential | AU4: Exponential
A5: 100000 | B5: Capacity (Strength) | E5: Safety Index, β = f(SF,δ) | S5: 47.71978013 | T5: 3.769984832e-05 | U5: 1776.839003 | V5: 1.097940298e-05 | W5: 0.0004164062874 | X5: 406.0210294 | Y5: 489.671 | Z5: -0.002904443799 | AA5: 440.9948961 | AB5: 0.0001338918994 | AC5: -385.7227552 | AD5: 3.913244255e-05 | AE5: 177.5524313 | AF5: 0.0001125378972 | AG5: 0.004164062874 | AH5: 40.60210294 | AI5: 53 | AJ5: 0.01 | AK5: -7.914978979 | AL5: 0.0001364121265 | AM5: 50 | AN5: 499.5 | AO5: 0.0004164062874 | AP5: 406.0210294 | AQ5: 0.004164062874 | AR5: 40.60210294 | AT5: Uniform | AU5: Uniform
A6: Seed Value | B6: Select Distribution: | C6: Exponential | S6: 57.34276354 | T6: 4.502768105e-05 | U6: 2369.118556 | V6: 6.830335739e-06 | W6: 0.000554541383 | X6: 378.924663 | Y6: 486.228 | Z6: -0.002904443799 | AA6: 441.8549336 | AB6: 0.0001462490805 | AC6: -376.4520583 | AD6: 4.673873293e-05 | AE6: 236.736562 | AF6: 6.99668383e-05 | AG6: 0.00554541383 | AH6: 37.8924663 | AI6: 54 | AJ6: 0.01 | AK6: -7.070830728 | AL6: 0.0001490019051 | AM6: 50 | AN6: 499.5 | AO6: 0.000554541383 | AP6: 378.924663 | AQ6: 0.00554541383 | AR6: 37.8924663 | AT6: Gumbel | AU6: Gumbel
A7: 37 | B7: =IF(C6<>"Uniform","Enter Mean:","Enter Minimum Value") -> Enter Mean: | C7: 500 | D7: =C7/C7 -> 1 | E7: =(E3-1)/((D7^2)*(E3^2)+(D3^2))^0.5 -> 0.8955334712 | S7: 66.96574694 | T7: 5.357480947e-05 | U7: 2961.398109 | V7: 4.698096548e-06 | W7: 0.0006926764785 | X7: 353.6366095 | Y7: 482.785 | Z7: -0.002904443799 | AA7: 442.7149711 | AB7: 0.0001597449536 | AC7: -367.1813613 | AD7: 5.561065223e-05 | AE7: 295.9206926 | AF7: 4.809761435e-05 | AG7: 0.006926764785 | AH7: 35.36366095 | AI7: 55 | AJ7: 0.01 | AK7: -6.226682478 | AL7: 0.0001627518089 | AM7: 50 | AN7: 499.5 | AO7: 0.0006926764785 | AP7: 353.6366095 | AQ7: 0.006926764785 | AR7: 35.36366095 | AT7: =MATCH(C6,AT2:AT6,0) -> 3 | AU7: Constant
B8: =IF(C6="Lognormal","Enter Error Factor:",IF(C6="Normal","Enter Standard Deviation:",IF(C6="Uniform","Enter Maximum Value",IF(C6="Gumbel","Enter Variance","")))) ->  | C8: 155.7 | S8: 76.58873034 | T8: 6.350132174e-05 | U8: 3553.677662 | V8: 3.446901913e-06 | W8: 0.0008308115741 | X8: 330.0361888 | Y8: 479.342 | Z8: -0.002904443799 | AA8: 443.5750086 | AB8: 0.0001744841027 | AC8: -357.9106644 | AD8: 6.591437197e-05 | AE8: 355.1048232 | AF8: 3.526971376e-05 | AG8: 0.008308115741 | AH8: 33.00361888 | AI8: 56 | AJ8: 0.01 | AK8: -5.382534228 | AL8: 0.0001777683908 | AM8: 50 | AN8: 499.5 | AO8: 0.0008308115741 | AP8: 330.0361888 | AQ8: 0.008308115741 | AR8: 33.00361888 | AU8: =MATCH(C2,AU2:AU7,0) -> 3
B9: Results | S9: 86.21171374 | T9: 7.498009226e-05 | U9: 4145.957215 | V9: 2.645579714e-06 | W9: 0.0009689466697 | X9: 308.0107742 | Y9: 475.899 | Z9: -0.002904443799 | AA9: 444.4350462 | AB9: 0.0001905806512 | AC9: -348.6399675 | AD9: 7.782933577e-05 | AE9: 414.2889539 | AF9: 2.705719206e-05 | AG9: 0.009689466697 | AH9: 30.80107742 | AI9: 57 | AJ9: 0.01 | AK9: -4.538385978 | AL9: 0.0001941679223 | AM9: 50 | AN9: 499.5 | AO9: 0.0009689466697 | AP9: 308.0107742 | AQ9: 0.009689466697 | AR9: 30.80107742
A10: Do not insert or delete any rows or columns. There are formulas on the right that would be corrupted. | B10: Mean Failure Probability | C10: 0.09093013951 | S10: 95.83469714 | T10: 8.819627679e-05 | U10: 4738.236769 | V10: 2.099410028e-06 | W10: 0.001107081765 | X10: 287.4552557 | Y10: 472.456 | Z10: -0.002904443799 | AA10: 445.2950837 | AB10: 0.0002081591187 | AC10: -339.3692706 | AD10: 9.15477353e-05 | AE10: 473.4730845 | AF10: 2.146164518e-05 | AG10: 0.01107081765 | AH10: 28.74552557 | AI10: 58 | AJ10: 0.01 | AK10: -3.694237728 | AL10: 0.0002120772666 | AM10: 50 | AN10: 499.5 | AO10: 0.001107081765 | AP10: 287.4552557 | AQ10: 0.01107081765 | AR10: 28.74552557
B11: 90% Half-Width About Mean, +/- | C11: 0.0004316886583 | E11: Closed Form for Exponential Dist. | S11: 105.4576805 | T11: 0.0001033464609 | U11: 5330.516322 | V11: 1.709365442e-06 | W11: 0.001245216861 | X11: 268.2715377 | Y11: 469.013 | Z11: -0.002904443799 | AA11: 446.1551212 | AB11: 0.0002273553525 | AC11: -330.0985737 | AD11: 0.0001072736264 | AE11: 532.6572152 | AF11: 1.746696567e-05 | AG11: 0.01245216861 | AH11: 26.82715377 | AI11: 59 | AJ11: 0.01 | AK11: -2.850089477 | AL11: 0.0002316348282 | AM11: 50 | AN11: 499.5 | AO11: 0.001245216861 | AP11: 268.2715377 | AQ11: 0.01245216861 | AR11: 26.82715377
B12: Variance | C12: 0.006887771277 | S12: 115.0806639 | T12: 0.0001206374202 | U12: 5922.795875 | V12: 1.420512214e-06 | W12: 0.001383351956 | X12: 250.3680713 | Y12: 465.57 | Z12: -0.002904443799 | AA12: 447.0151587 | AB12: 0.00024831754 | AC12: -320.8278767 | AD12: 0.0001252216422 | AE12: 591.8413458 | AF12: 1.450960351e-05 | AG12: 0.01383351956 | AH12: 25.03680713 | AI12: 60 | AJ12: 0.01 | AK12: -2.005941227 | AL12: 0.0002529915838 | AM12: 50 | AN12: 499.5 | AO12: 0.001383351956 | AP12: 250.3680713 | AQ12: 0.01383351956 | AR12: 25.03680713
B13: Mean Success Probability | C13: 0.9090698605 | E13: =C7/(C3+C7) -> 0.9090909091 | F13: ≠ | G13: =_xlfn.NORM.S.DIST(E7,TRUE) -> 0.8147490092 | H13: via | S13: 124.7036473 | T13: 0.0001402844552 | U13: 6515.075428 | V13: 1.200279676e-06 | W13: 0.001521487052 | X13: 233.6594171 | Y13: 462.127 | Z13: -0.002904443799 | AA13: 447.8751963 | AB13: 0.0002712073075 | AC13: -311.5571798 | AD13: 0.0001456152645 | AE13: 651.0254764 | AF13: 1.225549528e-05 | AG13: 0.01521487052 | AH13: 23.36594171 | AI13: 61 | AJ13: 0.01 | AK13: -1.161792977 | AL13: 0.000276312202 | AM13: 50 | AN13: 499.5 | AO13: 0.001521487052 | AP13: 233.6594171 | AQ13: 0.01521487052 | AR13: 23.36594171
B14: Run Time (Minutes) | C14: 0.01477864583 | G14: "NORM.S.DIST(E7,TRUE)" | S14: 134.3266307 | T14: 0.000162509268 | U14: 7107.354982 | V14: 1.02831115e-06 | W14: 0.001659622148 | X14: 218.0658376 | Y14: 458.684 | Z14: -0.002904443799 | AA14: 448.7352338 | AB14: 0.000296200913 | AC14: -302.2864829 | AD14: 0.0001686846202 | AE14: 710.2096071 | AF14: 1.049589446e-05 | AG14: 0.01659622148 | AH14: 21.80658376 | AI14: 62 | AJ14: 0.01 | AK14: -0.3176447268 | AL14: 0.0003017762584 | AM14: 50 | AN14: 499.5 | AO14: 0.001659622148 | AP14: 218.0658376 | AQ14: 0.01659622148 | AR14: 21.80658376
S15: 143.9496141 | T15: 0.0001875373583 | U15: 7699.634535 | V15: 8.913268048e-07 | W15: 0.001797757243 | X15: 203.512917 | Y15: 455.241 | Z15: -0.002904443799 | AA15: 449.5952713 | AB15: 0.0003234905393 | AC15: -293.015786 | AD15: 0.0001946637779 | AE15: 769.3937377 | AF15: 9.094651474e-06 | AG15: 0.01797757243 | AH15: 20.3512917 | AI15: 63 | AJ15: 0.01 | AK15: 0.5265035234 | AL15: 0.0003295795533 | AM15: 50 | AN15: 499.5 | AO15: 0.001797757243 | AP15: 203.512917 | AQ15: 0.01797757243 | AR15: 20.3512917
S16: 153.5725975 | T16: 0.0002155949231 | U16: 8291.914088 | V16: 7.803500509e-07 | W16: 0.001935892339 | X16: 189.9312053 | Y16: 451.798 | Z16: -0.002904443799 | AA16: 450.4553088 | AB16: 0.0003532856956 | AC16: -283.7450891 | AD16: 0.0002237875302 | AE16: 828.5778683 | AF16: 7.959753447e-06 | AG16: 0.01935892339 | AH16: 18.99312053 | AI16: 64 | AJ16: 0.01 | AK16: 1.370651774 | AL16: 0.0003599355393 | AM16: 50 | AN16: 499.5 | AO16: 0.001935892339 | AP16: 189.9312053 | AQ16: 0.01935892339 | AR16: 18.99312053
S17: 163.195581 | T17: 0.0002469052594 | U17: 8884.193641 | V17: 6.891284715e-07 | W17: 0.002074027434 | X17: 177.2558876 | Y17: 448.355 | Z17: -0.002904443799 | AA17: 451.3153464 | AB17: 0.0003858147349 | AC17: -274.4743921 | AD17: 0.0002562876593 | AE17: 887.761999 | AF17: 7.027123624e-06 | AG17: 0.02074027434 | AH17: 17.72558876 | AI17: 65 | AJ17: 0.01 | AK17: 2.214800024 | AL17: 0.0003930768679 | AM17: 50 | AN17: 499.5 | AO17: 0.002074027434 | AP17: 177.2558876 | AQ17: 0.02074027434 | AR17: 17.72558876
S18: 172.8185644 | T18: 0.0002816846804 | U18: 9476.473194 | V18: 6.131940192e-07 | W18: 0.00221216253 | X18: 165.4264745 | Y18: 444.912 | Z18: -0.002904443799 | AA18: 452.1753839 | AB18: 0.0004213264961 | AC18: -265.2036952 | AD18: 0.0002923886982 | AE18: 946.9461296 | AF18: 6.250980739e-06 | AG18: 0.0221216253 | AH18: 16.54264745 | AI18: 66 | AJ18: 0.01 | AK18: 3.058948274 | AL18: 0.0004292570616 | AM18: 50 | AN18: 499.5 | AO18: 0.00221216253 | AP18: 165.4264745 | AQ18: 0.0221216253 | AR18: 16.54264745
S19: 182.4415478 | T19: 0.0003201379732 | U19: 10068.75275 | V19: 5.492821537e-07 | W19: 0.002350297625 | X19: 154.3865135 | Y19: 441.469 | Z19: -0.002904443799 | AA19: 453.0354214 | AB19: 0.0004600920778 | AC19: -255.9329983 | AD19: 0.0003323032162 | AE19: 1006.13026 | AF19: 5.59788131e-06 | AG19: 0.02350297625 | AH19: 15.43865135 | AI19: 67 | AJ19: 0.01 | AK19: 3.903096524 | AL19: 0.000468752322 | AM19: 50 | AN19: 499.5 | AO19: 0.002350297625 | AP19: 154.3865135 | AQ19: 0.02350297625 | AR19: 15.43865135
S20: 192.0645312 | T20: 0.0003624534431 | U20: 10661.0323 | V20: 4.949609632e-07 | W20: 0.002488432721 | X20: 144.0833192 | Y20: 438.026 | Z20: -0.002904443799 | AA20: 453.8954589 | AB20: 0.0005024067543 | AC20: -246.6623014 | AD20: 0.000376226674 | AE20: 1065.314391 | AF20: 5.042916195e-06 | AG20: 0.02488432721 | AH20: 14.40833192 | AI20: 68 | AJ20: 0.01 | AK20: 4.747244774 | AL20: 0.0005118634814 | AM20: 50 | AN20: 499.5 | AO20: 0.002488432721 | AP20: 144.0833192 | AQ20: 0.02488432721 | AR20: 14.40833192
S21: 201.6875146 | T21: 0.0004087976062 | U21: 11253.31185 | V21: 4.483875568e-07 | W21: 0.002626567817 | X21: 134.4677227 | Y21: 434.583 | Z21: -0.002904443799 | AA21: 454.7554965 | AB21: 0.000548592041 | AC21: -237.3916045 | AD21: 0.0004243319152 | AE21: 1124.498522 | AF21: 4.5672127e-06 | AG21: 0.02626567817 | AH21: 13.44677227 | AI21: 69 | AJ21: 0.01 | AK21: 5.591393024 | AL21: 0.0005589181068 | AM21: 50 | AN21: 499.5 | AO21: 0.002626567817 | AP21: 134.4677227 | AQ21: 0.02626567817 | AR21: 13.44677227
S22: 211.310498 | T22: 0.0004593096121 | U22: 11845.59141 | V22: 4.081440207e-07 | W22: 0.002764702912 | X22: 125.4938361 | Y22: 431.14 | Z22: -0.002904443799 | AA22: 455.615534 | AB22: 0.0005989979182 | AC22: -228.1209076 | AD22: 0.0004767633774 | AE22: 1183.682652 | AF22: 4.156252737e-06 | AG22: 0.02764702912 | AH22: 12.54938361 | AI22: 70 | AJ22: 0.01 | AK22: 6.435541275 | AL22: 0.0006102727663 | AM22: 50 | AN22: 499.5 | AO22: 0.002764702912 | AP22: 125.4938361 | AQ22: 0.02764702912 | AR22: 12.54938361
S23: 220.9334814 | T23: 0.0005140954971 | U23: 12437.87096 | V23: 3.731244879e-07 | W23: 0.002902838008 | X23: 117.118834 | Y23: 427.697 | Z23: -0.002904443799 | AA23: 456.4755715 | AB23: 0.0006540052229 | AC23: -218.8502106 | AD23: 0.000533631126 | AE23: 1242.866783 | AF23: 3.798715184e-06 | AG23: 0.02902838008 | AH23: 11.7118834 | AI23: 71 | AJ23: 0.01 | AK23: 7.279689525 | AL23: 0.0006663154653 | AM23: 50 | AN23: 499.5 | AO23: 0.002902838008 | AP23: 117.118834 | AQ23: 0.02902838008 | AR23: 11.7118834
S24: 230.5564648 | T24: 0.0005732223846 | U24: 13030.15051 | V24: 3.424558491e-07 | W24: 0.003040973103 | X24: 109.3027491 | Y24: 424.254 | Z24: -0.002904443799 | AA24: 457.335609 | AB24: 0.0007140282153 | AC24: -209.5795137 | AD24: 0.0005950048352 | AE24: 1302.050913 | AF24: 3.485663201e-06 | AG24: 0.03040973103 | AH24: 10.93027491 | AI24: 72 | AJ24: 0.01 | AK24: 8.123837775 | AL24: 0.0007274682614 | AM24: 50 | AN24: 499.5 | AO24: 0.003040973103 | AP24: 109.3027491 | AQ24: 0.03040973103 | AR24: 10.93027491
S25: 240.1794482 | T25: 0.0006367127678 | U25: 13622.43007 | V25: 3.154410908e-07 | W25: 0.003179108199 | X25: 102.0082813 | Y25: 420.811 | Z25: -0.002904443799 | AA25: 458.1956466 | AB25: 0.0007795173282 | AC25: -200.3088168 | AD25: 0.000660907853 | AE25: 1361.235044 | AF25: 3.209963544e-06 | AG25: 0.03179108199 | AH25: 10.20082813 | AI25: 73 | AJ25: 0.01 | AK25: 8.967986025 | AL25: 0.0007941900661 | AM25: 50 | AN25: 499.5 | AO25: 0.003179108199 | AP25: 102.0082813 | AQ25: 0.03179108199 | AR25: 10.20082813
S26: 249.8024316 | T26: 0.0007045390213 | U26: 14214.70962 | V26: 2.915181499e-07 | W26: 0.003317243294 | X26: 95.2006197 | Y26: 417.368 | Z26: -0.002904443799 | AA26: 459.0556841 | AB26: 0.0008509621071 | AC26: -191.0381199 | AD26: 0.0007313115041 | AE26: 1420.419175 | AF26: 2.965864957e-06 | AG26: 0.03317243294 | AH26: 9.52006197 | AI26: 74 | AJ26: 0.01 | AK26: 9.812134275 | AL26: 0.0008669796393 | AM26: 50 | AN26: 499.5 | AO26: 0.003317243294 | AP26: 95.2006197 | AQ26: 0.03317243294 | AR26: 9.52006197
S27: 259.425415 | T27: 0.0007766183011 | U27: 14806.98917 | V27: 2.702296004e-07 | W27: 0.00345537839 | X27: 88.84727668 | Y27: 413.925 | Z27: -0.002904443799 | AA27: 459.9157216 | AB27: 0.0009288943441 | AC27: -181.767423 | AD27: 0.0008061297965 | AE27: 1479.603305 | AF27: 2.748687588e-06 | AG27: 0.0345537839 | AH27: 8.884727668 | AI27: 75 | AJ27: 0.01 | AK27: 10.65628253 | AL27: 0.0009463787831 | AM27: 50 | AN27: 499.5 | AO27: 0.00345537839 | AP27: 88.84727668 | AQ27: 0.0345537839 | AR27: 8.884727668
S28: 269.0483984 | T28: 0.0008528079986 | U28: 15399.26873 | V28: 2.512000228e-07 | W28: 0.003593513486 | X28: 82.91793267 | Y28: 410.482 | Z28: -0.002904443799 | AA28: 460.7757592 | AB28: 0.001013891411 | AC28: -172.496726 | AD28: 0.0008852147025 | AE28: 1538.787436 | AF28: 2.554591155e-06 | AG28: 0.03593513486 | AH28: 8.291793267 | AI28: 76 | AJ28: 0.01 | AK28: 11.50043078 | AL28: 0.001032975737 | AM28: 50 | AN28: 499.5 | AO28: 0.003593513486 | AP28: 82.91793267 | AQ28: 0.03593513486 | AR28: 8.291793267
S29: 278.6713818 | T29: 0.0009329019164 | U29: 15991.54828 | V29: 2.341189023e-07 | W29: 0.003731648581 | X29: 77.3842915 | Y29: 407.039 | Z29: -0.002904443799 | AA29: 461.6357967 | AB29: 0.001106579795 | AC29: -163.2260291 | AD29: 0.0009683521892 | AE29: 1597.971567 | AF29: 2.380399774e-06 | AG29: 0.03731648581 | AH29: 7.73842915 | AI29: 77 | AJ29: 0.01 | AK29: 12.34457903 | AL29: 0.00112740878 | AM29: 50 | AN29: 499.5 | AO29: 0.003731648581 | AP29: 77.3842915 | AQ29: 0.03731648581 | AR29: 7.73842915
S30: 288.2943652 | T30: 0.001016627331 | U30: 16583.82783 | V30: 2.187275615e-07 | W30: 0.003869783677 | X30: 72.21994542 | Y30: 403.596 | Z30: -0.002904443799 | AA30: 462.4958342 | AB30: 0.001207638826 | AC30: -153.9553322 | AD30: 0.00105525917 | AE30: 1657.155697 | AF30: 2.223468122e-06 | AG30: 0.03869783677 | AH30: 7.221994542 | AI30: 78 | AJ30: 0.01 | AK30: 13.18872728 | AL30: 0.00123037003 | AM30: 50 | AN30: 499.5 | AO30: 0.003869783677 | AP30: 72.21994542 | AQ30: 0.03869783677 | AR30: 7.221994542
S31: 297.9173486 | T31: 0.001103643101 | U31: 17176.10739 | V31: 2.048090718e-07 | W31: 0.004007918772 | X31: 67.400249 | Y31: 400.153 | Z31: -0.002904443799 | AA31: 463.3558717 | AB31: 0.001317804607 | AC31: -144.6846353 | AD31: 0.001145581539 | AE31: 1716.339828 | AF31: 2.081578126e-06 | AG31: 0.04007918772 | AH31: 6.7400249 | AI31: 79 | AJ31: 0.01 | AK31: 14.03287553 | AL31: 0.001342609445 | AM31: 50 | AN31: 499.5 | AO31: 0.004007918772 | AP31: 67.400249 | AQ31: 0.04007918772 | AR31: 6.7400249
S32: 307.540332 | T32: 0.001193538961 | U32: 17768.38694 | V32: 1.921803909e-07 | W32: 0.004146053868 | X32: 62.90220159 | Y32: 396.71 | Z32: -0.002904443799 | AA32: 464.2159093 | AB32: 0.00143787412 | AC32: -135.4139384 | AD32: 0.001238893441 | AE32: 1775.523959 | AF32: 1.952858456e-06 | AG32: 0.04146053868 | AH32: 6.290220159 | AI32: 80 | AJ32: 0.01 | AK32: 14.87702378 | AL32: 0.001464939009 | AM32: 50 | AN32: 499.5 | AO32: 0.004146053868 | AP32: 62.90220159 | AQ32: 0.04146053868 | AR32: 6.290220159
S33: 317.1633154 | T33: 0.001285836127 | U33: 18360.66649 | V33: 1.806861796e-07 | W33: 0.004284188963 | X33: 58.7043375 | Y33: 393.267 | Z33: -0.002904443799 | AA33: 465.0759468 | AB33: 0.001568709502 | AC33: -126.1432415 | AD33: 0.001334697899 | AE33: 1834.708089 | AF33: 1.835721218e-06 | AG33: 0.04284188963 | AH33: 5.87043375 | AI33: 81 | AJ33: 0.01 | AK33: 15.72117203 | AL33: 0.001598237086 | AM33: 50 | AN33: 499.5 | AO33: 0.004284188963 | AP33: 58.7043375 | AQ33: 0.04284188963 | AR33: 5.87043375
S34: 326.7862988 | T34: 0.001379989311 | U34: 18952.94605 | V34: 1.701939006e-07 | W34: 0.004422324059 | X34: 54.78662358 | Y34: 389.824 | Z34: -0.002904443799 | AA34: 465.9359843 | AB34: 0.001711242464 | AC34: -116.8725445 | AD34: 0.001432428904 | AE34: 1893.89222 | AF34: 1.72881178e-06 | AG34: 0.04422324059 | AH34: 5.478662358 | AI34: 82 | AJ34: 0.01 | AK34: 16.56532028 | AL34: 0.001743452925 | AM34: 50 | AN34: 499.5 | AO34: 0.004422324059 | AP34: 54.78662358 | AQ34: 0.04422324059 | AR34: 5.478662358
S35: 336.4092822 | T35: 0.001475390209 | U35: 19545.2256 | V35: 1.605899022e-07 | W35: 0.004560459155 | X35: 51.13036364 | Y35: 386.381 | Z35: -0.002904443799 | AA35: 466.7960218 | AB35: 0.00186647882 | AC35: -107.6018476 | AD35: 0.001531455037 | AE35: 1953.07635 | AF35: 1.630968691e-06 | AG35: 0.04560459155 | AH35: 5.113036364 | AI35: 83 | AJ35: 0.01 | AK35: 17.40946853 | AL35: 0.001901611271 | AM35: 50 | AN35: 499.5 | AO35: 0.004560459155 | AP35: 51.13036364 | AQ35: 0.04560459155 | AR35: 5.113036364
S36: 346.0322656 | T36: 0.001571372496 | U36: 20137.50515 | V36: 1.51776268e-07 | W36: 0.00469859425 | X36: 47.71810919 | Y36: 382.938 | Z36: -0.002904443799 | AA36: 467.6560594 | AB36: 0.002035503086 | AC36: -98.3311507 | AD36: 0.001631084651 | AE36: 2012.260481 | AF36: 1.541191427e-06 | AG36: 0.0469859425 | AH36: 4.771810919 | AI36: 84 | AJ36: 0.01 | AK36: 18.25361678 | AL36: 0.002073817055 | AM36: 50 | AN36: 499.5 | AO36: 0.00469859425 | AP36: 47.71810919 | AQ36: 0.0469859425 | AR36: 4.771810919
S37: 355.655249 | T37: 0.001667218319 | U37: 20729.78471 | V37: 1.436682637e-07 | W37: 0.004836729346 | X37: 44.53357618 | Y37: 379.495 | Z37: -0.002904443799 | AA37: 468.5160969 | AB37: 0.002219483084 | AC37: -89.06045378 | AD37: 0.001730572615 | AE37: 2071.444612 | AF37: 1.458614275e-06 | AG37: 0.04836729346 | AH37: 4.453357618 | AI37: 85 | AJ37: 0.01 | AK37: 19.09776503 | AL37: 0.002261260081 | AM37: 50 | AN37: 499.5 | AO37: 0.004836729346 | AP37: 44.53357618 | AQ37: 0.04836729346 | AR37: 4.453357618
S38: 365.2782324 | T38: 0.001762166234 | U38: 21322.06426 | V38: 1.361922568e-07 | W38: 0.004974864441 | X38: 41.56156732 | Y38: 376.052 | Z38: -0.002904443799 | AA38: 469.3761344 | AB38: 0.002419674494 | AC38: -79.78975686 | AD38: 0.001829128551 | AE38: 2130.628742 | AF38: 1.382485035e-06 | AG38: 0.04974864441 | AH38: 4.156156732 | AI38: 86 | AJ38: 0.01 | AK38: 19.94191328 | AL38: 0.002465219664 | AM38: 50 | AN38: 499.5 | AO38: 0.004974864441 | AP38: 41.56156732 | AQ38: 0.04974864441 | AR38: 4.156156732
S39: 374.9012158 | T39: 0.001855420509 | U39: 21914.34381 | V39: 1.292840099e-07 | W39: 0.005112999537 | X39: 38.78789952 | Y39: 372.609 | Z39: -0.002904443799 | AA39: 470.2361719 | AB39: 0.002637425238 | AC39: -70.51905994 | AD39: 0.001925926489 | AE39: 2189.812873 | AF39: 1.312147568e-06 | AG39: 0.05112999537 | AH39: 3.878789952 | AI39: 87 | AJ39: 0.01 | AK39: 20.78606153 | AL39: 0.002687069098 | AM39: 50 | AN39: 499.5 | AO39: 0.005112999537 | AP39: 38.78789952 | AQ39: 0.05112999537 | AR39: 3.878789952
S40: 384.5241992 | T40: 0.001946161631 | U40: 22506.62337 | V40: 1.228872736e-07 | W40: 0.005251134632 | X40: 36.19933622 | Y40: 369.166 | Z40: -0.002904443799 | AA40: 471.0962095 | AB40: 0.00287417961 | AC40: -61.24836302 | AD40: 0.002020115773 | AE40: 2248.997004 | AF40: 1.247027391e-06 | AG40: 0.05251134632 | AH40: 3.619933622 | AI40: 88 | AJ40: 0.01 | AK40: 21.63020978 | AL40: 0.002928279862 | AM40: 50 | AN40: 499.5 | AO40: 0.005251134632 | AP40: 36.19933622 | AQ40: 0.05251134632 | AR40: 3.619933622
S41: 394.1471826 | T41: 0.002033557867 | U41: 23098.90292 | V41: 1.169526199e-07 | W41: 0.005389269728 | X41: 33.78352422 | Y41: 365.723 | Z41: -0.002904443799 | AA41: 471.956247 | AB41: 0.003131481977 | AC41: -51.9776661 | AD41: 0.002110833066 | AE41: 2308.181134 | AF41: 1.18661975e-06 | AG41: 0.05389269728 | AH41: 3.378352422 | AI41: 89 | AJ41: 0.01 | AK41: 22.47435803 | AL41: 0.003190425393 | AM41: 50 | AN41: 499.5 | AO41: 0.005389269728 | AP41: 33.78352422 | AQ41: 0.05389269728 | AR41: 3.378352422
S42: 403.770166 | T42: 0.002116777643 | U42: 23691.18247 | V42: 1.114364698e-07 | W42: 0.005527404824 | X42: 31.52893472 | Y42: 362.28 | Z42: -0.002904443799 | AA42: 472.8162845 | AB42: 0.003410979917 | AC42: -42.70696919 | AD42: 0.002197215194 | AE42: 2367.365265 | AF42: 1.130479671e-06 | AG42: 0.05527404824 | AH42: 3.152893472 | AI42: 90 | AJ42: 0.01 | AK42: 23.31850628 | AL42: 0.00347518428 | AM42: 50 | AN42: 499.5 | AO42: 0.005527404824 | AP42: 31.52893472 | AQ42: 0.05527404824 | AR42: 3.152893472
S43: 413.3931494 | T43: 0.002195002507 | U43: 24283.46202 | V43: 1.063002796e-07 | W43: 0.005665539919 | X43: 29.42480832 | Y43: 358.837 | Z43: -0.002904443799 | AA43: 473.676322 | AB43: 0.00371442654 | AC43: -33.43627227 | AD43: 0.002278412602 | AE43: 2426.549396 | AF43: 1.078213642e-06 | AG43: 0.05665539919 | AH43: 2.942480832 | AI43: 91 | AJ43: 0.01 | AK43: 24.16265453 | AL43: 0.003784342634 | AM43: 50 | AN43: 499.5 | AO43: 0.005665539919 | AP43: 29.42480832 | AQ43: 0.05665539919 | AR43: 2.942480832
S44: 423.0161328 | T44: 0.002267440381 | U44: 24875.74158 | V44: 1.015098568e-07 | W44: 0.005803675015 | X44: 27.46110366 | Y44: 355.394 | Z44: -0.002904443799 | AA44: 474.5363596 | AB44: 0.004043681776 | AC44: -24.16557535 | AD44: 0.002353603116 | AE44: 2485.733526 | AF44: 1.029472608e-06 | AG44: 0.05803675015 | AH44: 2.746110366 | AI44: 92 | AJ44: 0.01 | AK44: 25.00680278 | AL44: 0.004119795392 | AM44: 50 | AN44: 499.5 | AO44: 0.005803675015 | AP44: 27.46110366 | AQ44: 0.05803675015 | AR44: 2.746110366
S45: 432.6391162 | T45: 0.002333338832 | U45: 25468.02113 | V45: 9.703478163e-08 | W45: 0.00594181011 | X45: 25.62844951 | Y45: 351.951 | Z45: -0.002904443799 | AA45: 475.3963971 | AB45: 0.004400712303 | AC45: -14.89487843 | AD45: 0.002422005708 | AE45: 2544.917657 | AF45: 9.839460673e-07 | AG45: 0.0594181011 | AH45: 2.562844951 | AI45: 93 | AJ45: 0.01 | AK45: 25.85095103 | AL45: 0.004483546251 | AM45: 50 | AN45: 499.5 | AO45: 0.00594181011 | AP45: 25.62844951 | AQ45: 0.0594181011 | AR45: 2.562844951
S46: 442.2620996 | T46: 0.002391998024 | U46: 26060.30068 | V46: 9.28479172e-08 | W46: 0.006079945206 | X46: 23.91810002 | Y46: 348.508 | Z46: -0.002904443799 | AA46: 476.2564346 | AB46: 0.004787589757 | AC46: -5.624181511 | AD46: 0.002482893949 | AE46: 2604.101787 | AF46: 9.413570552e-07 | AG46: 0.06079945206 | AH46: 2.391810002 | AI46: 94 | AJ46: 0.01 | AK46: 26.69509928 | AL46: 0.004877705842 | AM46: 50 | AN46: 499.5 | AO46: 0.006079945206 | AP46: 23.91810002 | AQ46: 0.06079945206 | AR46: 2.391810002
S47: 451.885083 | T47: 0.002442783062 | U47: 26652.58024 | V47: 8.892499217e-08 | W47: 0.006218080301 | X47: 22.32189304 | Y47: 345.065 | Z47: -0.002904443799 | AA47: 477.1164722 | AB47: 0.00520648681 | AC47: 3.646515407 | AD47: 0.002535608818 | AE47: 2663.285918 | AF47: 9.014578802e-07 | AG47: 0.06218080301 | AH47: 2.232189304 | AI47: 95 | AJ47: 0.01 | AK47: 27.53924753 | AL47: 0.005304487731 | AM47: 50 | AN47: 499.5 | AO47: 0.006218080301 | AP47: 22.32189304 | AQ47: 0.06218080301 | AR47: 2.232189304
S48: 461.5080664 | T48: 0.002485135419 | U48: 27244.85979 | V48: 8.524424417e-08 | W48: 0.006356215397 | X48: 20.83221111 | Y48: 341.622 | Z48: -0.002904443799 | AA48: 477.9765097 | AB48: 0.005659670594 | AC48: 12.91721233 | AD48: 0.002579570565 | AE48: 2722.470049 | AF48: 8.640264788e-07 | AG48: 0.06356215397 | AH48: 2.083221111 | AI48: 96 | AJ48: 0.01 | AK48: 28.38339578 | AL48: 0.005766201725 | AM48: 50 | AN48: 499.5 | AO48: 0.006356215397 | AP48: 20.83221111 | AQ48: 0.06356215397 | AR48: 2.083221111
S49: 471.1310498 | T49: 0.002518583153 | U49: 27837.13934 | V49: 8.178611415e-08 | W49: 0.006494350493 | X49: 19.44194513 | Y49: 338.179 | Z49: -0.002904443799 | AA49: 478.8365472 | AB49: 0.006149492912 | AC49: 22.18790924 | AD49: 0.002614289313 | AE49: 2781.654179 | AF49: 8.288632905e-07 | AG49: 0.06494350493 | AH49: 1.944194513 | AI49: 97 | AJ49: 0.01 | AK49: 29.22754403 | AL49: 0.006265243896 | AM49: 50 | AN49: 499.5 | AO49: 0.006494350493 | AP49: 19.44194513 | AQ49: 0.06494350493 | AR49: 1.944194513
S50: 480.7540332 | T50: 0.002542749659 | U50: 28429.4189 | V50: 7.853298332e-08 | W50: 0.006632485588 | X50: 18.14446044 | Y50: 334.736 | Z50: -0.002904443799 | AA50: 479.6965847 | AB50: 0.006678376544 | AC50: 31.45860616 | AD50: 0.002639374146 | AE50: 2840.83831 | AF50: 7.9578857e-07 | AG50: 0.06632485588 | AH50: 1.814446044 | AI50: 98 | AJ50: 0.01 | AK50: 30.07169228 | AL50: 0.006804082625 | AM50: 50 | AN50: 499.5 | AO50: 0.006632485588 | AP50: 18.14446044 | AQ50: 0.06632485588 | AR50: 1.814446044
S51: 490.3770166 | T51: 0.002557360725 | U51: 29021.69845 | V51: 7.546894613e-08 | W51: 0.006770620684 | X51: 16.93356516 | Y51: 331.293 | Z51: -0.002904443799 | AA51: 480.5566223 | AB51: 0.007248796882 | AC51: 40.72930308 | AD51: 0.002654540432 | AE51: 2900.022441 | AF51: 7.646400665e-07 | AG51: 0.06770620684 | AH51: 1.693356516 | AI51: 99 | AJ51: 0.01 | AK51: 30.91584053 | AL51: 0.007385239899 | AM51: 50 | AN51: 499.5 | AO51: 0.006770620684 | AP51: 16.93356516 | AQ51: 0.06770620684 | AR51: 1.693356516
S52: 500 | T52: 0.002562249714 | U52: 29613.978 | V52: 7.25796137e-08 | W52: 0.006908755779 | X52: 15.80348063 | Y52: 327.85 | Z52: -0.002904443799 | AA52: 481.4166598 | AB52: 0.007863258014 | AC52: 50 | AD52: 0.002659615203 | AE52: 2959.206571 | AF52: 7.352710156e-07 | AG52: 0.06908755779 | AH52: 1.580348063 | AI52: 100 | AJ52: 0.01 | AK52: 31.75998878 | AL52: 0.008011266942 | AM52: 50 | AN52: 499.5 | AO52: 0.006908755779 | AP52: 15.80348063 | AQ52: 0.06908755779 | AR52: 1.580348063
S53: 509.6229834 | T53: 0.002557360725 | U53: 30206.25756 | V53: 6.985194315e-08 | W53: 0.007046890875 | X53: 14.74881383 | Y53: 324.407 | Z53: -0.002904443799 | AA53: 482.2766973 | AB53: 0.008524262277 | AC53: 59.27069692 | AD53: 0.002654540432 | AE53: 3018.390702 | AF53: 7.075483945e-07 | AG53: 0.07046890875 | AH53: 1.474881383 | AI53: 101 | AJ53: 0.01 | AK53: 32.60413703 | AL53: 0.008684713188 | AM53: 50 | AN53: 499.5 | AO53: 0.007046890875 | AP53: 14.74881383 | AQ53: 0.07046890875 | AR53: 1.474881383
S54: 519.2459668 | T54: 0.002542749659 | U54: 30798.53711 | V54: 6.727408893e-08 | W54: 0.00718502597 | X54: 13.76453165 | Y54: 320.964 | Z54: -0.002904443799 | AA54: 483.1367348 | AB54: 0.009234272155 | AC54: 68.54139384 | AD54: 0.002639374146 | AE54: 3077.574833 | AF54: 6.813514041e-07 | AG54: 0.0718502597 | AH54: 1.376453165 | AI54: 102 | AJ54: 0.01 | AK54: 33.44828528 | AL54: 0.009408087476 | AM54: 50 | AN54: 499.5 | AO54: 0.00718502597 | AP54: 13.76453165 | AQ54: 0.0718502597 | AR54: 1.376453165
S55: 528.8689502 | T55: 0.002518583153 | U55: 31390.81666 | V55: 6.483527302e-08 | W55: 0.007323161066 | X55: 12.84593688 | Y55: 317.521 | Z55: -0.002904443799 | AA55: 483.9967724 | AB55: 0.009995663346 | AC55: 77.81209076 | AD55: 0.002614289313 | AE55: 3136.758963 | AF55: 6.56570142e-07 | AG55: 0.07323161066 | AH55: 1.284593688 | AI55: 103 | AJ55: 0.01 | AK55: 34.29243353 | AL55: 0.01018381022 | AM55: 50 | AN55: 499.5 | AO55: 0.007323161066 | AP55: 12.84593688 | AQ55: 0.07323161066 | AR55: 1.284593688
S56: 538.4919336 | T56: 0.002485135419 | U56: 31983.09622 | V56: 6.25256713e-08 | W56: 0.007461296162 | X56: 11.98864579 | Y56: 314.078 | Z56: -0.002904443799 | AA56: 484.8568099 | AB56: 0.01081066766 | AC56: 87.08278767 | AD56: 0.002579570565 | AE56: 3195.943094 | AF56: 6.331044422e-07 | AG56: 0.07461296162 | AH56: 1.198864579 | AI56: 104 | AJ56: 0.01 | AK56: 35.13658178 | AL56: 0.01101415524 | AM56: 50 | AN56: 499.5 | AO56: 0.007461296162 | AP56: 11.98864579 | AQ56: 0.07461296162 | AR56: 1.198864579
S57: 548.114917 | T57: 0.002442783062 | U57: 32575.37577 | V57: 6.03363138e-08 | W57: 0.007599431257 | X57: 11.18856718 | Y57: 310.635 | Z57: -0.002904443799 | AA57: 485.7168474 | AB57: 0.01168130438 | AC57: 96.35348459 | AD57: 0.002535608818 | AE57: 3255.127224 | AF57: 6.108628562e-07 | AG57: 0.07599431257 | AH57: 1.118856718 | AI57: 105 | AJ57: 0.01 | AK57: 35.98073003 | AL57: 0.01190117982 | AM57: 50 | AN57: 499.5 | AO57: 0.007599431257 | AP57: 11.18856718 | AQ57: 0.07599431257 | AR57: 1.118856718
S58: 557.7379004 | T58: 0.002391998024 | U58: 33167.65532 | V58: 5.825899692e-08 | W58: 0.007737566353 | X58: 10.44188292 | Y58: 307.192 | Z58: -0.002904443799 | AA58: 486.5768849 | AB58: 0.01260929866 | AC58: 105.6241815 | AD58: 0.002482893949 | AE58: 3314.311355 | AF58: 5.897617562e-07 | AG58: 0.07737566353 | AH58: 1.044188292 | AI58: 106 | AJ58: 0.01 | AK58: 36.82487828 | AL58: 0.0128466416 | AM58: 50 | AN58: 499.5 | AO58: 0.007737566353 | AP58: 10.44188292 | AQ58: 0.07737566353 | AR58: 1.044188292
S59: 567.3608838 | T59: 0.002333338832 | U59: 33759.93488 | V59: 5.628620601e-08 | W59: 0.007875701448 | X59: 9.745029638 | Y59: 303.749 | Z59: -0.002904443799 | AA59: 487.4369225 | AB59: 0.01359598554 | AC59: 114.8948784 | AD59: 0.002422005708 | AE59: 3373.495486 | AF59: 5.697245448e-07 | AG59: 0.07875701448 | AH59: 0.9745029638 | AI59: 107 | AJ59: 0.01 | AK59: 37.66902653 | AL59: 0.01385190074 | AM59: 50 | AN59: 499.5 | AO59: 0.007875701448 | AP59: 9.745029638 | AQ59: 0.07875701448 | AR59: 0.9745029638
S60: 576.9838672 | T60: 0.002267440381 | U60: 34352.21443 | V60: 5.441104702e-08 | W60: 0.008013836544 | X60: 9.094681812 | Y60: 300.306 | Z60: -0.002904443799 | AA60: 488.29696 | AB60: 0.01464219817 | AC60: 124.1655753 | AD60: 0.002353603116 | AE60: 3432.679616 | AF60: 5.506809565e-07 | AG60: 0.08013836544 | AH60: 0.9094681812 | AI60: 108 | AJ60: 0.01 | AK60: 38.51317478 | AL60: 0.01491780607 | AM60: 50 | AN60: 499.5 | AO60: 0.008013836544 | AP60: 9.094681812 | AQ60: 0.08013836544 | AR60: 0.9094681812
S61: 586.6068506 | T61: 0.002195002507 | U61: 34944.49398 | V61: 5.262718581e-08 | W61: 0.008151971639 | X61: 8.487735835 | Y61: 296.863 | Z61: -0.002904443799 | AA61: 489.1569975 | AB61: 0.01574813918 | AC61: 133.4362723 | AD61: 0.002278412602 | AE61: 3491.863747 | AF61: 5.325664385e-07 | AG61: 0.08151971639 | AH61: 0.8487735835 | AI61: 109 | AJ61: 0.01 | AK61: 39.35732303 | AL61: 0.01604456404 | AM61: 50 | AN61: 499.5 | AO61: 0.008151971639 | AP61: 8.487735835 | AQ61: 0.08151971639 | AR61: 0.8487735835
S62: 596.229834 | T62: 0.002116777643 | U62: 35536.77354 | V62: 5.092879441e-08 | W62: 0.008290106735 | X62: 7.921295224 | Y62: 293.42 | Z62: -0.002904443799 | AA62: 490.017035 | AB62: 0.01691323416 | AC62: 142.7069692 | AD62: 0.002197215194 | AE62: 3551.047878 | AF62: 5.153216016e-07 | AG62: 0.08290106735 | AH62: 0.7921295224 | AI62: 110 | AJ62: 0.01 | AK62: 40.20147128 | AL62: 0.01723158943 | AM62: 50 | AN62: 499.5 | AO62: 0.008290106735 | AP62: 7.921295224 | AQ62: 0.08290106735 | AR62: 0.7921295224
S63: 605.8528174 | T63: 0.002033557867 | U63: 36129.05309 | V63: 4.931050317e-08 | W63: 0.008428241831 | X63: 7.392656799 | Y63: 289.977 | Z63: -0.002904443799 | AA63: 490.8770726 | AB63: 0.01813596699 | AC63: 151.9776661 | AD63: 0.002110833066 | AE63: 3610.232008 | AF63: 4.988917318e-07 | AG63: 0.08428241831 | AH63: 0.7392656799 | AI63: 111 | AJ63: 0.01 | AK63: 41.04561953 | AL63: 0.01847733758 | AM63: 50 | AN63: 499.5 | AO63: 0.008428241831 | AP63: 7.392656799 | AQ63: 0.08428241831 | AR63: 0.7392656799
S64: 615.4758008 | T64: 0.001946161631 | U64: 36721.33264 | V64: 4.776735804e-08 | W64: 0.008566376926 | X64: 6.899297779 | Y64: 286.534 | Z64: -0.002904443799 | AA64: 491.7371101 | AB64: 0.01941369717 | AC64: 161.248363 | AD64: 0.002020115773 | AE64: 3669.416139 | AF64: 4.832263545e-07 | AG64: 0.08566376926 | AH64: 0.6899297779 | AI64: 112 | AJ64: 0.01 | AK64: 41.88976778 | AL64: 0.01977911828 | AM64: 50 | AN64: 499.5 | AO64: 0.008566376926 | AP64: 6.899297779 | AQ64: 0.08566376926 | AR64: 0.6899297779
S65: 625.0987842 | T65: 0.001855420509 | U65: 37313.6122 | V65: 4.62947826e-08 | W65: 0.008704512022 | X65: 6.438863746 | Y65: 283.091 | Z65: -0.002904443799 | AA65: 492.5971476 | AB65: 0.0207424603 | AC65: 170.5190599 | AD65: 0.001925926489 | AE65: 3728.60027 | AF65: 4.682788461e-07 | AG65: 0.08704512022 | AH65: 0.6438863746 | AI65: 113 | AJ65: 0.01 | AK65: 42.73391603 | AL65: 0.02113289253 | AM65: 50 | AN65: 499.5 | AO65: 0.008704512022 | AP65: 6.438863746 | AQ65: 0.08704512022 | AR65: 0.6438863746
S66: 634.7217676 | T66: =NORMDIST(S66,$C$7,$C$8,0) -> 0.001762166234 | U66: 37905.89175 | V66: =EXP(-1*(LN(U66)-$U$104)^2/(2*$U$106^2))/(SQRT(2*PI())*($U$106*U66)) -> 4.488854387e-08 | W66: 0.008842647117 | X66: =$C$7*EXP(-W66*$C$7) -> 6.009157404 | Y66: 279.648 | Z66: =1/($C$8-$C$7) -> -0.002904443799 | AA66: 493.4571851 | AB66: =EXP((AA66-$AA$104)/$AA$106)*EXP(-EXP((AA66-$AA$104)/$AA$106))/$AA$106 -> 0.02211675432 | AC66: 179.7897569 | AD66: =NORMDIST(AC66,$C$3,$C$4,0) -> 0.001829128551 | AE66: 3787.7844 | AF66: =EXP(-1*(LN(AE66)-$AE$104)^2/(2*$AE$106^2))/(SQRT(2*PI())*($AE$106*AE66)) -> 4.54006086e-07 | AG66: 0.08842647117 | AH66: =$C$3*EXP(-AG66*$C$3) -> 0.6009157404 | AI66: 114 | AJ66: =1/($C$4-$C$3) -> 0.01 | AK66: 43.57806428 | AL66: 0.02253305467 | AM66: =$C$3 -> 50 | AN66: 499.5 | AO66: =OFFSET($R$2,ROW(AO66)-2,2*$AT$7-1) -> 0.008842647117 | AP66: =OFFSET($R$2,ROW(AO66)-2,2*$AT$7) -> 6.009157404 | AQ66: 0.08842647117 | AR66: 0.6009157404
S67: 644.344751 | T67: 0.001667218319 | U67: 38498.1713 | V67: 4.354472191e-08 | W67: 0.008980782213 | X67: 5.608128101 | Y67: 276.205 | Z67: -0.002904443799 | AA67: 494.3172227 | AB67: 0.02352931529 | AC67: =($AC$101-$AC$2)/100+AC66 -> 189.0604538 | AD67: 0.001730572615 | AE67: 3846.968531 | AF67: 4.403681455e-07 | AG67: 0.08980782213 | AH67: 0.5608128101 | AI67: 115 | AJ67: 0.01 | AK67: 44.42221253 | AL67: =EXP((AK67-$AK$104)/$AK$106)*EXP(-EXP((AK67-$AK$104)/$AK$106))/$AK$106 -> 0.02397220407 | AM67: 50 | AN67: 499.5 | AO67: 0.008980782213 | AP67: 5.608128101 | AQ67: =OFFSET($AB$2,ROW(AQ67)-2,2*$AU$8-1) -> 0.08980782213 | AR67: =OFFSET($AB$2,ROW(AQ67)-2,2*$AU$8) -> 0.5608128101
S68: =($S$101-$S$2)/100+S67 -> 653.9677344 | T68: 0.001571372496 | U68: =($U$101-$U$2)/100+U67 -> 39090.45086 | V68: 4.22596823e-08 | W68: =($W$101-$W$2)/100+W67 -> 0.009118917308 | X68: 5.233862034 | Y68: =($Y$101-$Y$2)/100+Y67 -> 272.762 | Z68: -0.002904443799 | AA68: =($AA$101-$AA$2)/100+AA67 -> 495.1772602 | AB68: 0.02497088904 | AC68: 198.3311507 | AD68: 0.001631084651 | AE68: =($AE$101-$AE$2)/100+AE67 -> 3906.152662 | AF68: 4.273280074e-07 | AG68: =($AG$101-$AG$2)/100+AG67 -> 0.09118917308 | AH68: 0.5233862034 | AI68: =($AI$101-$AI$2)/100+AI67 -> 116 | AJ68: 0.01 | AK68: =($AK$101-$AK$2)/100+AK67 -> 45.26636078 | AL68: 0.02544091234 | AM68: 50 | AN68: =MAX(AP:AP) -> 499.5 | AO68: 0.009118917308 | AP68: 5.233862034 | AQ68: 0.09118917308 | AR68: 0.5233862034
S69: 663.5907178 | T69: 0.001475390209 | U69: 39682.73041 | V69: 4.103005157e-08 | W69: 0.009257052404 | X69: 4.884573123 | Y69: 269.319 | Z69: -0.002904443799 | AA69: 496.0372977 | AB69: 0.02643000693 | AC69: 207.6018476 | AD69: 0.001531455037 | AE69: 3965.336792 | AF69: 4.148513152e-07 | AG69: 0.09257052404 | AH69: 0.4884573123 | AI69: 117 | AJ69: 0.01 | AK69: 46.11050903 | AL69: 0.02692749499 | AM69: 50 | AN69: 499.5 | AO69: 0.009257052404 | AP69: 4.884573123 | AQ69: 0.09257052404 | AR69: 0.4884573123
S70: 673.2137012 | T70: 0.001379989311 | U70: 40275.00996 | V70: 3.985269501e-08 | W70: 0.0093951875 | X70: 4.558594483 | Y70: 265.876 | Z70: -0.002904443799 | AA70: 496.8973353 | AB70: 0.02789277739 | AC70: 216.8725445 | AD70: 0.001432428904 | AE70: 4024.520923 | AF70: 4.029061464e-07 | AG70: 0.093951875 | AH70: 0.4558594483 | AI70: 118 | AJ70: 0.01 | AK70: 46.95465728 | AL70: 0.02841779896 | AM70: 50 | AN70: 499.5 | AO70: 0.0093951875 | AP70: 4.558594483 | AQ70: 0.093951875 | AR70: 0.4558594483
S71: 682.8366846 | T71: 0.001285836127 | U71: 40867.28952 | V71: 3.872469659e-08 | W71: 0.009533322595 | X71: 4.254370472 | Y71: 262.433 | Z71: -0.002904443799 | AA71: 497.7573728 | AB71: 0.02934270785 | AC71: 226.1432415 | AD71: 0.001334697899 | AE71: 4083.705053 | AF71: 3.91462808e-07 | AG71: 0.09533322595 | AH71: 0.4254370472 | AI71: 119 | AJ71: 0.01 | AK71: 47.79880553 | AL71: 0.02989502125 | AM71: 50 | AN71: 499.5 | AO71: 0.009533322595 | AP71: 4.254370472 | AQ71: 0.09533322595 | AR71: 0.4254370472
S72: 692.459668 | T72: 0.001193538961 | U72: 41459.56907 | V72: 3.764334097e-08 | W72: 0.009671457691 | X72: 3.970449264 | Y72: 258.99 | Z72: -0.002904443799 | AA72: 498.6174103 | AB72: 0.03076057568 | AC72: 235.4139384 | AD72: 0.001238893441 | AE72: 4142.889184 | AF72: 3.804936526e-07 | AG72: 0.09671457691 | AH72: 0.3970449264 | AI72: 120 | AJ72: 0.01 | AK72: 48.64295378 | AL72: 0.03133957739 | AM72: 50 | AN72: 499.5 | AO72: 0.009671457691 | AP72: 3.970449264 | AQ72: 0.09671457691 | AR72: 0.3970449264
S73: 702.0826514 | T73: 0.001103643101 | U73: 42051.84862 | V73: 3.660609704e-08 | W73: 0.009809592786 | X73: 3.705475925 | Y73: 255.547 | Z73: -0.002904443799 | AA73: 499.4774478 | AB73: 0.03212437037 | AC73: 244.6846353 | AD73: 0.001145581539 | AE73: 4202.073315 | AF73: 3.699729108e-07 | AG73: 0.09809592786 | AH73: 0.3705475925 | AI73: 121 | AJ73: 0.01 | AK73: 49.48710203 | AL73: 0.03272904258 | AM73: 50 | AN73: 499.5 | AO73: 0.009809592786 | AP73: 3.705475925 | AQ73: 0.09809592786 | AR73: 0.3705475925
S74: 711.7056348 | T74: 0.001016627331 | U74: 42644.12817 | V74: 3.561060317e-08 | W74: 0.009947727882 | X74: 3.458185942 | Y74: 252.104 | Z74: -0.002904443799 | AA74: 500.3374854 | AB74: 0.03340933312 | AC74: 253.9553322 | AD74: 0.00105525917 | AE74: 4261.257445 | AF74: 3.598765404e-07 | AG74: 0.09947727882 | AH74: 0.3458185942 | AI74: 122 | AJ74: 0.01 | AK74: 50.33125028 | AL74: 0.03403819199 | AM74: 50 | AN74: 499.5 | AO74: 0.009947727882 | AP74: 3.458185942 | AQ74: 0.09947727882 | AR74: 0.3458185942
S75: 721.3286182 | T75: 0.0009329019164 | U75: 43236.40773 | V75: 3.465465373e-08 | W75: 0.01008586298 | X75: 3.227399194 | Y75: 248.661 | Z75: -0.002904443799 | AA75: 501.1975229 | AB75: 0.03458812327 | AC75: 263.2260291 | AD75: 0.0009683521892 | AE75: 4320.441576 | AF75: 3.501820893e-07 | AG75: 0.1008586298 | AH75: 0.3227399194 | AI75: 123 | AJ75: 0.01 | AK75: 51.17539853 | AL75: 0.03523917033 | AM75: 50 | AN75: 499.5 | AO75: 0.01008586298 | AP75: 3.227399194 | AQ75: 0.1008586298 | AR75: 0.3227399194
S76: 730.9516016 | T76: 0.0008528079986 | U76: 43828.68728 | V76: 3.373618689e-08 | W76: 0.01022399807 | X76: 3.012014313 | Y76: 245.218 | Z76: -0.002904443799 | AA76: 502.0575604 | AB76: 0.035631143 | AC76: 272.496726 | AD76: 0.0008852147025 | AE76: 4379.625707 | AF76: 3.408685704e-07 | AG76: 0.1022399807 | AH76: 0.3012014313 | AI76: 124 | AJ76: 0.01 | AK76: 52.01954678 | AL76: 0.03630182267 | AM76: 50 | AN76: 499.5 | AO76: 0.01022399807 | AP76: 3.012014313 | AQ76: 0.1022399807 | AR76: 0.3012014313
S77: 740.574585 | T77: 0.0007766183011 | U77: 44420.96683 | V77: 3.285327347e-08 | W77: 0.01036213317 | X77: 2.811003436 | Y77: 241.775 | Z77: -0.002904443799 | AA77: 502.9175979 | AB77: 0.03650705238 | AC77: 281.767423 | AD77: 0.0008061297965 | AE77: 4438.809837 | AF77: 3.319163486e-07 | AG77: 0.1036213317 | AH77: 0.2811003436 | AI77: 125 | AJ77: 0.01 | AK77: 52.86369504 | AL77: 0.03719421916 | AM77: 50 | AN77: 499.5 | AO77: 0.01036213317 | AP77: 2.811003436 | AQ77: 0.1036213317 | AR77: 0.2811003436
S78: 750.1975684 | T78: 0.0007045390213 | U78: 45013.24639 | V78: 3.200410685e-08 | W78: 0.01050026826 | X78: 2.623407293 | Y78: 238.332 | Z78: -0.002904443799 | AA78: 503.7776355 | AB78: 0.03718350419 | AC78: 291.0381199 | AD78: 0.0007313115041 | AE78: 4497.993968 | AF78: 3.233070378e-07 | AG78: 0.1050026826 | AH78: 0.2623407293 | AI78: 126 | AJ78: 0.01 | AK78: 53.70784329 | AL78: 0.03788340372 | AM78: 50 | AN78: 499.5 | AO78: 0.01050026826 | AP78: 2.623407293 | AQ78: 0.1050026826 | AR78: 0.2623407293
S79: 759.8205518 | T79: 0.0006367127678 | U79: 45605.52594 | V79: 3.118699374e-08 | W79: 0.01063840336 | X79: 2.448330634 | Y79: 234.889 | Z79: -0.002904443799 | AA79: 504.637673 | AB79: 0.03762812203 | AC79: 300.3088168 | AD79: 0.000660907853 | AE79: 4557.178099 | AF79: 3.150234059e-07 | AG79: 0.1063840336 | AH79: 0.2448330634 | AI79: 127 | AJ79: 0.01 | AK79: 54.55199154 | AL79: 0.03833639053 | AM79: 50 | AN79: 499.5 | AO79: 0.01063840336 | AP79: 2.448330634 | AQ79: 0.1063840336 | AR79: 0.2448330634
S80: 769.4435352 | T80: 0.0005732223846 | U80: 46197.80549 | V80: 3.040034571e-08 | W80: 0.01077653846 | X80: 2.284937955 | Y80: 231.446 | Z80: -0.002904443799 | AA80: 505.4977105 | AB80: 0.0378097339 | AC80: 309.5795137 | AD80: 0.0005950048352 | AE80: 4616.362229 | AF80: 3.070492898e-07 | AG80: 0.1077653846 | AH80: 0.2284937955 | AI80: 128 | AJ80: 0.01 | AK80: 55.39613979 | AL80: 0.03852142086 | AM80: 50 | AN80: 499.5 | AO80: 0.01077653846 | AP80: 2.284937955 | AQ80: 0.1077653846 | AR80: 0.2284937955
S81: 779.0665186 | T81: 0.0005140954971 | U81: 46790.08505 | V81: 2.964267153e-08 | W81: 0.01091467355 | X81: 2.132449508 | Y81: 228.003 | Z81: -0.002904443799 | AA81: 506.357748 | AB81: 0.03769985666 | AC81: 318.8502106 | AD81: 0.000533631126 | AE81: 4675.54636 | AF81: 2.99369516e-07 | AG81: 0.1091467355 | AH81: 0.2132449508 | AI81: 129 | AJ81: 0.01 | AK81: 56.24028804 | AL81: 0.03840947541 | AM81: 50 | AN81: 499.5 | AO81: 0.01091467355 | AP81: 2.132449508 | AQ81: 0.1091467355 | AR81: 0.2132449508
S82: 788.689502 | T82: 0.0004593096121 | U82: 47382.3646 | V82: 2.891257008e-08 | W82: 0.01105280865 | X82: 1.990137586 | Y82: 224.56 | Z82: -0.002904443799 | AA82: 507.2177856 | AB82: 0.03727440296 | AC82: 328.1209076 | AD82: 0.0004767633774 | AE82: 4734.73049 | AF82: 2.919698294e-07 | AG82: 0.1105280865 | AH82: 0.1990137586 | AI82: 130 | AJ82: 0.01 | AK82: 57.08443629 | AL82: 0.03797601346 | AM82: 50 | AN82: 499.5 | AO82: 0.01105280865 | AP82: 1.990137586 | AQ82: 0.1105280865 | AR82: 0.1990137586
S83: 798.3124854 | T83: 0.0004087976062 | U83: 47974.64415 | V83: 2.82087239e-08 | W83: 0.01119094374 | X83: 1.857323044 | Y83: 221.117 | Z83: -0.002904443799 | AA83: 508.0778231 | AB83: 0.03651555203 | AC83: 337.3916045 | AD83: 0.0004243319152 | AE83: 4793.914621 | AF83: 2.848368267e-07 | AG83: 0.1119094374 | AH83: 0.1857323044 | AI83: 131 | AJ83: 0.01 | AK83: 57.92858454 | AL83: 0.03720287879 | AM83: 50 | AN83: 499.5 | AO83: 0.01119094374 | AP83: 1.857323044 | AQ83: 0.1119094374 | AR83: 0.1857323044
S84: 807.9354688 | T84: 0.0003624534431 | U84: 48566.92371 | V84: 2.752989329e-08 | W84: 0.01132907884 | X84: 1.733372061 | Y84: 217.674 | Z84: -0.002904443799 | AA84: 508.9378606 | AB84: 0.0354136894 | AC84: 346.6623014 | AD84: 0.000376226674 | AE84: 4853.098752 | AF84: 2.779578967e-07 | AG84: 0.1132907884 | AH84: 0.1733372061 | AI84: 132 | AJ84: 0.01 | AK84: 58.77273279 | AL84: 0.03608027597 | AM84: 50 | AN84: 499.5 | AO84: 0.01132907884 | AP84: 1.733372061 | AQ84: 0.1132907884 | AR84: 0.1733372061
S85: 817.5584522 | T85: 0.0003201379732 | U85: 49159.20326 | V85: 2.687491081e-08 | W85: 0.01146721393 | X85: 1.617693116 | Y85: 214.231 | Z85: -0.002904443799 | AA85: 509.7978981 | AB85: 0.0339692811 | AC85: 355.9329983 | AD85: 0.0003323032162 | AE85: 4912.282882 | AF85: 2.71321164e-07 | AG85: 0.1146721393 | AH85: 0.1617693116 | AI85: 133 | AJ85: 0.01 | AK85: 59.61688104 | AL85: 0.03460867979 | AM85: 50 | AN85: 499.5 | AO85: 0.01146721393 | AP85: 1.617693116 | AQ85: 0.1146721393 | AR85: 0.1617693116
S86: 827.1814356 | T86: 0.0002816846804 | U86: 49751.48281 | V86: 2.624267632e-08 | W86: 0.01160534903 | X86: 1.509734163 | Y86: 210.788 | Z86: -0.002904443799 | AA86: 510.6579357 | AB86: 0.03219450883 | AC86: 365.2036952 | AD86: 0.0002923886982 | AE86: 4971.467013 | AF86: 2.649154388e-07 | AG86: 0.1160534903 | AH86: 0.1509734163 | AI86: 134 | AJ86: 0.01 | AK86: 60.46102929 | AL86: 0.03280050125 | AM86: 50 | AN86: 499.5 | AO86: 0.01160534903 | AP86: 1.509734163 | AQ86: 0.1160534903 | AR86: 0.1509734163
S87: 836.804419 | T87: 0.0002469052594 | U87: 50343.76237 | V87: 2.563215238e-08 | W87: 0.01174348412 | X87: 1.408979997 | Y87: 207.345 | Z87: -0.002904443799 | AA87: 511.5179732 | AB87: 0.03011446064 | AC87: 374.4743921 | AD87: 0.0002562876593 | AE87: 5030.651144 | AF87: 2.587301695e-07 | AG87: 0.1174348412 | AH87: 0.1408979997 | AI87: 135 | AJ87: 0.01 | AK87: 61.30517754 | AL87: 0.03068130062 | AM87: 50 | AN87: 499.5 | AO87: 0.01174348412 | AP87: 1.408979997 | AQ87: 0.1174348412 | AR87: 0.1408979997
S88: 846.4274025 | T88: 0.0002155949231 | U88: 50936.04192 | V88: 2.504235995e-08 | W88: 0.01188161922 | X88: 1.314949798 | Y88: 203.902 | Z88: -0.002904443799 | AA88: 512.3780107 | AB88: 0.02776765445 | AC88: 383.7450891 | AD88: 0.0002237875302 | AE88: 5089.835274 | AF88: 2.527553995e-07 | AG88: 0.1188161922 | AH88: 0.1314949798 | AI88: 136 | AJ88: 0.01 | AK88: 62.14932579 | AL88: 0.02829032084 | AM88: 50 | AN88: 499.5 | AO88: 0.01188161922 | AP88: 1.314949798 | AQ88: 0.1188161922 | AR88: 0.1314949798
S89: 856.0503859 | T89: 0.0001875373583 | U89: 51528.32147 | V89: 2.447237457e-08 | W89: 0.01201975432 | X89: 1.227194832 | Y89: 200.459 | Z89: -0.002904443799 | AA89: 513.2380483 | AB89: 0.02520567891 | AC89: 393.015786 | AD89: 0.0001946637779 | AE89: 5149.019405 | AF89: 2.469817276e-07 | AG89: 0.1201975432 | AH89: 0.1227194832 | AI89: 137 | AJ89: 0.01 | AK89: 62.99347404 | AL89: 0.02568012162 | AM89: 50 | AN89: 499.5 | AO89: 0.01201975432 | AP89: 1.227194832 | AQ89: 0.1201975432 | AR89: 0.1227194832
S90: 865.6733693 | T90: 0.000162509268 | U90: 52120.60103 | V90: 2.39213227e-08 | W90: 0.01215788941 | X90: 1.145296314 | Y90: 197.016 | Z90: -0.002904443799 | AA90: 514.0980858 | AB90: 0.02249177672 | AC90: 402.2864829 | AD90: 0.0001686846202 | AE90: 5208.203536 | AF90: 2.41400271e-07 | AG90: 0.1215788941 | AH90: 0.1145296314 | AI90: 138 | AJ90: 0.01 | AK90: 63.83762229 | AL90: 0.02291513606 | AM90: 50 | AN90: 499.5 | AO90: 0.01215788941 | AP90: 1.145296314 | AQ90: 0.1215788941 | AR90: 0.1145296314
S91: 875.2963527 | T91: 0.0001402844552 | U91: 52712.88058 | V91: 2.338837837e-08 | W91: 0.01229602451 | X91: 1.068863404 | Y91: 193.573 | Z91: -0.002904443799 | AA91: 514.9581233 | AB91: 0.01969827625 | AC91: 411.5571798 | AD91: 0.0001456152645 | AE91: 5267.387666 | AF91: 2.360026315e-07 | AG91: 0.1229602451 | AH91: 0.1068863404 | AI91: 139 | AJ91: 0.01 | AK91: 64.68177054 | AL91: 0.02006905395 | AM91: 50 | AN91: 499.5 | AO91: 0.01229602451 | AP91: 1.068863404 | AQ91: 0.1229602451 | AR91: 0.1068863404
S92: 884.9193361 | T92: 0.0001206374202 | U92: 53305.16013 | V92: 2.287276016e-08 | W92: 0.0124341596 | X92: 0.9975313494 | Y92: 190.13 | Z92: -0.002904443799 | AA92: 515.8181608 | AB92: 0.0169028997 | AC92: 420.8278767 | AD92: 0.0001252216422 | AE92: 5326.571797 | AF92: 2.30780864e-07 | AG92: 0.124341596 | AH92: 0.09975313494 | AI92: 140 | AJ92: 0.01 | AK92: 65.52591879 | AL92: 0.01722106044 | AM92: 50 | AN92: 499.5 | AO92: 0.0124341596 | AP92: 0.9975313494 | AQ92: 0.124341596 | AR92: 0.09975313494
S93: 894.5423195 | T93: 0.0001033464609 | U93: 53897.43969 | V93: 2.23737283e-08 | W93: 0.0125722947 | X93: 0.9309597363 | Y93: 186.687 | Z93: -0.002904443799 | AA93: 516.6781984 | AB93: 0.01418413315 | AC93: 430.0985737 | AD93: 0.0001072736264 | AE93: 5385.755927 | AF93: 2.257274478e-07 | AG93: 0.125722947 | AH93: 0.09309597363 | AI93: 141 | AJ93: 0.01 | AK93: 66.37006704 | AL93: 0.01445111897 | AM93: 50 | AN93: 499.5 | AO93: 0.0125722947 | AP93: 0.9309597363 | AQ93: 0.125722947 | AR93: 0.09309597363
S94: 904.1653029 | T94: 8.819627679e-05 | U94: 54489.71924 | V94: 2.189058205e-08 | W94: 0.01271042979 | X94: 0.8688308703 | Y94: 183.244 | Z94: -0.002904443799 | AA94: 517.5382359 | AB94: 0.01161601761 | AC94: 439.3692706 | AD94: 9.15477353e-05 | AE94: 5444.940058 | AF94: 2.208352591e-07 | AG94: 0.1271042979 | AH94: 0.08688308703 | AI94: 142 | AJ94: 0.01 | AK94: 67.21421529 | AL94: 0.01183466417 | AM94: 50 | AN94: 499.5 | AO94: 0.01271042979 | AP94: 0.8688308703 | AQ94: 0.1271042979 | AR94: 0.08688308703
S95: 913.7882863 | T95: 7.498009226e-05 | U95: 55081.99879 | V95: 2.142265726e-08 | W95: 0.01284856489 | X95: 0.8108482589 | Y95: 179.801 | Z95: -0.002904443799 | AA95: 518.3982734 | AB95: 0.009262881273 | AC95: 448.6399675 | AD95: 7.782933577e-05 | AE95: 5504.124189 | AF95: 2.160975467e-07 | AG95: 0.1284856489 | AH95: 0.08108482589 | AI95: 143 | AJ95: 0.01 | AK95: 68.05836354 | AL95: 0.009437235099 | AM95: 50 | AN95: 499.5 | AO95: 0.01284856489 | AP95: 0.8108482589 | AQ95: 0.1284856489 | AR95: 0.08108482589
S96: 923.4112697 | T96: 6.350132174e-05 | U96: 55674.27835 | V96: 2.09693241e-08 | W96: 0.01298669998 | X96: 0.756735196 | Y96: 176.358 | Z96: -0.002904443799 | AA96: 519.2583109 | AB96: 0.007174644165 | AC96: 457.9106644 | AD96: 6.591437197e-05 | AE96: 5563.308319 | AF96: 2.115079085e-07 | AG96: 0.1298669998 | AH96: 0.0756735196 | AI96: 144 | AJ96: 0.01 | AK96: 68.90251179 | AL96: 0.007309691417 | AM96: 50 | AN96: 499.5 | AO96: 0.01298669998 | AP96: 0.756735196 | AQ96: 0.1298669998 | AR96: 0.0756735196
S97: 933.0342531 | T97: 5.357480947e-05 | U97: 56266.5579 | V97: 2.052998493e-08 | W97: 0.01312483508 | X97: 0.7062334421 | Y97: 172.915 | Z97: -0.002904443799 | AA97: 520.1183485 | AB97: 0.005383346484 | AC97: 467.1813613 | AD97: 5.561065223e-05 | AE97: 5622.49245 | AF97: 2.070602703e-07 | AG97: 0.1312483508 | AH97: 0.07062334421 | AI97: 145 | AJ97: 0.01 | AK97: 69.74666004 | AL97: 0.005484676408 | AM97: 50 | AN97: 499.5 | AO97: 0.01312483508 | AP97: 0.7062334421 | AQ97: 0.1312483508 | AR97: 0.07062334421
S98: 942.6572365 | T98: 4.502768105e-05 | U98: 56858.83745 | V98: 2.010407238e-08 | W98: 0.01326297018 | X98: 0.6591019915 | Y98: 169.472 | Z98: -0.002904443799 | AA98: 520.978386 | AB98: 0.003901452588 | AC98: 476.4520583 | AD98: 4.673873293e-05 | AE98: 5681.676581 | AF98: 2.027488655e-07 | AG98: 0.1326297018 | AH98: 0.06591019915 | AI98: 146 | AJ98: 0.01 | AK98: 70.59080829 | AL98: 0.003974889045 | AM98: 50 | AN98: 499.5 | AO98: 0.01326297018 | AP98: 0.6591019915 | AQ98: 0.1326297018 | AR98: 0.06591019915
S99: 952.2802199 | T99: 3.769984832e-05 | U99: 57451.11701 | V99: 1.969104749e-08 | W99: 0.01340110527 | X99: 0.6151159224 | Y99: 166.029 | Z99: -0.002904443799 | AA99: 521.8384235 | AB99: 0.002722255 | AC99: 485.7227552 | AD99: 3.913244255e-05 | AE99: 5740.860711 | AF99: 1.985682172e-07 | AG99: 0.1340110527 | AH99: 0.06151159224 | AI99: 147 | AJ99: 0.01 | AK99: 71.43495654 | AL99: 0.002773495598 | AM99: 50 | AN99: 499.5 | AO99: 0.01340110527 | AP99: 0.6151159224 | AQ99: 0.1340110527 | AR99: 0.06151159224
S100: 961.9032033 | T100: 3.144421088e-05 | U100: 58043.39656 | V100: 1.929039807e-08 | W100: 0.01353924037 | X100: 0.5740653236 | Y100: 162.586 | Z100: -0.002904443799 | AA100: 522.698461 | AB100: 0.001822373457 | AC100: =($AC$101-$AC$2)/100+AC99 -> 494.9934521 | AD100: 3.26390909e-05 | AE100: 5800.044842 | AF100: 1.945131201e-07 | AG100: 0.1353924037 | AH100: 0.05740653236 | AI100: 148 | AJ100: 0.01 | AK100: 72.27910479 | AL100: 0.00185667572 | AM100: 50 | AN100: 499.5 | AO100: 0.01353924037 | AP100: 0.5740653236 | AQ100: 0.1353924037 | AR100: 0.05740653236
S101: =_xlfn.NORM.INV(0.999,C7,C8) -> 981.1491701 | T101: 2.162549825e-05 | U101: =_xlfn.LOGNORM.INV(0.999,U104,U106) -> 59227.95566 | V101: 1.852430113e-08 | W101: =-LN(1-0.999)/C7 -> 0.01381551056 | X101: 0.5 | Y101: =C8 -> 155.7 | Z101: -0.002904443799 | AA101: =$AA$106*LN(-1*LN(1-0.999))+$AA$104 -> 524.4185361 | AB101: 0.000710013955 | AC101: =_xlfn.NORM.INV(0.999,$C$3,$C$4) -> 513.5348459 | AD101: 2.244726718e-05 | AE101: =_xlfn.LOGNORM.INV(0.999,AE104,AE106) -> 5918.413103 | AF101: 1.867600248e-07 | AG101: =-LN(1-0.999)/C3 -> 0.1381551056 | AH101: 0.05 | AI101: =C4 -> 150 | AJ101: 0.01 | AK101: =$AK$106*LN(-1*LN(1-0.999))+$AK$104 -> 73.96740129 | AL101: 0.0007233784412 | AM101: 50 | AN101: 499.5 | AO101: 0.01381551056 | AP101: 0.5 | AQ101: 0.1381551056 | AR101: 0.05
U103: m | AA103: m | AE103: m | AK103: m
U104: =LN(C7)-U106^2/2 -> 1.505460267 | AA104: =C7+AA106*0.57721566 -> 505.6157551 | AE104: =LN(C3)-AE106^2/2 -> -0.7277964017 | AK104: =C3+AK106*0.57721566 -> 55.51200353
U105: s | AA105: b | AE105: s | AK105: b
U106: =LN(C8)/NORMSINV(0.95) -> 3.068924186 | AA106: =(6*C8)^0.5/PI() -> 9.729041564 | AE106: =LN(C4)/NORMSINV(0.95) -> 3.046249959 | AK106: =(6*C4)^0.5/PI() -> 9.549296586

Sheet INPUT, Case A
A1: Notes | B1: Load (Stress) | D1: Coefficient of Variation, δ = σ/μ | E1: Safety Factor, SF = μc / μL | F1: Stress Ratio, 1/SF | S1: x | T1: Normal Strength | U1: x | V1: Lognormal Strength | W1: x | X1: Exponential Strength | Y1: x | Z1: Uniform Strength | AA1: x | AB1: Gumbel Strength | AC1: y | AD1: Normal Stress | AE1: y | AF1: Lognormal Stress | AG1: y | AH1: Exponential Stress | AI1: y | AJ1: Uniform Stress | AK1: y | AL1: Gumbel | AM1: y | AN1: Constant | AO1: y | AP1: =C6&" Strength" -> Normal Strength | AQ1: y | AR1: =C2&" Stress" -> Normal Stress | AT1: Strength | AU1: Stress
A2: Inputs are yellow | B2: Select Distribution: | C2: Normal | S2: =_xlfn.NORM.INV(0.001,$C$7,$C$8) -> 281.6442059 | T2: =NORMDIST(S2,$C$7,$C$8,0) -> 4.275669939e-05 | U2: =_xlfn.LOGNORM.INV(0.001,U104,U106) -> 0.004241414106 | V2: =EXP(-1*(LN(U2)-$U$104)^2/(2*$U$106^2))/(SQRT(2*PI())*($U$106*U2)) -> 0.2990610846 | W2: =-LN(1-0.001)/C7 -> 1.905714921e-06 | X2: =$C$7*EXP(-W2*$C$7) -> 524.475 | Y2: =C7 -> 525 | Z2: =1/($C$8-$C$7) -> -0.002240896359 | AA2: =$AA$106*LN(-1*LN(1-0.001))+$AA$104 -> 481.2016805 | AB2: =EXP((AA2-$AA$104)/$AA$106)*EXP(-EXP((AA2-$AA$104)/$AA$106))/$AA$106 -> 0.0001444547052 | AC2: =_xlfn.NORM.INV(0.001,$C$3,$C$4) -> 199.7466309 | AD2: =NORMDIST(AC2,$C$3,$C$4,0) -> 0.0002850446626 | AE2: =_xlfn.LOGNORM.INV(0.001,AE104,AE106) -> 0.7403005712 | AF2: =EXP(-1*(LN(AE2)-$AE$104)^2/(2*$AE$106^2))/(SQRT(2*PI())*($AE$106*AE2)) -> 0.003029876834 | AG2: =-LN(1-0.001)/C3 -> 4.234922047e-06 | AH2: =$C$3*EXP(-AG2*$C$3) -> 236.01375 | AI2: =C3 -> 236.25 | AJ2: =1/($C$4-$C$3) -> -0.004455583403 | AK2: =$AK$106*LN(-1*LN(1-0.001))+$AK$104 -> 219.2869838 | AL2: =EXP((AK2-$AK$104)/$AK$106)*EXP(-EXP((AK2-$AK$104)/$AK$106))/$AK$106 -> 0.000372980445 | AM2: =$C$3 -> 236.25 | AN2: 0 | AO2: =OFFSET($R$2,ROW(AO2)-2,2*$AT$7-1) -> 281.6442059 | AP2: =OFFSET($R$2,ROW(AO2)-2,2*$AT$7) -> 4.275669939e-05 | AQ2: =OFFSET($AB$2,ROW(AQ2)-2,2*$AU$8-1) -> 199.7466309 | AR2: =OFFSET($AB$2,ROW(AQ2)-2,2*$AU$8) -> 0.0002850446626 | AT2: Normal | AU2: Normal
A3: Results are green | B3: =IF(C2="Uniform", "Enter Min:","Enter Mean:") -> Enter Mean: | C3: 236.25 | D3: =C4/C3 -> 0.05 | E3: =C7/C3 -> 2.222222222 | F3: =1/E3 -> 0.45 | S3: =($S$101-$S$2)/100+S2 -> 286.5113218 | T3: 5.165601786e-05 | U3: =($U$101-$U$2)/100+U2 -> 565.7067451 | V3: 0.0001060276648 | W3: =($W$101-$W$2)/100+W2 -> 0.0001334629488 | X3: 489.4734466 | Y3: =($Y$101-$Y$2)/100+Y2 -> 520.5375 | Z3: -0.002240896359 | AA3: =($AA$101-$AA$2)/100+AA2 -> 481.813324 | AB3: 0.0001577911822 | AC3: =($AC$101-$AC$2)/100+AC2 -> 200.4766983 | AD3: 0.0003443734524 | AE3: =($AE$101-$AE$2)/100+AE2 -> 79.92556263 | AF3: 0.003323725805 | AG3: =($AG$101-$AG$2)/100+AG2 -> 0.0002965843307 | AH3: 220.263051 | AI3: =($AI$101-$AI$2)/100+AI2 -> 234.005625 | AJ3: -0.004455583403 | AK3: =($AK$101-$AK$2)/100+AK2 -> 219.5238723 | AL3: =EXP((AK3-$AK$104)/$AK$106)*EXP(-EXP((AK3-$AK$104)/$AK$106))/$AK$106 -> 0.0004074150806 | AM3: 236.25 | AN3: =MAX(AP:AP) -> 0.005065933719 | AO3: 286.5113218 | AP3: 5.165601786e-05 | AQ3: =OFFSET($AB$2,ROW(AQ3)-2,2*$AU$8-1) -> 200.4766983 | AR3: =OFFSET($AB$2,ROW(AQ3)-2,2*$AU$8) -> 0.0003443734524 | AT3: Lognormal | AU3: Lognormal
A4: Replications | B4: =IF(C2="Lognormal","Enter Error Factor:",IF(C2="Normal","Enter Standard Deviation:",IF(C2="Gumbel","Enter Variance:",IF(C2="Uniform","Enter Max:","")))) -> Enter Standard Deviation: | C4: =0.05*C3 -> 11.8125 | S4: =($S$101-$S$2)/100+S3 -> 291.3784377 | T4: 6.216969695e-05 | U4: =($U$101-$U$2)/100+U3 -> 1131.409249 | V4: 3.596504016e-05 | W4: =($W$101-$W$2)/100+W3 -> 0.0002650201827 | X4: 456.8077695 | Y4: =($Y$101-$Y$2)/100+Y3 -> 516.075 | Z4: -0.002240896359 | AA4: =($AA$101-$AA$2)/100+AA3 -> 482.4249675 | AB4: 0.0001723574484 | AC4: 201.2067656 | AD4: 0.0004144646463 | AE4: =($AE$101-$AE$2)/100+AE3 -> 159.1108247 | AF4: 0.001483324844 | AG4: =($AG$101-$AG$2)/100+AG3 -> 0.0005889337393 | AH4: 205.5634963 | AI4: =($AI$101-$AI$2)/100+AI3 -> 231.76125 | AJ4: -0.004455583403 | AK4: =($AK$101-$AK$2)/100+AK3 -> 219.7607608 | AL4: 0.0004450250182 | AM4: 236.25 | AN4: =MAX(AP:AP) -> 0.005065933719 | AO4: 291.3784377 | AP4: 6.216969695e-05 | AQ4: 201.2067656 | AR4: 0.0004144646463 | AT4: Exponential | AU4: Exponential
A5: 100000 | B5: Capacity (Strength) | E5: Safety Index, β = f(SF,δ) | S5: 296.2455535 | T5: 7.453798581e-05 | U5: 1697.111752 | V5: 1.851357337e-05 | W5: 0.0003965774166 | X5: 426.3220808 | Y5: 511.6125 | Z5: -0.002240896359 | AA5: 483.036611 | AB5: 0.0001882666208 | AC5: 201.936833 | AD5: 0.0004969199054 | AE5: 238.2960868 | AF5: 0.0008378387509 | AG5: 0.0008812831479 | AH5: 191.8449364 | AI5: 229.516875 | AJ5: -0.004455583403 | AK5: 219.9976493 | AL5: 0.0004861023247 | AM5: 236.25 | AN5: 0.005065933719 | AO5: 296.2455535 | AP5: 7.453798581e-05 | AQ5: 201.936833 | AR5: 0.0004969199054 | AT5: Uniform | AU5: Uniform
A6: Seed Value | B6: Select Distribution: | C6: Normal | S6: 301.1126694 | T6: 8.902615796e-05 | U6: 2262.814256 | V6: 1.139538202e-05 | W6: 0.0005281346504 | X6: 397.8708961 | Y6: 507.15 | Z6: -0.002240896359 | AA6: 483.6482545 | AB6: 0.0002056421659 | AC6: 202.6669004 | AD6: 0.0005935077197 | AE6: 317.4813488 | AF6: 0.0005343792329 | AG6: 0.001173632557 | AH6: 179.0419033 | AI6: 227.2725 | AJ6: -0.004455583403 | AK6: 220.2345378 | AL6: 0.0005309657893 | AM6: 236.25 | AN6: 0.005065933719 | AO6: 301.1126694 | AP6: 8.902615796e-05 | AQ6: 202.6669004 | AR6: 0.0005935077197 | AT6: Gumbel | AU6: Gumbel
A7: 37 | B7: =IF(C6<>"Uniform","Enter Mean:","Enter Minimum Value") -> Enter Mean: | C7: 525 | D7: =C8/C7 -> 0.15 | E7: =(E3-1)/((D7^2)*(E3^2)+(D3^2))^0.5 -> 3.626099961 | S7: 305.9797853 | T7: 0.0001059250519 | U7: 2828.51676 | V7: 7.757769865e-06 | W7: 0.0006596918843 | X7: 371.31844 | Y7: 502.6875 | Z7: -0.002240896359 | AA7: 484.2598981 | AB7: 0.0002246188361 | AC7: 203.3969678 | AD7: 0.0007061670124 | AE7: 396.6666109 | AF7: 0.0003675593148 | AG7: 0.001465981965 | AH7: 167.093298 | AI7: 225.028125 | AJ7: -0.004455583403 | AK7: 220.4714264 | AL7: 0.0005799633409 | AM7: 236.25 | AN7: 0.005065933719 | AO7: 305.9797853 | AP7: 0.0001059250519 | AQ7: 203.3969678 | AR7: 0.0007061670124 | AT7: =MATCH(C6,AT2:AT6,0) -> 1 | AU7: Constant
B8: =IF(C6="Lognormal","Enter Error Factor:",IF(C6="Normal","Enter Standard Deviation:",IF(C6="Uniform","Enter Maximum Value",IF(C6="Gumbel","Enter Variance","")))) -> Enter Standard Deviation: | C8: =0.15*C7 -> 78.75 | S8: 310.8469012 | T8: 0.0001255511847 | U8: 3394.219263 | V8: 5.636588567e-06 | W8: 0.0007912491182 | X8: 346.5379982 | Y8: 498.225 | Z8: -0.002240896359 | AA8: 484.8715416 | AB8: 0.0002453436881 | AC8: 204.1270352 | AD8: 0.000837007898 | AE8: 475.8518729 | AF8: 0.0002663104498 | AG8: 0.001758331374 | AH8: 155.9420992 | AI8: 222.78375 | AJ8: -0.004455583403 | AK8: 220.7083149 | AL8: 0.0006334746786 | AM8: 236.25 | AN8: 0.005065933719 | AO8: 310.8469012 | AP8: 0.0001255511847 | AQ8: 204.1270352 | AR8: 0.000837007898 | AU8: =MATCH(C2,AU2:AU7,0) -> 1
B9: Results | S9: 315.7140171 | T9: 0.0001482463538 | U9: 3959.921767 | V9: 4.286781743e-06 | W9: 0.0009228063521 | X9: 323.4113129 | Y9: 493.7625 | Z9: -0.002240896359 | AA9: 485.4831851 | AB9: 0.0002679771918 | AC9: 204.8571026 | AD9: 0.0009883090256 | AE9: 555.037135 | AF9: 0.0002004734908 | AG9: 0.002050680782 | AH9: 145.5350908 | AI9: 220.539375 | AJ9: -0.004455583403 | AK9: 220.9452034 | AL9: 0.0006919141339 | AM9: 236.25 | AN9: 0.005065933719 | AO9: 315.7140171 | AP9: 0.0001482463538 | AQ9: 204.8571026 | AR9: 0.0009883090256
A10: Do not insert or delete any rows or columns. There are formulas on the right that would be corrupted. | B10: Mean Failure Probability | C10: 0.0001437783438 | S10: 320.5811329 | T10: 0.0001743766387 | U10: 4525.624271 | V10: 3.372599019e-06 | W10: 0.001054363586 | X10: 301.8280185 | Y10: 489.3 | Z10: -0.002240896359 | AA10: 486.0948286 | AB10: 0.0002926944352 | AC10: 205.5871699 | AD10: 0.001162510924 | AE10: 634.2223971 | AF10: 0.0001554210204 | AG10: 0.002343030191 | AH10: 135.8226083 | AI10: 218.295 | AJ10: -0.004455583403 | AK10: 221.1820919 | AL10: 0.000755733782 | AM10: 236.25 | AN10: 0.005065933719 | AO10: 320.5811329 | AP10: 0.0001743766387 | AQ10: 205.5871699 | AR10: 0.001162510924
B11: 90% Half-Width About Mean, +/- | C11: 4.606593104e-07 | S11: 325.4482488 | T11: 0.0002043307169 | U11: 5091.326774 | V11: 2.723773559e-06 | W11: 0.00118592082 | X11: 281.6851146 | Y11: 484.8375 | Z11: -0.002240896359 | AA11: 486.7064721 | AB11: 0.0003196864346 | AC11: 206.3172373 | AD11: 0.00136220478 | AE11: 713.4076591 | AF11: 0.000123350217 | AG11: 0.0026353796 | AH11: 126.7583016 | AI11: 216.050625 | AJ11: -0.004455583403 | AK11: 221.4189804 | AL11: 0.0008254268248 | AM11: 236.25 | AN11: 0.005065933719 | AO11: 325.4482488 | AP11: 0.0002043307169 | AQ11: 206.3172373 | AR11: 0.00136220478
B12: Variance | C12: 7.843269647e-09 | S12: 330.3153647 | T12: 0.0002385174137 | U12: 5657.029278 | V12: 2.246154755e-06 | W12: 0.001317478054 | X12: 262.8864748 | Y12: 480.375 | Z12: -0.002240896359 | AA12: 487.3181156 | AB12: 0.0003491615576 | AC12: 207.0473047 | AD12: 0.001590116091 | AE12: 792.5929212 | AF12: 9.978945272e-05 | AG12: 0.002927729008 | AH12: 118.2989137 | AI12: 213.80625 | AJ12: -0.004455583403 | AK12: 221.6558689 | AL12: 0.0009015312651 | AM12: 236.25 | AN12: 0.005065933719 | AO12: 330.3153647 | AP12: 0.0002385174137 | AQ12: 207.0473047 | AR12: 0.001590116091
B13: Mean Success Probability | C13: 0.9998562217 | S13: 335.1824806 | T13: 0.0002773624086 | U13: 6222.731782 | V13: 1.884109218e-06 | W13: 0.001449035288 | X13: 245.3423879 | Y13: 475.9125 | Z13: -0.002240896359 | AA13: 487.9297591 | AB13: 0.0003813470685 | AC13: 207.7773721 | AD13: 0.001849082724 | AE13: 871.7781832 | AF13: 8.202816796e-05 | AG13: 0.003220078417 | AH13: 110.4040746 | AI13: 211.561875 | AJ13: -0.004455583403 | AK13: 221.8927575 | AL13: 0.0009846338969 | AM13: 236.25 | AN13: 0.005065933719 | AO13: 335.1824806 | AP13: 0.0002773624086 | AQ13: 207.7773721 | AR13: 0.001849082724
B14: Run Time (Minutes) | C14: 0.02493489583 | S14: 340.0495965 | T14: 0.0003213040384 | U14: 6788.434285 | V14: 1.602987279e-06 | W14: 0.001580592521 | X14: 228.9691295 | Y14: 471.45 | Z14: -0.002240896359 | AA14: 488.5414027 | AB14: 0.0004164908051 | AC14: 208.5074395 | AD14: 0.002142026923 | AE14: 950.9634453 | AF14: 6.834722e-05 | AG14: 0.003512427825 | AH14: 103.0361083 | AI14: 209.3175 | AJ14: -0.004455583403 | AK14: 222.129646 | AL14: 0.001075374635 | AM14: 236.25 | AN14: 0.005065933719 | AO14: 340.0495965 | AP14: 0.0003213040384 | AQ14: 208.5074395 | AR14: 0.002142026923
S15: 344.9167124 | T15: 0.0003707881483 | U15: 7354.136789 | V15: 1.380264595e-06 | W15: 0.001712149755 | X15: 213.6885628 | Y15: 466.9875 | Z15: -0.002240896359 | AA15: 489.1530462 | AB15: 0.0004548629975 | AC15: 209.2375069 | AD15: 0.002471920989 | AE15: 1030.148707 | AF15: 5.761477059e-05 | AG15: 0.003804777234 | AH15: 96.15985326 | AI15: 207.073125 | AJ15: -0.004455583403 | AK15: 222.3665345 | AL15: 0.001174451209 | AM15: 236.25 | AN15: 0.005065933719 | AO15: 344.9167124 | AP15: 0.0003707881483 | AQ15: 209.2375069 | AR15: 0.002471920989
S16: 349.7838282 | T16: 0.0004262619622 | U16: 7919.839292 | V16: 1.200769316e-06 | W16: 0.001843706989 | X16: 199.4277655 | Y16: 462.525 | Z16: -0.002240896359 | AA16: 489.7646897 | AB16: 0.0004967582385 | AC16: 209.9675742 | AD16: 0.002841746415 | AE16: 1109.333969 | AF16: 4.90618925e-05 | AG16: 0.004097126643 | AH16: 89.74249449 | AI16: 204.82875 | AJ16: -0.004455583403 | AK16: 222.603423 | AL16: 0.001282624257 | AM16: 236.25 | AN16: 0.005065933719 | AO16: 349.7838282 | AP16: 0.0004262619622 | AQ16: 209.9675742 | AR16: 0.002841746415
S17: 354.6509441 | T17: 0.00048816697 | U17: 8485.541796 | V17: 1.053970851e-06 | W17: 0.001975264223 | X17: 186.118682 | Y17: 458.0625 | Z17: -0.002240896359 | AA17: 490.3763332 | AB17: 0.0005424976174 | AC17: 210.6976416 | AD17: 0.003254446467 | AE17: 1188.519231 | AF17: 4.215203465e-05 | AG17: 0.004389476051 | AH17: 83.7534069 | AI17: 202.584375 | AJ17: -0.004455583403 | AK17: 222.8403115 | AL17: 0.001400722825 | AM17: 236.25 | AN17: 0.005065933719 | AO17: 354.6509441 | AP17: 0.00048816697 | AQ17: 210.6976416 | AR17: 0.003254446467
S18: 359.51806 | T18: 0.0005569308538 | U18: 9051.2443 | V18: 9.323699713e-07 | W18: 0.002106821457 | X18: 173.6977983 | Y18: 453.6 | Z18: -0.002240896359 | AA18: 490.9879767 | AB18: 0.0005924310286 | AC18: 211.427709 | AD18: 0.003712872359 | AE18: 1267.704494 | AF18: 3.650203848e-05 | AG18: 0.00468182546 | AH18: 78.16400922 | AI18: 200.34 | AJ18: -0.004455583403 | AK18: 223.0772 | AL18: 0.001529650338 | AM18: 236.25 | AN18: 0.005065933719 | AO18: 359.51806 | AP18: 0.0005569308538 | AQ18: 211.427709 | AR18: 0.003712872359
S19: 364.3851759 | T19: 0.000632958507 | U19: 9616.946803 | V19: 8.305061351e-07 | W19: 0.002238378691 | X19: 162.1058391 | Y19: 449.1375 | Z19: -0.002240896359 | AA19: 491.5996202 | AB19: 0.0006469396666 | AC19: 212.1577764 | AD19: 0.00421972338 | AE19: 1346.889756 | AF19: 3.183270524e-05 | AG19: 0.004974174869 | AH19: 72.94762761 | AI19: 198.095625 | AJ19: -0.004455583403 | AK19: 223.3140885 | AL19: 0.001670391037 | AM19: 236.25 | AN19: 0.005065933719 | AO19: 364.3851759 | AP19: 0.000632958507 | AQ19: 212.1577764 | AR19: 0.00421972338
S20: 369.2522918 | T20: 0.0007166222361 | U20: 10182.64931 | V20: 7.443252002e-07 | W20: 0.002369935925 | X20: 151.2874852 | Y20: 444.675 | Z20: -0.002240896359 | AA20: 492.2112638 | AB20: 0.0007064387192 | AC20: 212.8878438 | AD20: 0.004777481574 | AE20: 1426.075018 | AF20: 2.79369378e-05 | AG20: 0.005266524277 | AH20: 68.07936833 | AI20: 195.85125 | AJ20: -0.004455583403 | AK20: 223.5509771 | AL20: 0.00182401693 | AM20: 236.25 | AN20: 0.005065933719 | AO20: 369.2522918 | AP20: 0.0007166222361 | AQ20: 212.8878438 | AR20: 0.004777481574
S21: 374.1194077 | T21: 0.0008082512671 | U21: 10748.35181 | V21: 6.707651127e-07 | W21: 0.002501493159 | X21: 141.1911088 | Y21: 440.2125 | Z21: -0.002240896359 | AA21: 492.8229073 | AB21: 0.000771380272 | AC21: 213.6179111 | AD21: 0.005388341781 | AE21: 1505.26028 | AF21: 2.465867402e-05 | AG21: 0.005558873686 | AH21: 63.53599896 | AI21: 193.606875 | AJ21: -0.004455583403 | AK21: 223.7878656 | AL21: 0.001991695298 | AM21: 236.25 | AN21: 0.005065933719 | AO21: 374.1194077 | AP21: 0.0008082512671 | AQ21: 213.6179111 | AR21: 0.005388341781
S22: 378.9865235 | T22: 0.0009081207188 | U22: 11314.05431 | V22: 6.074775912e-07 | W22: 0.002633050393 | X22: 131.7685279 | Y22: 435.75 | Z22: -0.002240896359 | AA22: 493.4345508 | AB22: 0.0008422564356 | AC22: 214.3479785 | AD22: 0.006054138125 | AE22: 1584.445542 | AF22: 2.187863591e-05 | AG22: 0.005851223094 | AH22: 59.29583754 | AI22: 191.3625 | AJ22: -0.004455583403 | AK22: 224.0247541 | AL22: 0.002174696766 | AM22: 236.25 | AN22: 0.005065933719 | AO22: 378.9865235 | AP22: 0.0009081207188 | AQ22: 214.3479785 | AR22: 0.006054138125
S23: 383.8536394 | T23: 0.00101644024 | U23: 11879.75682 | V23: 5.526369937e-07 | W23: 0.002764607626 | X23: 122.9747757 | Y23: 431.2875 | Z23: -0.002240896359 | AA23: 494.0461943 | AB23: 0.0009196027085 | AC23: 215.0780459 | AD23: 0.006776268266 | AE23: 1663.630804 | AF23: 1.950449199e-05 | AG23: 0.006143572503 | AH23: 55.33864907 | AI23: 189.118125 | AJ23: -0.004455583403 | AK23: 224.2616426 | AL23: 0.002374403983 | AM23: 236.25 | AN23: 0.005065933719 | AO23: 383.8536394 | AP23: 0.00101644024 | AQ23: 215.0780459 | AR23: 0.006776268266
S24: 388.7207553 | T24: 0.001133342543 | U24: 12445.45932 | V24: 5.048064454e-07 | W24: 0.00289616486 | X24: 114.7678866 | Y24: 426.825 | Z24: -0.002240896359 | AA24: 494.6578378 | AB24: 0.001004001585 | AC24: 215.8081133 | AD24: 0.007555616955 | AE24: 1742.816066 | AF24: 1.746394165e-05 | AG24: 0.006435921912 | AH24: 51.64554895 | AI24: 186.87375 | AJ24: -0.004455583403 | AK24: 224.4985311 | AL24: 0.002592320946 | AM24: 236.25 | AN24: 0.005065933719 | AO24: 388.7207553 | AP24: 0.001133342543 | AQ24: 215.8081133 | AR24: 0.007555616955
S25: 393.5878712 | T25: 0.001258872101 | U25: 13011.16183 | V25: 4.628423987e-07 | W25: 0.003027722094 | X25: 107.1086953 | Y25: 422.3625 | Z25: -0.002240896359 | AA25: 495.2694813 | AB25: 0.001096086424 | AC25: 216.5381807 | AD25: 0.008392480673 | AE25: 1822.001328 | AF25: 1.569977309e-05 | AG25: 0.00672827132 | AH25: 48.1989129 | AI25: 184.629375 | AJ25: -0.004455583403 | AK25: 224.7354196 | AL25: 0.002830082978 | AM25: 236.25 | AN25: 0.005065933719 | AO25: 393.5878712 | AP25: 0.001258872101 | AQ25: 216.5381807 | AR25: 0.008392480673
S26: 398.4549871 | T26: 0.001392974294 | U26: 13576.86433 | V26: 4.258254945e-07 | W26: 0.003159279328 | X26: 99.96065068 | Y26: 417.9 | Z26: -0.002240896359 | AA26: 495.8811249 | AB26: 0.001196545579 | AC26: 217.2682481 | AD26: 0.00928649529 | AE26: 1901.18659 | AF26: 1.416627862e-05 | AG26: 0.007020620729 | AH26: 44.98229281 | AI26: 182.385 | AJ26: -0.004455583403 | AK26: 224.9723082 | AL26: 0.003089467402 | AM26: 236.25 | AN26: 0.005065933719 | AO26: 398.4549871 | AP26: 0.001392974294 | AQ26: 217.2682481 | AR26: 0.00928649529
S27: 403.3221029 | T27: 0.001535485327 | U27: 14142.56683 | V27: 3.930097452e-07 | W27: 0.003290836562 | X27: 93.28964052 | Y27: 413.4375 | Z27: -0.002240896359 | AA27: 496.4927684 | AB27: 0.001306126809 | AC27: 217.9983154 | AD27: 0.01023656884 | AE27: 1980.371852 | AF27: 1.282661912e-05 | AG27: 0.007312970138 | AH27: 41.98033823 | AI27: 180.140625 | AJ27: -0.004455583403 | AK27: 225.2091967 | AL27: 0.003372404919 | AM27: 236.25 | AN27: 0.005065933719 | AO27: 403.3221029 | AP27: 0.001535485327 | AQ27: 217.9983154 | AR27: 0.01023656884
S28: 408.1892188 | T28: 0.001686123243 | U28: 14708.26934 | V28: 3.637846833e-07 | W28: 0.003422393796 | X28: 87.0638293 | Y28: 408.975 | Z28: -0.002240896359 | AA28: 497.1044119 | AB28: 0.00142564196 | AC28: 218.7283828 | AD28: 0.01124082162 | AE28: 2059.557114 | AF28: 1.165086188e-05 | AG28: 0.007605319546 | AH28: 39.17872319 | AI28: 177.89625 | AJ28: -0.004455583403 | AK28: 225.4460852 | AL28: 0.003680991713 | AM28: 236.25 | AN28: 0.005065933719 | AO28: 408.1892188 | AP28: 0.001686123243 | AQ28: 218.7283828 | AR28: 0.01124082162
S29: 413.0563347 | T29: 0.00184448036 | U29: 15273.97184 | V29: 3.376468264e-07 | W29: 0.00355395103 | X29: 81.25350608 | Y29: 404.5125 | Z29: -0.002240896359 | AA29: 497.7160554 | AB29: 0.001555971941 | AC29: 219.4584502 | AD29: 0.01229653574 | AE29: 2138.742376 | AF29: 1.061450318e-05 | AG29: 0.007897668955 | AH29: 36.56407774 | AI29: 175.651875 | AJ29: -0.004455583403 | AK29: 225.6829737 | AL29: 0.004017502277 | AM29: 236.25 | AN29: 0.005065933719 | AO29: 413.0563347 | AP29: 0.00184448036 | AQ29: 219.4584502 | AR29: 0.01229653574
S30: 417.9234506 | T30: 0.002010017466 | U30: 15839.67434 | V30: 3.141779209e-07 | W30: 0.003685508264 | X30: 75.83094269 | Y30: 400.05 | Z30: -0.002240896359 | AA30: 498.3276989 | AB30: 0.001698071966 | AC30: 220.1885176 | AD30: 0.01340011644 | AE30: 2217.927638 | AF30: 9.697343956e-06 | AG30: 0.008190018363 | AH30: 34.12392421 | AI30: 173.4075 | AJ30: -0.004455583403 | AK30: 225.9198622 | AL30: 0.004384402964 | AM30: 236.25 | AN30: 0.005065933719 | AO30: 417.9234506 | AP30: 0.002010017466 | AQ30: 220.1885176 | AR30: 0.01340011644
S31: 422.7905665 | T31: 0.002182060074 | U31: 16405.37685 | V31: 2.930281843e-07 | W31: 0.003817065497 | X31: 70.77026145 | Y31: 395.5875 | Z31: -0.002240896359 | AA31: 498.9393424 | AB31: 0.001852977076 | AC31: 220.918585 | AD31: 0.01454706716 | AE31: 2297.1129 | AF31: 8.882625828e-06 | AG31: 0.008482367772 | AH31: 31.84661765 | AI31: 171.163125 | AJ31: -0.004455583403 | AK31: 226.1567507 | AL31: 0.004784366237 | AM31: 236.25 | AN31: 0.005065933719 | AO31: 422.7905665 | AP31: 0.002182060074 | AQ31: 220.918585 | AR31: 0.01454706716
S32: 427.6576824 | T32: 0.002359797031 | U32: 16971.07935 | V32: 2.739032734e-07 | W32: 0.003948622731 | X32: 66.04731167 | Y32: 391.125 | Z32: -0.002240896359 | AA32: 499.550986 | AB32: 0.002021807913 | AC32: 221.6486524 | AD32: 0.01573198021 | AE32: 2376.298162 | AF32: 8.156361122e-06 | AG32: 0.008774717181 | AH32: 29.72129025 | AI32: 168.91875 | AJ32: -0.004455583403 | AK32: 226.3936392 | AL32: 0.005220285585 | AM32: 236.25 | AN32: 0.005065933719 | AO32: 427.6576824 | AP32: 0.002359797031 | AQ32: 221.6486524 | AR32: 0.01573198021
S33: 432.5247982 | T33: 0.002542281713 | U33: 17536.78185 | V33: 2.565540593e-07 | W33: 0.004080179965 | X33: 61.63955437 | Y33: 386.6625 | Z33: -0.002240896359 | AA33: 500.1626295 | AB33: 0.002205776738 | AC33: 222.3787197 | AD33: 0.01694854475 | AE33: 2455.483424 | AF33: 7.506808958e-06 | AG33: 0.009067066589 | AH33: 27.73779947 | AI33: 166.674375 | AJ33: -0.004455583403 | AK33: 226.6305278 | AL33: 0.005695291047 | AM33: 236.25 | AN33: 0.005065933719 | AO33: 432.5247982 | AP33: 0.002542281713 | AQ33: 222.3787197 | AR33: 0.01694854475
S34: 437.3919141 | T34: 0.002728436008 | U34: 18102.48436 | V34: 2.407685395e-07 | W34: 0.004211737199 | X34: 57.52595476 | Y34: 382.2 | Z34: -0.002240896359 | AA34: 500.774273 | AB34: 0.002406193635 | AC34: 223.1087871 | AD34: 0.01818957339 | AE34: 2534.668687 | AF34: 6.924062303e-06 | AG34: 0.009359415998 | AH34: 25.88667964 | AI34: 164.43 | AJ34: -0.004455583403 | AK34: 226.8674163 | AL34: 0.006212765252 | AM34: 236.25 | AN34: 0.005065933719 | AO34: 437.3919141 | AP34: 0.002728436008 | AQ34: 223.1087871 | AR34: 0.01818957339
S35: 442.25903 | T35: 0.002917057213 | U35: 18668.18686 | V35: 2.263653889e-07 | W35: 0.004343294433 | X35: 53.68688182 | Y35: 377.7375 | Z35: -0.002240896359 | AA35: 501.3859165 | AB35: 0.002624472891 | AC35: 223.8388545 | AD35: 0.01944704809 | AE35: 2613.853949 | AF35: 6.39972009e-06 | AG35: 0.009651765407 | AH35: 24.15909682 | AI35: 162.185625 | AJ35: -0.004455583403 | AK35: 227.1043048 | AL35: 0.006776359867 | AM35: 236.25 | AN35: 0.005065933719 | AO35: 442.25903 | AP35: 0.002917057213 | AQ35: 223.8388545 | AR35: 0.01944704809
S36: 447.1261459 | T36: 0.003106827907 | U36: 19233.88937 | V36: 2.131887832e-07 | W36: 0.004474851667 | X36: 50.10401465 | Y36: 373.275 | Z36: -0.002240896359 | AA36: 501.99756 | AB36: 0.002862139452 | AC36: 224.5689219 | AD36: 0.02071218604 | AE36: 2693.039211 | AF36: 5.926625065e-06 | AG36: 0.009944114815 | AH36: 22.54680659 | AI36: 159.94125 | AJ36: -0.004455583403 | AK36: 227.3411933 | AL36: 0.007390012289 | AM36: 236.25 | AN36: 0.005065933719 | AO36: 447.1261459 | AP36: 0.003106827907 | AQ36: 224.5689219 | AR36: 0.02071218604
S37: 451.9932618 | T37: 0.00329632879 | U37: 19799.59187 | V37: 2.011042132e-07 | W37: 0.004606408901 | X37: 46.76025499 | Y37: 368.8125 | Z37: -0.002240896359 | AA37: 502.6092035 | AB37: 0.003120835406 | AC37: 225.2989893 | AD37: 0.02197552527 | AE37: 2772.224473 | AF37: 5.498652833e-06 | AG37: 0.01023646422 | AH37: 21.04211475 | AI37: 157.696875 | AJ37: -0.004455583403 | AK37: 227.5780818 | AL37: 0.008057962369 | AM37: 236.25 | AN37: 0.005065933719 | AO37: 451.9932618 | AP37: 0.00329632879 | AQ37: 225.2989893 | AR37: 0.02197552527
S38: 456.8603776 | T38: 0.003484054384 | U38: 20365.29437 | V38: 1.8999508e-07 | W38: 0.004737966135 | X38: 43.63964569 | Y38: 364.35 | Z38: -0.002240896359 | AA38: 503.2208471 | AB38: 0.003402326373 | AC38: 226.0290566 | AD38: 0.02322702922 | AE38: 2851.409735 | AF38: 5.110541052e-06 | AG38: 0.01052881363 | AH38: 19.63784056 | AI38: 155.4525 | AJ38: -0.004455583403 | AK38: 227.8149703 | AL38: 0.00878476892 | AM38: 236.25 | AN38: 0.005065933719 | AO38: 456.8603776 | AP38: 0.003484054384 | AQ38: 226.0290566 | AR38: 0.02322702922
S39: 461.7274935 | T39: 0.003668431407 | U39: 20930.99688 | V39: 1.797599082e-07 | W39: 0.004869523368 | X39: 40.7272945 | Y39: 359.8875 | Z39: -0.002240896359 | AA39: 503.8324906 | AB39: 0.003708507681 | AC39: 226.759124 | AD39: 0.02445620938 | AE39: 2930.594997 | AF39: 4.757750348e-06 | AG39: 0.01082116304 | AH39: 18.32728252 | AI39: 153.208125 | AJ39: -0.004455583403 | AK39: 228.0518588 | AL39: 0.009575325658 | AM39: 236.25 | AN39: 0.005065933719 | AO39: 461.7274935 | AP39: 0.003668431407 | AQ39: 226.759124 | AR39: 0.02445620938
S40: 466.5946094 | T40: 0.003847839568 | U40: 21496.69938 | V40: 1.70310053e-07 | W40: 0.005001080602 | X40: 38.00930303 | Y40: 355.425 | Z40: -0.002240896359 | AA40: 504.4441341 | AB40: 0.004041410161 | AC40: 227.4891914 | AD40: 0.02565226379 | AE40: 3009.780259 | AF40: 4.43635042e-06 | AG40: 0.01111351245 | AH40: 17.10418636 | AI40: 150.96375 | AJ40: -0.004455583403 | AK40: 228.2887474 | AL40: 0.01043487617 | AM40: 236.25 | AN40: 0.005065933719 | AO40: 466.5946094 | AP40: 0.003847839568 | AQ40: 227.4891914 | AR40: 0.02565226379
S41: 471.4617253 | T41: 0.004020634411 | U41: 22062.40188 | V41: 1.615678021e-07 | W41: 0.005132637836 | X41: 35.47270043 | Y41: 350.9625 | Z41: -0.002240896359 | AA41: 505.0557776 | AB41: 0.004403205367 | AC41: 228.2192588 | AD41: 0.02680422941 | AE41: 3088.965521 | AF41: 4.142926321e-06 | AG41: 0.01140586186 | AH41: 15.96271519 | AI41: 148.719375 | AJ41: -0.004455583403 | AK41: 228.5256359 | AL41: 0.01136902737 | AM41: 236.25 | AN41: 0.005065933719 | AO41: 471.4617253 | AP41: 0.004020634411 | AQ41: 228.2192588 | AR41: 0.02680422941
S42: 476.3288412 | T42: 0.004185171798 | U42: 22628.10439 | V42: 1.534647979e-07 | W42: 0.00526419507 | X42: 33.10538145 | Y42: 346.5 | Z42: -0.002240896359 | AA42: 505.6674211 | AB42: 0.004796209969 | AC42: 228.9493262 | AD42: 0.02790114532 | AE42: 3168.150783 | AF42: 3.874500929e-06 | AG42: 0.01169821127 | AH42: 14.89742165 | AI42: 146.475 | AJ42: -0.004455583403 | AK42: 228.7625244 | AL42: 0.01238376089 | AM42: 236.25 | AN42: 0.005065933719 | AO42: 476.3288412 | AP42: 0.004185171798 | AQ42: 228.9493262 | AR42: 0.02790114532
S43: 481.1959571 | T43: 0.004339833527 | U43: 23193.80689 | V43: 1.459407192e-07 | W43: 0.005395752304 | X43: 30.89604873 | Y43: 342.0375 | Z43: -0.002240896359 | AA43: 506.2790646 | AB43: 0.005222889033 | AC43: 229.6793936 | AD43: 0.02893222352 | AE43: 3247.336045 | AF43: 3.628470544e-06 | AG43: 0.01199056068 | AH43: 13.90322193 | AI43: 144.230625 | AJ43: -0.004455583403 | AK43: 228.9994129 | AL43: 0.01348544149 | AM43: 236.25 | AN43: 0.005065933719 | AO43: 481.1959571 | AP43: 0.004339833527 | AQ43: 229.6793936 | AR43: 0.02893222352
S44: 486.0630729 | T44: 0.004483053554 | U44: 23759.50939 | V44: 1.389421745e-07 | W44: 0.005527309538 | X44: 28.83415884 | Y44: 337.575 | Z44: -0.002240896359 | AA44: 506.8907081 | AB44: 0.005685857823 | AC44: 230.4094609 | AD44: 0.02988702369 | AE44: 3326.521307 | AF44: 3.402551131e-06 | AG44: 0.01228291008 | AH44: 12.97537148 | AI44: 141.98625 | AJ44: -0.004455583403 | AK44: 229.2363014 | AL44: 0.01468082177 | AM44: 236.25 | AN44: 0.005065933719 | AO44: 486.0630729 | AP44: 0.004483053554 | AQ44: 230.4094609 | AR44: 0.02988702369
S45: 490.9301888 | T45: 0.004613344205 | U45: 24325.2119 | V45: 1.324217689e-07 | W45: 0.005658866772 | X45: 26.90987198 | Y45: 333.1125 | Z45: -0.002240896359 | AA45: 507.5023517 | AB45: 0.006187881703 | AC45: 231.1395283 | AD45: 0.03075562804 | AE45: 3405.706569 | AF45: 3.194733266e-06 | AG45: 0.01257525949 | AH45: 12.10944239 | AI45: 139.741875 | AJ45: -0.004455583403 | AK45: 229.4731899 | AL45: 0.01597704186 | AM45: 236.25 | AN45: 0.005065933719 | AO45: 490.9301888 | AP45: 0.004613344205 | AQ45: 231.1395283 | AR45: 0.03075562804
S46: 495.7973047 | T46: 0.004729321807 | U46: 24890.9144 | V46: 1.263373147e-07 | W46: 0.005790424006 | X46: 25.11400502 | Y46: 328.65 | Z46: -0.002240896359 | AA46: 508.1139952 | AB46: 0.00673187362 | AC46: 231.8695957 | AD46: 0.03152881205 | AE46: 3484.891831 | AF46: 3.003244236e-06 | AG46: 0.0128676089 | AH46: 11.30130226 | AI46: 137.4975 | AJ46: -0.004455583403 | AK46: 229.7100785 | AL46: 0.01738162295 | AM46: 236.25 | AN46: 0.005065933719 | AO46: 495.7973047 | AP46: 0.004729321807 | AQ46: 231.8695957 | AR46: 0.03152881205
S47: 500.6644206 | T47: 0.004829731082 | U47: 25456.61691 | V47: 1.206511604e-07 | W47: 0.005921981239 | X47: 23.4379877 | Y47: 324.1875 | Z47: -0.002240896359 | AA47: 508.7256387 | AB47: 0.007320888586 | AC47: 232.5996631 | AD47: 0.03219820721 | AE47: 3564.077093 | AF47: 2.826516013e-06 | AG47: 0.01315995831 | AH47: 10.54709446 | AI47: 135.253125 | AJ47: -0.004455583403 | AK47: 229.946967 | AL47: 0.01890245305 | AM47: 236.25 | AN47: 0.005065933719 | AO47: 500.6644206 | AP47: 0.004829731082 | AQ47: 232.5996631 | AR47: 0.03219820721
S48: 505.5315365 | T48: 0.004913467743 | U48: 26022.31941 | V48: 1.153296187e-07 | W48: 0.006053538473 | X48: 21.87382167 | Y48: 319.725 | Z48: -0.002240896359 | AA48: 509.3372822 | AB48: 0.007958114438 | AC48: 233.3297305 | AD48: 0.03275645162 | AE48: 3643.262355 | AF48: 2.663158116e-06 | AG48: 0.01345230772 | AH48: 9.84321975 | AI48: 133.00875 | AJ48: -0.004455583403 | AK48: 230.1838555 | AL48: 0.02054776312 | AM48: 236.25 | AN48: 0.005065933719 | AO48: 505.5315365 | AP48: 0.004913467743 | AQ48: 233.3297305 | AR48: 0.03275645162
S49: 510.3986524 | T49: 0.004979598692 | U49: 26588.02191 | V49: 1.103424764e-07 | W49: 0.006185095707 | X49: 20.41404239 | Y49: 315.2625 | Z49: -0.002240896359 | AA49: 509.9489257 | AB49: 0.008646858067 | AC49: 234.0597979 | AD49: 0.03319732461 | AE49: 3722.447617 | AF49: 2.511934517e-06 | AG49: 0.01374465713 | AH49: 9.186319074 | AI49: 130.764375 | AJ49: -0.004455583403 | AK49: 230.420744 | AL49: 0.02232609153 | AM49: 236.25 | AN49: 0.005065933719 | AO49: 510.3986524 | AP49: 0.004979598692 | AQ49: 234.0597979 | AR49: 0.03319732461
S50: 515.2657682 | T50: 0.005027379326 | U50: 27153.72442 | V50: 1.056625739e-07 | W50: 0.006316652941 | X50: 19.05168346 | Y50: 310.8 | Z50: -0.002240896359 | AA50: 510.5605692 | AB50: 0.009390526165 | AC50: 234.7898652 | AD50: 0.03351586217 | AE50: 3801.63288 | AF50: 2.371743932e-06 | AG50: 0.01403700654 | AH50: 8.573257559 | AI50: 128.52 | AJ50: -0.004455583403 | AK50: 230.6576325 | AL50: 0.0242462343 | AM50: 236.25 | AN50: 0.005065933719 | AO50: 515.2657682 | AP50: 0.005027379326 | AQ50: 234.7898652 | AR50: 0.03351586217
S51: 520.1328841 | T51: 0.00505626749 | U51: 27719.42692 | V51: 1.012654427e-07 | W51: 0.006448210175 | X51: 17.78024342 | Y51: 306.3375 | Z51: -0.002240896359 | AA51: 511.1722128 | AB51: 0.0101925994 | AC51: 235.5199326 | AD51: 0.03370844993 | AE51: 3880.818142 | AF51: 2.241602945e-06 | AG51: 0.01432935594 | AH51: 8.00110954 | AI51: 126.275625 | AJ51: -0.004455583403 | AK51: 230.894521 | AL51: 0.0263171785 | AM51: 236.25 | AN51: 0.005065933719 | AO51: 520.1328841 | AP51: 0.00505626749 | AQ51: 235.5199326 | AR51: 0.03370844993
S52: 525 | T52: 0.005065933719 | U52: 28285.12942 | V52: 9.712899256e-08 | W52: 0.006579767409 | X52: 16.59365466 | Y52: 301.875 | Z52: -0.002240896359 | AA52: 511.7838563 | AB52: 0.01105659881 | AC52: 236.25 | AD52: 0.03377289146 | AE52: 3960.003404 | AF52: 2.120631515e-06 | AG52: 0.01462170535 | AH52: 7.467144597 | AI52: 124.03125 | AJ52: -0.004455583403 | AK52: 231.1314095 | AL52: 0.02854801536 | AM52: 236.25 | AN52: 0.005065933719 | AO52: 525 | AP52: 0.005065933719 | AQ52: 236.25 | AR52: 0.03377289146
S53: 529.8671159 | T53: 0.00505626749 | U53: 28850.83193 | V53: 9.323323937e-08 | W53: 0.006711324643 | X53: 15.48625452 | Y53: 297.4125 | Z53: -0.002240896359 | AA53: 512.3954998 | AB53: 0.01198604293 | AC53: 236.9800674 | AD53: 0.03370844993 | AE53: 4039.188666 | AF53: 2.008040482e-06 | AG53: 0.01491405476 | AH53: 6.968814533 | AI53: 121.786875 | AJ53: -0.004455583403 | AK53: 231.3682981 | AL53: 0.03094782976 | AM53: 236.25 | AN53: 0.005065933719 | AO53: 529.8671159 | AP53: 0.00505626749 | AQ53: 236.9800674 | AR53: 0.03370844993
S54: 534.7342318 | T54: 0.005027379326 | U54: 29416.53443 | V54: 8.956006949e-08 | W54: 0.006842881877 | X54: 14.45275823 | Y54: 292.95 | Z54: -0.002240896359 | AA54: 513.0071433 | AB54: 0.01298439429 | AC54: 237.7101348 | AD54: 0.03351586217 | AE54: 4118.373928 | AF54: 1.903120789e-06 | AG54: 0.01520640417 | AH54: 6.503741204 | AI54: 119.5425 | AJ54: -0.004455583403 | AK54: 231.6051866 | AL54: 0.03352556191 | AM54: 236.25 | AN54: 0.005065933719 | AO54: 534.7342318 | AP54: 0.005027379326 | AQ54: 237.7101348 | AR54: 0.03351586217
S55: 539.6013476 | T55: 0.004979598692 | U55: 29982.23693 | V55: 8.609303385e-08 | W55: 0.006974439111 | X55: 13.48823373 | Y55: 288.4875 | Z55: -0.002240896359 | AA55: 513.6187868 | AB55: 0.01405499339 | AC55: 238.4402021 | AD55: 0.03319732461 | AE55: 4197.55919 | AF55: 1.805234128e-06 | AG55: 0.01549875358 | AH55: 6.069705177 | AI55: 117.298125 | AJ55: -0.004455583403 | AK55: 231.8420751 | AL55: 0.03628983689 | AM55: 236.25 | AN55: 0.005065933719 | AO55: 539.6013476 | AP55: 0.004979598692 | AQ55: 238.4402021 | AR55: 0.03319732461
S56: 544.4684635 | T56: 0.004913467743 | U56: 30547.93944 | V56: 8.281716802e-08 | W56: 0.007105996344 | X56: 12.58807808 | Y56: 284.025 | Z56: -0.002240896359 | AA56: 514.2304303 | AB56: 0.01520097839 | AC56: 239.1702695 | AD56: 0.03275645162 | AE56: 4276.744452 | AF56: 1.713804833e-06 | AG56: 0.01579110299 | AH56: 5.664635135 | AI56: 115.05375 | AJ56: -0.004455583403 | AK56: 232.0789636 | AL56: 0.03924875743 | AM56: 236.25 | AN56: 0.005065933719 | AO56: 544.4684635 | AP56: 0.004913467743 | AQ56: 239.1702695 | AR56: 0.03275645162
S57: 549.3355794 | T57: 0.004829731082 | U57: 31113.64194 | V57: 7.971883472e-08 | W57: 0.007237553578 | X57: 11.74799554 | Y57: 279.5625 | Z57: -0.002240896359 | AA57: 514.8420739 | AB57: 0.01642518862 | AC57: 239.9003369 | AD57: 0.03219820721 | AE57: 4355.929714 | AF57: 1.628312806e-06 | AG57: 0.0160834524 | AH57: 5.286597995 | AI57: 112.809375 | AJ57: -0.004455583403 | AK57: 232.3158521 | AL57: 0.04240965465 | AM57: 236.25 | AN57: 0.005065933719 | AO57: 549.3355794 | AP57: 0.004829731082 | AQ57: 239.9003369 | AR57: 0.03219820721
S58: 554.2026953 | T58: 0.004729321807 | U58: 31679.34445 | V58: 7.678558524e-08 | W58: 0.007369110812 | X58: 10.96397706 | Y58: 275.1 | Z58: -0.002240896359 | AA58: 515.4537174 | AB58: 0.01773004985 | AC58: 240.6304043 | AD58: 0.03152881205 | AE58: 4435.114976 | AF58: 1.548287358e-06 | AG58: 0.0163758018 | AH58: 4.933789677 | AI58: 110.565 | AJ58: -0.004455583403 | AK58: 232.5527406 | AL58: 0.04577879185 | AM58: 236.25 | AN58: 0.005065933719 | AO58: 554.2026953 | AP58: 0.004729321807 | AQ58: 240.6304043 | AR58: 0.03152881205
S59: 559.0698112 | T59: 0.004613344205 | U59: 32245.04695 | V59: 7.400603762e-08 | W59: 0.007500668046 | X59: 10.23228112 | Y59: 270.6375 | Z59: -0.002240896359 | AA59: 516.0653609 | AB59: 0.01911743926 | AC59: 241.3604717 | AD59: 0.03075562804 | AE59: 4514.300238 | AF59: 1.473301805e-06 | AG59: 0.01666815121 | AH59: 4.604526504 | AI59: 108.320625 | AJ59: -0.004455583403 | AK59: 232.7896292 | AL59: 0.04936101593 | AM59: 236.25 | AN59: 0.005065933719 | AO59: 559.0698112 | AP59: 0.004613344205 | AQ59: 241.3604717 | AR59: 0.03075562804
S60: 563.9369271 | T60: 0.004483053554 | U60: 32810.74945 | V60: 7.136976905e-08 | W60: 0.00763222528 | X60: 9.549415903 | Y60: 266.175 | Z60: -0.002240896359 | AA60: 516.6770044 | AB60: 0.02058852839 | AC60: 242.0905391 | AD60: 0.02988702369 | AE60: 4593.4855 | AF60: 1.402968741e-06 | AG60: 0.01696050062 | AH60: 4.297237156 | AI60: 106.07625 | AJ60: -0.004455583403 | AK60: 233.0265177 | AL60: 0.05315935171 | AM60: 236.25 | AN60: 0.005065933719 | AO60: 563.9369271 | AP60: 0.004483053554 | AQ60: 242.0905391 | AR60: 0.02988702369
S61: 568.8040429 | T61: 0.004339833527 | U61: 33376.45196 | V61: 6.886722071e-08 | W61: 0.007763782514 | X61: 8.912122627 | Y61: 261.7125 | Z61: -0.002240896359 | AA61: 517.2886479 | AB61: 0.02214360212 | AC61: 242.8206064 | AD61: 0.02893222352 | AE61: 4672.670762 | AF61: 1.336935882e-06 | AG61: 0.01725285003 | AH61: 4.010455182 | AI61: 103.831875 | AJ61: -0.004455583403 | AK61: 233.2634062 | AL61: 0.05717453482 | AM61: 236.25 | AN61: 0.005065933719 | AO61: 568.8040429 | AP61: 0.004339833527 | AQ61: 242.8206064 | AR61: 0.02893222352
S62: 573.6711588 | T62: 0.004185171798 | U62: 33942.15446 | V62: 6.648961346e-08 | W62: 0.007895339748 | X62: 8.317359986 | Y62: 257.25 | Z62: -0.002240896359 | AA62: 517.9002914 | AB62: 0.02378185279 | AC62: 243.5506738 | AD62: 0.02790114532 | AE62: 4751.856024 | AF62: 1.274882399e-06 | AG62: 0.01754519944 | AH62: 3.742811994 | AI62: 101.5875 | AJ62: -0.004455583403 | AK62: 233.5002947 | AL62: 0.06140447987 | AM62: 236.25 | AN62: 0.005065933719 | AO62: 573.6711588 | AP62: 0.004185171798 | AQ62: 243.5506738 | AR62: 0.02790114532
S63: 578.5382747 | T63: 0.004020634411 | U63: 34507.85696 | V63: 6.422887295e-08 | W63: 0.008026896982 | X63: 7.762289639 | Y63: 252.7875 | Z63: -0.002240896359 | AA63: 518.511935 | AB63: 0.02550114859 | AC63: 244.2807412 | AD63: 0.02680422941 | AE63: 4831.041286 | AF63: 1.216515695e-06 | AG63: 0.01783754885 | AH63: 3.493030338 | AI63: 99.343125 | AJ63: -0.004455583403 | AK63: 233.7371832 | AL63: 0.06584368252 | AM63: 236.25 | AN63: 0.005065933719 | AO63: 578.5382747 | AP63: 0.004020634411 | AQ63: 244.2807412 | AR63: 0.02680422941
S64: 583.4053906 | T64: 0.003847839568 | U64: 35073.55947 | V64: 6.207756298e-08 | W64: 0.008158454215 | X64: 7.244262668 | Y64: 248.325 | Z64: -0.002240896359 | AA64: 519.1235785 | AB64: 0.02729777664 | AC64: 245.0108086 | AD64: 0.02565226379 | AE64: 4910.226548 | AF64: 1.161568544e-06 | AG64: 0.01812989826 | AH64: 3.259918201 | AI64: 97.09875 | AJ64: -0.004455583403 | AK64: 233.9740717 | AL64: 0.07048255621 | AM64: 236.25 | AN64: 0.005065933719 | AO64: 583.4053906 | AP64: 0.003847839568 | AQ64: 245.0108086 | AR64: 0.02565226379
S65: 588.2725065 | T65: 0.003668431407 | U65: 35639.26197 | V65: 6.002882607e-08 | W65: 0.008290011449 | X65: 6.760806933 | Y65: 243.8625 | Z65: -0.002240896359 | AA65: 519.735222 | AB65: 0.0291661626 | AC65: 245.740876 | AD65: 0.02445620938 | AE65: 4989.41181 | AF65: 1.109796559e-06 | AG65: 0.01842224767 | AH65: 3.04236312 | AI65: 94.854375 | AJ65: -0.004455583403 | AK65: 234.2109602 | AL65: 0.07530670802 | AM65: 236.25 | AN65: 0.005065933719 | AO65: 588.2725065 | AP65: 0.003668431407 | AQ65: 245.740876 | AR65: 0.02445620938
S66: 593.1396224 | T66: =NORMDIST(S66,$C$7,$C$8,0) -> 0.003484054384 | U66: 36204.96447 | V66: =EXP(-1*(LN(U66)-$U$104)^2/(2*$U$106^2))/(SQRT(2*PI())*($U$106*U66)) -> 5.807633043e-08 | W66: 0.008421568683 | X66: =$C$7*EXP(-W66*$C$7) -> 6.309615274 | Y66: 239.4 | Z66: =1/($C$8-$C$7) -> -0.002240896359 | AA66: 520.3468655 | AB66: =EXP((AA66-$AA$104)/$AA$106)*EXP(-EXP((AA66-$AA$104)/$AA$106))/$AA$106 -> 0.03109856995 | AC66: 246.4709434 | AD66: =NORMDIST(AC66,$C$3,$C$4,0) -> 0.02322702922 | AE66: 5068.597072 | AF66: =EXP(-1*(LN(AE66)-$AE$104)^2/(2*$AE$106^2))/(SQRT(2*PI())*($AE$106*AE66)) -> 1.060975952e-06 | AG66: 0.01871459707 | AH66: =$C$3*EXP(-AG66*$C$3) -> 2.839326873 | AI66: 92.61 | AJ66: =1/($C$4-$C$3) -> -0.004455583403 | AK66: 234.4478488 | AL66: 0.08029616233 | AM66: =$C$3 -> 236.25 | AN66: 0.005065933719 | AO66: =OFFSET($R$2,ROW(AO66)-2,2*$AT$7-1) -> 593.1396224 | AP66: =OFFSET($R$2,ROW(AO66)-2,2*$AT$7) -> 0.003484054384 | AQ66: 246.4709434 | AR66: 0.02322702922
S67: 598.0067382 | T67: 0.00329632879 | U67: 36770.66698 | V67: 5.621422245e-08 | W67: 0.008553125917 | X67: 5.888534506 | Y67: 234.9375 | Z67: -0.002240896359 | AA67: 520.958509 | AB67: 0.03308478482 | AC67: =($AC$101-$AC$2)/100+AC66 -> 247.2010107 | AD67: 0.02197552527 | AE67: 5147.782335 | AF67: 1.014901532e-06 | AG67: 0.01900694648 | AH67: 2.649840528 | AI67: 90.365625 | AJ67: -0.004455583403 | AK67: 234.6847373 | AL67: =EXP((AK67-$AK$104)/$AK$106)*EXP(-EXP((AK67-$AK$104)/$AK$106))/$AK$106 -> 0.08542454707 | AM67: 236.25 | AN67: 0.005065933719 | AO67: 598.0067382 | AP67: 0.00329632879 | AQ67: =OFFSET($AB$2,ROW(AQ67)-2,2*$AU$8-1) -> 247.2010107 | AR67: =OFFSET($AB$2,ROW(AQ67)-2,2*$AU$8) -> 0.02197552527
S68: =($S$101-$S$2)/100+S67 -> 602.8738541 | T68: 0.003106827907 | U68: =($U$101-$U$2)/100+U67 -> 37336.36948 | V68: 5.443708413e-08 | W68: =($W$101-$W$2)/100+W67 -> 0.008684683151 | X68: 5.495555136 | Y68: =($Y$101-$Y$2)/100+Y67 -> 230.475 | Z68: -0.002240896359 | AA68: =($AA$101-$AA$2)/100+AA67 -> 521.5701525 | AB68: 0.03511179481 | AC68: 247.9310781 | AD68: 0.02071218604 | AE68: =($AE$101-$AE$2)/100+AE67 -> 5226.967597 | AF68: 9.713849328e-07 | AG68: =($AG$101-$AG$2)/100+AG67 -> 0.01929929589 | AH68: 2.472999811 | AI68: =($AI$101-$AI$2)/100+AI67 -> 88.12125 | AJ68: -0.004455583403 | AK68: =($AK$101-$AK$2)/100+AK67 -> 234.9216258 | AL68: 0.09065826438 | AM68: 236.25 | AN68: =MAX(AP:AP) -> 0.005065933719 | AO68: 602.8738541 | AP68: 0.003106827907 | AQ68: 247.9310781 | AR68: 0.02071218604
S69: 607.74097 | T69: 0.002917057213 | U69: 37902.07199 | V69: 5.273989489e-08 | W69: 0.008816240385 | X69: 5.128801779 | Y69: 226.0125 | Z69: -0.002240896359 | AA69: 522.1817961 | AB69: 0.03716347379 | AC69: 248.6611455 | AD69: 0.01944704809 | AE69: 5306.152859 | AF69: 9.302530205e-07 | AG69: 0.0195916453 | AH69: 2.307960801 | AI69: 85.876875 | AJ69: -0.004455583403 | AK69: 235.1585143 | AL69: 0.09595567672 | AM69: 236.25 | AN69: 0.005065933719 | AO69: 607.74097 | AP69: 0.002917057213 | AQ69: 248.6611455 | AR69: 0.01944704809
S70: 612.6080859 | T70: 0.002728436008 | U70: 38467.77449 | V70: 5.111799721e-08 | W70: 0.008947797619 | X70: 4.786524207 | Y70: 221.55 | Z70: -0.002240896359 | AA70: 522.7934396 | AB70: 0.03922028867 | AC70: 249.3912129 | AD70: 0.01818957339 | AE70: 5385.338121 | AF70: 8.913464802e-07 | AG70: 0.01988399471 | AH70: 2.153935893 | AI70: 83.6325 | AJ70: -0.004455583403 | AK70: 235.3954028 | AL70: 0.1012663499 | AM70: 236.25 | AN70: 0.005065933719 | AO70: 612.6080859 | AP70: 0.002728436008 | AQ70: 249.3912129 | AR70: 0.01818957339
S71: 617.4752018 | T71: 0.002542281713 | U71: 39033.47699 | V71: 4.956706564e-08 | W71: 0.009079354853 | X71: 4.467088995 | Y71: 217.0875 | Z71: -0.002240896359 | AA71: 523.4050831 | AB71: 0.04125904912 | AC71: 250.1212803 | AD71: 0.01694854475 | AE71: 5464.523383 | AF71: 8.545185464e-07 | AG71: 0.02017634412 | AH71: 2.010190048 | AI71: 81.388125 | AJ71: -0.004455583403 | AK71: 235.6322913 | AL71: 0.1065304067 | AM71: 236.25 | AN71: 0.005065933719 | AO71: 617.4752018 | AP71: 0.002542281713 | AQ71: 250.1212803 | AR71: 0.01694854475
S72: 622.3423176 | T72: 0.002359797031 | U72: 39599.1795 | V72: 4.808307893e-08 | W72: 0.009210912086 | X72: 4.168971727 | Y72: 212.625 | Z72: -0.002240896359 | AA72: 524.0167266 | AB72: 0.043252726 | AC72: 250.8513476 | AD72: 0.01573198021 | AE72: 5543.708645 | AF72: 8.196338655e-07 | AG72: 0.02046869353 | AH72: 1.876037277 | AI72: 79.14375 | AJ72: -0.004455583403 | AK72: 235.8691799 | AL72: 0.1116780583 | AM72: 236.25 | AN72: 0.005065933719 | AO72: 622.3423176 | AP72: 0.002359797031 | AQ72: 250.8513476 | AR72: 0.01573198021
S73: 627.2094335 | T73: 0.002182060074 | U73: 40164.882 | V73: 4.666229475e-08 | W73: 0.00934246932 | X73: 3.890749721 | Y73: 208.1625 | Z73: -0.002240896359 | AA73: 524.6283701 | AB73: 0.04517037015 | AC73: 251.581415 | AD73: 0.01454706716 | AE73: 5622.893907 | AF73: 7.865674755e-07 | AG73: 0.02076104293 | AH73: 1.750837374 | AI73: 76.899375 | AJ73: -0.004455583403 | AK73: 236.1060684 | AL73: 0.1166293942 | AM73: 236.25 | AN73: 0.005065933719 | AO73: 627.2094335 | AP73: 0.002182060074 | AQ73: 251.581415 | AR73: 0.01454706716
S74: 632.0765494 | T74: 0.002010017466 | U74: 40730.5845 | V74: 4.530122691e-08 | W74: 0.009474026554 | X74: 3.631095239 | Y74: 203.7 | Z74: -0.002240896359 | AA74: 525.2400136 | AB74: 0.04697716799 | AC74: 252.3114824 | AD74: 0.01340011644 | AE74: 5702.079169 | AF74: 7.552038879e-07 | AG74: 0.02105339234 | AH74: 1.633992858 | AI74: 74.655 | AJ74: -0.004455583403 | AK74: 236.3429569 | AL74: 0.1212945262 | AM74: 236.25 | AN74: 0.005065933719 | AO74: 632.0765494 | AP74: 0.002010017466 | AQ74: 252.3114824 | AR74: 0.01340011644
S75: 636.9436653 | T75: 0.00184448036 | U75: 41296.28701 | V75: 4.399662466e-08 | W75: 0.009605583788 | X75: 3.388769153 | Y75: 199.2375 | Z75: -0.002240896359 | AA75: 525.8516571 | AB75: 0.04863467557 | AC75: 253.0415498 | AD75: 0.01229653574 | AE75: 5781.264431 | AF75: 7.254362619e-07 | AG75: 0.02134574175 | AH75: 1.524946119 | AI75: 72.410625 | AJ75: -0.004455583403 | AK75: 236.5798454 | AL75: 0.1255741924 | AM75: 236.25 | AN75: 0.005065933719 | AO75: 636.9436653 | AP75: 0.00184448036 | AQ75: 253.0415498 | AR75: 0.01229653574
S76: 641.8107812 | T76: 0.001686123243 | U76: 41861.98951 | V76: 4.274545393e-08 | W76: 0.009737141022 | X76: 3.162615029 | Y76: 194.775 | Z76: -0.002240896359 | AA76: 526.4633007 | AB76: 0.05010127513 | AC76: 253.7716172 | AD76: 0.01124082162 | AE76: 5860.449693 | AF76: 6.97165659e-07 | AG76: 0.02163809116 | AH76: 1.423176763 | AI76: 70.16625 | AJ76: -0.004455583403 | AK76: 236.8167339 | AL76: 0.1293609361 | AM76: 236.25 | AN76: 0.005065933719 | AO76: 641.8107812 | AP76: 0.001686123243 | AQ76: 253.7716172 | AR76: 0.01124082162
S77: 646.6778971 | T77: 0.001535485327 | U77: 42427.69201 | V77: 4.154488031e-08 | W77: 0.009868698256 | X77: 2.951553607 | Y77: 190.3125 | Z77: -0.002240896359 | AA77: 527.0749442 | AB77: 0.05133289929 | AC77: 254.5016846 | AD77: 0.01023656884 | AE77: 5939.634955 | AF77: 6.70300371e-07 | AG77: 0.02193044057 | AH77: 1.328199123 | AI77: 67.921875 | AJ77: -0.004455583403 | AK77: 237.0536224 | AL77: 0.132540976 | AM77: 236.25 | AN77: 0.005065933719 | AO77: 646.6778971 | AP77: 0.001535485327 | AQ77: 254.5016846 | AR77: 0.01023656884
S78: 651.5450129 | T78: 0.001392974294 | U78: 42993.39452 | V78: 4.039225351e-08 | W78: 0.01000025549 | X78: 2.754577657 | Y78: 185.85 | Z78: -0.002240896359 | AA78: 527.6865877 | AB78: 0.05228406435 | AC78: 255.2317519 | AD78: 0.00928649529 | AE78: 6018.820217 | AF78: 6.447553119e-07 | AG78: 0.02222278998 | AH78: 1.239559946 | AI78: 65.6775 | AJ78: -0.004455583403 | AK78: 237.2905109 | AL78: 0.1349968737 | AM78: 236.25 | AN78: 0.005065933719 | AO78: 651.5450129 | AP78: 0.001392974294 | AQ78: 255.2317519 | AR78: 0.00928649529
S79: 656.4121288 | T79: 0.001258872101 | U79: 43559.09702 | V79: 3.928509329e-08 | W79: 0.01013181272 | X79: 2.570747166 | Y79: 181.3875 | Z79: -0.002240896359 | AA79: 528.2982312 | AB79: 0.05290924555 | AC79: 255.9618193 | AD79: 0.008392480673 | AE79: 6098.005479 | AF79: 6.204514679e-07 | AG79: 0.02251513939 | AH79: 1.156836225 | AI79: 63.433125 | AJ79: -0.004455583403 | AK79: 237.5273995 | AL79: 0.1366110846 | AM79: 236.25 | AN79: 0.005065933719 | AO79: 656.4121288 | AP79: 0.001258872101 | AQ79: 255.9618193 | AR79: 0.008392480673
S80: 661.2792447 | T80: 0.001133342543 | U80: 44124.79953 | V80: 3.822107655e-08 | W80: 0.01026336996 | X80: 2.399184853 | Y80: 176.925 | Z80: -0.002240896359 | AA80: 528.9098747 | AB80: 0.05316461166 | AC80: 256.6918867 | AD80: 0.007555616955 | AE80: 6177.190741 | AF80: 5.97315399e-07 | AG80: 0.02280748879 | AH80: 1.079633184 | AI80: 61.18875 | AJ80: -0.004455583403 | AK80: 237.764288 | AL80: 0.137270437 | AM80: 236.25 | AN80: 0.005065933719 | AO80: 661.2792447 | AP80: 0.001133342543 | AQ80: 256.6918867 | AR80: 0.007555616955
S81: 666.1463606 | T81: 0.00101644024 | U81: 44690.50203 | V81: 3.719802558e-08 | W81: 0.01039492719 | X81: 2.239071984 | Y81: 172.4625 | Z81: -0.002240896359 | AA81: 529.5215182 | AB81: 0.05301011227 | AC81: 257.4219541 | AD81: 0.006776268266 | AE81: 6256.376003 | AF81: 5.752787864e-07 | AG81: 0.0230998382 | AH81: 1.007582393 | AI81: 58.944375 | AJ81: -0.004455583403 | AK81: 238.0011765 | AL81: 0.1368715213 | AM81: 236.25 | AN81: 0.005065933719 | AO81: 666.1463606 | AP81: 0.00101644024 | AQ81: 257.4219541 | AR81: 0.006776268266
S82: 671.0134765 | T82: 0.0009081207188 | U82: 45256.20453 | V82: 3.621389733e-08 | W82: 0.01052648443 | X82: 2.089644466 | Y82: 168 | Z82: -0.002240896359 | AA82: 530.1331618 | AB82: 0.05241187794 | AC82: 258.1520215 | AD82: 0.006054138125 | AE82: 6335.561265 | AF82: 5.542780219e-07 | AG82: 0.02339218761 | AH82: 0.9403400095 | AI82: 56.7 | AJ82: -0.004455583403 | AK82: 238.238065 | AL82: 0.1353268869 | AM82: 236.25 | AN82: 0.005065933719 | AO82: 671.0134765 | AP82: 0.0009081207188 | AQ82: 258.1520215 | AR82: 0.006054138125
S83: 675.8805923 | T83: 0.0008082512671 | U83: 45821.90704 | V83: 3.526677359e-08 | W83: 0.01065804166 | X83: 1.950189196 | Y83: 163.5375 | Z83: -0.002240896359 | AA83: 530.7448053 | AB83: 0.05134485072 | AC83: 258.8820889 | AD83: 0.005388341781 | AE83: 6414.746528 | AF83: 5.34253834e-07 | AG83: 0.02368453702 | AH83: 0.8775851383 | AI83: 54.455625 | AJ83: -0.004455583403 | AK83: 238.4749535 | AL83: 0.1325718345 | AM83: 236.25 | AN83: 0.005065933719 | AO83: 675.8805923 | AP83: 0.0008082512671 | AQ83: 258.8820889 | AR83: 0.005388341781
S84: 680.7477082 | T84: 0.0007166222361 | U84: 46387.60954 | V84: 3.435485196e-08 | W84: 0.01078959889 | X84: 1.820040664 | Y84: 159.075 | Z84: -0.002240896359 | AA84: 531.3564488 | AB84: 0.04979551164 | AC84: 259.6121562 | AD84: 0.004777481574 | AE84: 6493.93179 | AF84: 5.15150948e-07 | AG84: 0.02397688643 | AH84: 0.8190182989 | AI84: 52.21125 | AJ84: -0.004455583403 | AK84: 238.711842 | AL84: 0.1285714582 | AM84: 236.25 | AN84: 0.005065933719 | AO84: 680.7477082 | AP84: 0.0007166222361 | AQ84: 259.6121562 | AR84: 0.004777481574
S85: 685.6148241 | T85: 0.000632958507 | U85: 46953.31204 | V85: 3.34764376e-08 | W85: 0.01092115613 | X85: 1.698577772 | Y85: 154.6125 | Z85: -0.002240896359 | AA85: 531.9680923 | AB85: 0.04776451595 | AC85: 260.3422236 | AD85: 0.00421972338 | AE85: 6573.117052 | AF85: 4.969177758e-07 | AG85: 0.02426923584 | AH85: 0.7643599972 | AI85: 49.966875 | AJ85: -0.004455583403 | AK85: 238.9487305 | AL85: 0.1233274499 | AM85: 236.25 | AN85: 0.005065933719 | AO85: 685.6148241 | AP85: 0.000632958507 | AQ85: 260.3422236 | AR85: 0.00421972338
S86: 690.48194 | T86: 0.0005569308538 | U86: 47519.01455 | V86: 3.262993566e-08 | W86: 0.01105271336 | X86: 1.585220871 | Y86: 150.15 | Z86: -0.002240896359 | AA86: 532.5797358 | AB86: 0.04526899248 | AC86: 261.072291 | AD86: 0.003712872359 | AE86: 6652.302314 | AF86: 4.795061332e-07 | AG86: 0.02456158525 | AH86: 0.7133493918 | AI86: 47.7225 | AJ86: -0.004455583403 | AK86: 239.1856191 | AL86: 0.116884036 | AM86: 236.25 | AN86: 0.005065933719 | AO86: 690.48194 | AP86: 0.0005569308538 | AQ86: 261.072291 | AR86: 0.003712872359
S87: 695.3490559 | T87: 0.00048816697 | U87: 48084.71705 | V87: 3.18138443e-08 | W87: 0.01118427059 | X87: 1.479428997 | Y87: 145.6875 | Z87: -0.002240896359 | AA87: 533.1913793 | AB87: 0.04234421775 | AC87: 261.8023584 | AD87: 0.003254446467 | AE87: 6731.487576 | AF87: 4.628709813e-07 | AG87: 0.02485393465 | AH87: 0.6657430486 | AI87: 45.478125 | AJ87: -0.004455583403 | AK87: 239.4225076 | AL87: 0.1093323001 | AM87: 236.25 | AN87: 0.005065933719 | AO87: 695.3490559 | AP87: 0.00048816697 | AQ87: 261.8023584 | AR87: 0.003254446467
S88: 700.2161718 | T88: 0.0004262619622 | U88: 48650.41955 | V88: 3.102674831e-08 | W88: 0.01131582783 | X88: 1.380697288 | Y88: 141.225 | Z88: -0.002240896359 | AA88: 533.8030229 | AB88: 0.03904435216 | AC88: 262.5324258 | AD88: 0.002841746415 | AE88: 6810.672838 | AF88: 4.469701904e-07 | AG88: 0.02514628406 | AH88: 0.6213137795 | AI88: 43.23375 | AJ88: -0.004455583403 | AK88: 239.6593961 | AL88: 0.1008120838 | AM88: 236.25 | AN88: 0.005065933719 | AO88: 700.2161718 | AP88: 0.0004262619622 | AQ88: 262.5324258 | AR88: 0.002841746415
S89: 705.0832876 | T89: 0.0003707881483 | U89: 49216.12206 | V89: 3.026731317e-08 | W89: 0.01144738506 | X89: 1.288554574 | Y89: 136.7625 | Z89: -0.002240896359 | AA89: 534.4146664 | AB89: 0.03544193498 | AC89: 263.2624931 | AD89: 0.002471920989 | AE89: 6889.8581 | AF89: 4.317643238e-07 | AG89: 0.02543863347 | AH89: 0.5798495583 | AI89: 40.989375 | AJ89: -0.004455583403 | AK89: 239.8962846 | AL89: 0.09151068263 | AM89: 236.25 | AN89: 0.005065933719 | AO89: 705.0832876 | AP89: 0.0003707881483 | AQ89: 263.2624931 | AR89: 0.002471920989
S90: 709.9504035 | T90: 0.0003213040384 | U90: 49781.82456 | V90: 2.953427964e-08 | W90: 0.0115789423 | X90: 1.202561129 | Y90: 132.3 | Z90: -0.002240896359 | AA90: 535.0263099 | AB90: 0.03162589237 | AC90: 263.9925605 | AD90: 0.002142026923 | AE90: 6969.043362 | AF90: 4.1721644e-07 | AG90: 0.02573098288 | AH90: 0.5411525083 | AI90: 38.745 | AJ90: -0.004455583403 | AK90: 240.1331731 | AL90: 0.08165770297 | AM90: 236.25 | AN90: 0.005065933719 | AO90: 709.9504035 | AP90: 0.0003213040384 | AQ90: 263.9925605 | AR90: 0.002142026923
S91: 714.8175194 | T91: 0.0002773624086 | U91: 50347.52707 | V91: 2.882645874e-08 | W91: 0.01171049953 | X91: 1.122306575 | Y91: 127.8375 | Z91: -0.002240896359 | AA91: 535.6379534 | AB91: 0.02769792588 | AC91: 264.7226279 | AD91: 0.001849082724 | AE91: 7048.228624 | AF91: 4.032919107e-07 | AG91: 0.02602333229 | AH91: 0.5050379586 | AI91: 36.500625 | AJ91: -0.004455583403 | AK91: 240.3700616 | AL91: 0.0715157371 | AM91: 236.25 | AN91: 0.005065933719 | AO91: 714.8175194 | AP91: 0.0002773624086 | AQ91: 264.7226279 | AR91: 0.001849082724
S92: 719.6846353 | T92: 0.0002385174137 | U92: 50913.22957 | V92: 2.814272713e-08 | W92: 0.01184205676 | X92: 1.047407917 | Y92: 123.375 | Z92: -0.002240896359 | AA92: 536.2495969 | AB92: 0.02376732142 | AC92: 265.4526953 | AD92: 0.001590116091 | AE92: 7127.413886 | AF92: 3.899582545e-07 | AG92: 0.0263156817 | AH92: 0.4713335626 | AI92: 34.25625 | AJ92: -0.004455583403 | AK92: 240.6069502 | AL92: 0.06136696002 | AM92: 236.25 | AN92: 0.005065933719 | AO92: 719.6846353 | AP92: 0.0002385174137 | AQ92: 265.4526953 | AR92: 0.001590116091
S93: 724.5517512 | T93: 0.0002043307169 | U93: 51478.93207 | V93: 2.74820228e-08 | W93: 0.011973614 | X93: 0.9775077231 | Y93: 118.9125 | Z93: -0.002240896359 | AA93: 536.8612404 | AB93: 0.01994443898 | AC93: 266.1827627 | AD93: 0.00136220478 | AE93: 7206.599148 | AF93: 3.771849836e-07 | AG93: 0.02660803111 | AH93: 0.4398784754 | AI93: 32.011875 | AJ93: -0.004455583403 | AK93: 240.8438387 | AL93: 0.05149632002 | AM93: 236.25 | AN93: 0.005065933719 | AO93: 724.5517512 | AP93: 0.0002043307169 | AQ93: 266.1827627 | AR93: 0.00136220478
S94: 729.4188671 | T94: 0.0001743766387 | U94: 52044.63458 | V94: 2.684334112e-08 | W94: 0.01210517123 | X94: 0.9122724139 | Y94: 114.45 | Z94: -0.002240896359 | AA94: 537.472884 | AB94: 0.0163333883 | AC94: 266.9128301 | AD94: 0.001162510924 | AE94: 7285.78441 | AF94: 3.649434631e-07 | AG94: 0.02690038052 | AH94: 0.4105225862 | AI94: 29.7675 | AJ94: -0.004455583403 | AK94: 241.0807272 | AL94: 0.04217262724 | AM94: 236.25 | AN94: 0.005065933719 | AO94: 729.4188671 | AP94: 0.0001743766387 | AQ94: 266.9128301 | AR94: 0.001162510924
S95: 734.2859829 | T95: 0.0001482463538 | U95: 52610.33708 | V95: 2.622573122e-08 | W95: 0.01223672847 | X95: 0.8513906719 | Y95: 109.9875 | Z95: -0.002240896359 | AA95: 538.0845275 | AB95: 0.01302462183 | AC95: 267.6428974 | AD95: 0.0009883090256 | AE95: 7364.969672 | AF95: 3.532067815e-07 | AG95: 0.02719272992 | AH95: 0.3831258023 | AI95: 27.523125 | AJ95: -0.004455583403 | AK95: 241.3176157 | AL95: 0.03362942897 | AM95: 236.25 | AN95: 0.005065933719 | AO95: 734.2859829 | AP95: 0.0001482463538 | AQ95: 267.6428974 | AR95: 0.0009883090256
S96: 739.1530988 | T96: 0.0001255511847 | U96: 53176.03958 | V96: 2.562829253e-08 | W96: 0.0123682857 | X96: 0.7945719558 | Y96: 105.525 | Z96: -0.002240896359 | AA96: 538.696171 | AB96: 0.01008833259 | AC96: 268.3729648 | AD96: 0.000837007898 | AE96: 7444.154934 | AF96: 3.419496312e-07 | AG96: 0.02748507933 | AH96: 0.3575573801 | AI96: 25.27875 | AJ96: -0.004455583403 | AK96: 241.5545042 | AL96: 0.02604796275 | AM96: 236.25 | AN96: 0.005065933719 | AO96: 739.1530988 | AP96: 0.0001255511847 | AQ96: 268.3729648 | AR96: 0.000837007898
S97: 744.0202147 | T97: 0.0001059250519 | U97: 53741.74209 | V97: 2.505017168e-08 | W97: 0.01249984293 | X97: 0.7415451142 | Y97: 101.0625 | Z97: -0.002240896359 | AA97: 539.3078145 | AB97: 0.007569572587 | AC97: 269.1030322 | AD97: 0.0007061670124 | AE97: 7523.340196 | AF97: 3.31148199e-07 | AG97: 0.02777742874 | AH97: 0.3336953014 | AI97: 23.034375 | AJ97: -0.004455583403 | AK97: 241.7913927 | AL97: 0.01954455238 | AM97: 236.25 | AN97: 0.005065933719 | AO97: 744.0202147 | AP97: 0.0001059250519 | AQ97: 269.1030322 | AR97: 0.0007061670124
S98: 748.8873306 | T98: 8.902615796e-05 | U98: 54307.44459 | V98: 2.449055953e-08 | W98: 0.01263140017 | X98: 0.6920570911 | Y98: 96.6 | Z98: -0.002240896359 | AA98: 539.919458 | AB98: 0.005485868065 | AC98: 269.8330996 | AD98: 0.0005935077197 | AE98: 7602.525458 | AF98: 3.207800639e-07 | AG98: 0.02806977815 | AH98: 0.311425691 | AI98: 20.79 | AJ98: -0.004455583403 | AK98: 242.0282812 | AL98: 0.01416445044 | AM98: 236.25 | AN98: 0.005065933719 | AO98: 748.8873306 | AP98: 8.902615796e-05 | AQ98: 269.8330996 | AR98: 0.0005935077197
S99: 753.7544465 | T99: 7.453798581e-05 | U99: 54873.1471 | V99: 2.394868853e-08 | W99: 0.0127629574 | X99: 0.6458717185 | Y99: 92.1375 | Z99: -0.002240896359 | AA99: 540.5311015 | AB99: 0.003827787582 | AC99: 270.563167 | AD99: 0.0004969199054 | AE99: 7681.71072 | AF99: 3.108241043e-07 | AG99: 0.02836212756 | AH99: 0.2906422733 | AI99: 18.545625 | AJ99: -0.004455583403 | AK99: 242.2651698 | AL99: 0.009883305038 | AM99: 236.25 | AN99: 0.005065933719 | AO99: 753.7544465 | AP99: 7.453798581e-05 | AQ99: 270.563167 | AR99: 0.0004969199054
S100: 758.6215623 | T100: 6.216969695e-05 | U100: 55438.8496 | V100: 2.342383012e-08 | W100: 0.01289451464 | X100: 0.6027685898 | Y100: 87.675 | Z100: -0.002240896359 | AA100: 541.1427451 | AB100: 0.002562455938 | AC100: =($AC$101-$AC$2)/100+AC99 -> 271.2932344 | AD100: 0.0004144646463 | AE100: 7760.895983 | AF100: 3.012604105e-07 | AG100: 0.02865447697 | AH100: 0.2712458654 | AI100: 16.30125 | AJ100: -0.004455583403 | AK100: 242.5020583 | AL100: 0.006616232782 | AM100: 236.25 | AN100: 0.005065933719 | AO100: 758.6215623 | AP100: 6.216969695e-05 | AQ100: 271.2932344 | AR100: 0.0004144646463
S101: =_xlfn.NORM.INV(0.999,C7,C8) -> 768.3557941 | T101: 4.275669939e-05 | U101: =_xlfn.LOGNORM.INV(0.999,U104,U106) -> 56570.25461 | V101: 2.242241813e-08 | W101: =-LN(1-0.999)/C7 -> 0.0131576291 | X101: 0.525 | Y101: =C8 -> 78.75 | Z101: -0.002240896359 | AA101: =$AA$106*LN(-1*LN(1-0.999))+$AA$104 -> 542.3660321 | AB101: 0.0009983570973 | AC101: =_xlfn.NORM.INV(0.999,$C$3,$C$4) -> 272.7533691 | AD101: 0.0002850446626 | AE101: =_xlfn.LOGNORM.INV(0.999,AE104,AE106) -> 7919.266507 | AF101: 2.832357705e-07 | AG101: =-LN(1-0.999)/C3 -> 0.02923917578 | AH101: 0.23625 | AI101: =C4 -> 11.8125 | AJ101: -0.004455583403 | AK101: =$AK$106*LN(-1*LN(1-0.999))+$AK$104 -> 242.9758353 | AL101: 0.002577746941 | AM101: 236.25 | AN101: 0.005065933719 | AO101: 768.3557941 | AP101: 4.275669939e-05 | AQ101: 272.7533691 | AR101: 0.0002850446626
U103: m | AA103: m | AE103: m | AK103: m
U104: =LN(C7)-U106^2/2 -> 2.74019002 | AA104: =C7+AA106*0.57721566 -> 528.993826 | AE104: =LN(C3)-AE106^2/2 -> 4.338177435 | AK104: =C3+AK106*0.57721566 -> 237.7968022
U105: s | AA105: b | AE105: s | AK105: b
U106: =LN(C8)/NORMSINV(0.95) -> 2.654508709 | AA106: =(6*C8)^0.5/PI() -> 6.919122724 | AE106: =LN(C4)/NORMSINV(0.95) -> 1.501141653 | AK106: =(6*C4)^0.5/PI() -> 2.679764708

Sheet INPUT, Case B
A1: Notes | B1: Load (Stress) | D1: Coefficient of Variation, δ = σ/μ | E1: Safety Factor, SF = μc / μL | F1: Stress Ratio, 1/SF | S1: x | T1: Normal Strength | U1: x | V1: Lognormal Strength | W1: x | X1: Exponential Strength | Y1: x | Z1: Uniform Strength | AA1: x | AB1: Gumbel Strength | AC1: y | AD1: Normal Stress | AE1: y | AF1: Lognormal Stress | AG1: y | AH1: Exponential Stress | AI1: y | AJ1: Uniform Stress | AK1: y | AL1: Gumbel | AM1: y | AN1: Constant | AO1: y | AP1: =C6&" Strength" -> Normal Strength | AQ1: y | AR1: =C2&" Stress" -> Normal Stress | AT1: Strength | AU1: Stress
A2: Inputs are yellow | B2: Select Distribution: | C2: Normal | S2: =_xlfn.NORM.INV(0.001,$C$7,$C$8) -> 281.6442059 | T2: =NORMDIST(S2,$C$7,$C$8,0) -> 4.275669939e-05 | U2: =_xlfn.LOGNORM.INV(0.001,U104,U106) -> 0.004241414106 | V2: =EXP(-1*(LN(U2)-$U$104)^2/(2*$U$106^2))/(SQRT(2*PI())*($U$106*U2)) -> 0.2990610846 | W2: =-LN(1-0.001)/C7 -> 1.905714921e-06 | X2: =$C$7*EXP(-W2*$C$7) -> 524.475 | Y2: =C7 -> 525 | Z2: =1/($C$8-$C$7) -> -0.002240896359 | AA2: =$AA$106*LN(-1*LN(1-0.001))+$AA$104 -> 481.2016805 | AB2: =EXP((AA2-$AA$104)/$AA$106)*EXP(-EXP((AA2-$AA$104)/$AA$106))/$AA$106 -> 0.0001444547052 | AC2: =_xlfn.NORM.INV(0.001,$C$3,$C$4) -> 147.9604673 | AD2: =NORMDIST(AC2,$C$3,$C$4,0) -> 0.0003848102945 | AE2: =_xlfn.LOGNORM.INV(0.001,AE104,AE106) -> 1.24639003 | AF2: =EXP(-1*(LN(AE2)-$AE$104)^2/(2*$AE$106^2))/(SQRT(2*PI())*($AE$106*AE2)) -> 0.002048602607 | AG2: =-LN(1-0.001)/C3 -> 5.717144763e-06 | AH2: =$C$3*EXP(-AG2*$C$3) -> 174.825 | AI2: =C3 -> 175 | AJ2: =1/($C$4-$C$3) -> -0.006015037594 | AK2: =$AK$106*LN(-1*LN(1-0.001))+$AK$104 -> 160.4005602 | AL2: =EXP((AK2-$AK$104)/$AK$106)*EXP(-EXP((AK2-$AK$104)/$AK$106))/$AK$106 -> 0.0004333641156 | AM2: =$C$3 -> 175 | AN2: 0 | AO2: =OFFSET($R$2,ROW(AO2)-2,2*$AT$7-1) -> 281.6442059 | AP2: =OFFSET($R$2,ROW(AO2)-2,2*$AT$7) -> 4.275669939e-05 | AQ2: =OFFSET($AB$2,ROW(AQ2)-2,2*$AU$8-1) -> 147.9604673 | AR2: =OFFSET($AB$2,ROW(AQ2)-2,2*$AU$8) -> 0.0003848102945 | AT2: Normal | AU2: Normal
A3: Results are green | B3: =IF(C2="Uniform", "Enter Min:","Enter Mean:") -> Enter Mean: | C3: 175 | D3: =C4/C3 -> 0.05 | E3: =C7/C3 -> 3 | F3: =1/E3 -> 0.3333333333 | S3: =($S$101-$S$2)/100+S2 -> 286.5113218 | T3: 5.165601786e-05 | U3: =($U$101-$U$2)/100+U2 -> 565.7067451 | V3: 0.0001060276648 | W3: =($W$101-$W$2)/100+W2 -> 0.0001334629488 | X3: 489.4734466 | Y3: =($Y$101-$Y$2)/100+Y2 -> 520.5375 | Z3: -0.002240896359 | AA3: =($AA$101-$AA$2)/100+AA2 -> 481.813324 | AB3: 0.0001577911822 | AC3: =($AC$101-$AC$2)/100+AC2 -> 148.501258 | AD3: 0.0004649041607 | AE3: =($AE$101-$AE$2)/100+AE2 -> 44.40645423 | AF3: 0.00633667534 | AG3: =($AG$101-$AG$2)/100+AG2 -> 0.0004003888464 | AH3: 163.1578155 | AI3: =($AI$101-$AI$2)/100+AI2 -> 173.3375 | AJ3: -0.006015037594 | AK3: =($AK$101-$AK$2)/100+AK2 -> 160.6044413 | AL3: =EXP((AK3-$AK$104)/$AK$106)*EXP(-EXP((AK3-$AK$104)/$AK$106))/$AK$106 -> 0.0004733735467 | AM3: 175 | AN3: =MAX(AP:AP) -> 0.005065933719 | AO3: 286.5113218 | AP3: 5.165601786e-05 | AQ3: =OFFSET($AB$2,ROW(AQ3)-2,2*$AU$8-1) -> 148.501258 | AR3: =OFFSET($AB$2,ROW(AQ3)-2,2*$AU$8) -> 0.0004649041607 | AT3: Lognormal | AU3: Lognormal
A4: Replications | B4: =IF(C2="Lognormal","Enter Error Factor:",IF(C2="Normal","Enter Standard Deviation:",IF(C2="Gumbel","Enter Variance:",IF(C2="Uniform","Enter Max:","")))) -> Enter Standard Deviation: | C4: =0.05*C3 -> 8.75 | S4: =($S$101-$S$2)/100+S3 -> 291.3784377 | T4: 6.216969695e-05 | U4: =($U$101-$U$2)/100+U3 -> 1131.409249 | V4: 3.596504016e-05 | W4: =($W$101-$W$2)/100+W3 -> 0.0002650201827 | X4: 456.8077695 | Y4: =($Y$101-$Y$2)/100+Y3 -> 516.075 | Z4: -0.002240896359 | AA4: =($AA$101-$AA$2)/100+AA3 -> 482.4249675 | AB4: 0.0001723574484 | AC4: 149.0420486 | AD4: 0.0005595272725 | AE4: =($AE$101-$AE$2)/100+AE3 -> 87.56651844 | AF4: 0.003423836372 | AG4: =($AG$101-$AG$2)/100+AG3 -> 0.000795060548 | AH4: 152.2692565 | AI4: =($AI$101-$AI$2)/100+AI3 -> 171.675 | AJ4: -0.006015037594 | AK4: =($AK$101-$AK$2)/100+AK3 -> 160.8083225 | AL4: 0.0005170723452 | AM4: 175 | AN4: =MAX(AP:AP) -> 0.005065933719 | AO4: 291.3784377 | AP4: 6.216969695e-05 | AQ4: 149.0420486 | AR4: 0.0005595272725 | AT4: Exponential | AU4: Exponential
A5: 100000 | B5: Capacity (Strength) | E5: Safety Index, β = f(SF,δ) | S5: 296.2455535 | T5: 7.453798581e-05 | U5: 1697.111752 | V5: 1.851357337e-05 | W5: 0.0003965774166 | X5: 426.3220808 | Y5: 511.6125 | Z5: -0.002240896359 | AA5: 483.036611 | AB5: 0.0001882666208 | AC5: 149.5828393 | AD5: 0.0006708418723 | AE5: 130.7265826 | AF5: 0.002102396649 | AG5: 0.00118973225 | AH5: 142.1073603 | AI5: 170.0125 | AJ5: -0.006015037594 | AK5: 161.0122037 | AL5: 0.0005647998624 | AM5: 175 | AN5: 0.005065933719 | AO5: 296.2455535 | AP5: 7.453798581e-05 | AQ5: 149.5828393 | AR5: 0.0006708418723 | AT5: Uniform | AU5: Uniform
A6: Seed Value | B6: Select Distribution: | C6: Normal | S6: 301.1126694 | T6: 8.902615796e-05 | U6: 2262.814256 | V6: 1.139538202e-05 | W6: 0.0005281346504 | X6: 397.8708961 | Y6: 507.15 | Z6: -0.002240896359 | AA6: 483.6482545 | AB6: 0.0002056421659 | AC6: 150.1236299 | AD6: 0.0008012354217 | AE6: 173.8866468 | AF6: 0.001404364283 | AG6: 0.001584403951 | AH6: 132.623632 | AI6: 168.35 | AJ6: -0.006015037594 | AK6: 161.2160848 | AL6: 0.0006169264978 | AM6: 175 | AN6: 0.005065933719 | AO6: 301.1126694 | AP6: 8.902615796e-05 | AQ6: 150.1236299 | AR6: 0.0008012354217 | AT6: Gumbel | AU6: Gumbel
A7: 37 | B7: =IF(C6<>"Uniform","Enter Mean:","Enter Minimum Value") -> Enter Mean: | C7: 525 | D7: =C8/C7 -> 0.15 | E7: =(E3-1)/((D7^2)*(E3^2)+(D3^2))^0.5 -> 4.417261043 | S7: 305.9797853 | T7: 0.0001059250519 | U7: 2828.51676 | V7: 7.757769865e-06 | W7: 0.0006596918843 | X7: 371.31844 | Y7: 502.6875 | Z7: -0.002240896359 | AA7: 484.2598981 | AB7: 0.0002246188361 | AC7: 150.6644206 | AD7: 0.0009533254667 | AE7: 217.0467111 | AF7: 0.0009937212945 | AG7: 0.001979075653 | AH7: 123.7728133 | AI7: 166.6875 | AJ7: -0.006015037594 | AK7: 161.419966 | AL7: 0.0006738565082 | AM7: 175 | AN7: 0.005065933719 | AO7: 305.9797853 | AP7: 0.0001059250519 | AQ7: 150.6644206 | AR7: 0.0009533254667 | AT7: =MATCH(C6,AT2:AT6,0) -> 1 | AU7: Constant
B8: =IF(C6="Lognormal","Enter Error Factor:",IF(C6="Normal","Enter Standard Deviation:",IF(C6="Uniform","Enter Maximum Value",IF(C6="Gumbel","Enter Variance","")))) -> Enter Standard Deviation: | C8: =0.15*C7 -> 78.75 | S8: 310.8469012 | T8: 0.0001255511847 | U8: 3394.219263 | V8: 5.636588567e-06 | W8: 0.0007912491182 | X8: 346.5379982 | Y8: 498.225 | Z8: -0.002240896359 | AA8: 484.8715416 | AB8: 0.0002453436881 | AC8: 151.2052112 | AD8: 0.001129960662 | AE8: 260.2067753 | AF8: 0.0007332564274 | AG8: 0.002373747355 | AH8: 115.5126661 | AI8: 165.025 | AJ8: -0.006015037594 | AK8: 161.6238472 | AL8: 0.0007360310642 | AM8: 175 | AN8: 0.005065933719 | AO8: 310.8469012 | AP8: 0.0001255511847 | AQ8: 151.2052112 | AR8: 0.001129960662 | AU8: =MATCH(C2,AU2:AU7,0) -> 1
B9: Results | S9: 315.7140171 | T9: 0.0001482463538 | U9: 3959.921767 | V9: 4.286781743e-06 | W9: 0.0009228063521 | X9: 323.4113129 | Y9: 493.7625 | Z9: -0.002240896359 | AA9: 485.4831851 | AB9: 0.0002679771918 | AC9: 151.7460019 | AD9: 0.001334217185 | AE9: 303.3668395 | AF9: 0.0005586456956 | AG9: 0.002768419056 | AH9: 107.803771 | AI9: 163.3625 | AJ9: -0.006015037594 | AK9: 161.8277284 | AL9: 0.0008039315753 | AM9: 175 | AN9: 0.005065933719 | AO9: 315.7140171 | AP9: 0.0001482463538 | AQ9: 151.7460019 | AR9: 0.001334217185
A10: Do not insert or delete any rows or columns. There are formulas on the right that would be corrupted. | B10: Mean Failure Probability | C10: 4.995480275e-06 | S10: 320.5811329 | T10: 0.0001743766387 | U10: 4525.624271 | V10: 3.372599019e-06 | W10: 0.001054363586 | X10: 301.8280185 | Y10: 489.3 | Z10: -0.002240896359 | AA10: 486.0948286 | AB10: 0.0002926944352 | AC10: 152.2867925 | AD10: 0.001569389748 | AE10: 346.5269037 | AF10: 0.0004365129879 | AG10: 0.003163090758 | AH10: 100.6093395 | AI10: 161.7 | AJ10: -0.006015037594 | AK10: 162.0316095 | AL10: 0.0008780833056 | AM10: 175 | AN10: 0.005065933719 | AO10: 320.5811329 | AP10: 0.0001743766387 | AQ10: 152.2867925 | AR10: 0.001569389748
B11: 90% Half-Width About Mean, +/- | C11: 1.405781665e-08 | S11: 325.4482488 | T11: 0.0002043307169 | U11: 5091.326774 | V11: 2.723773559e-06 | W11: 0.00118592082 | X11: 281.6851146 | Y11: 484.8375 | Z11: -0.002240896359 | AA11: 486.7064721 | AB11: 0.0003196864346 | AC11: 152.8275832 | AD11: 0.001838976452 | AE11: 389.6869679 | AF11: 0.000348161098 | AG11: 0.003557762459 | AH11: 93.8950382 | AI11: 160.0375 | AJ11: -0.006015037594 | AK11: 162.2354907 | AL11: 0.0009590593038 | AM11: 175 | AN11: 0.005065933719 | AO11: 325.4482488 | AP11: 0.0002043307169 | AQ11: 152.8275832 | AR11: 0.001838976452
B12: Variance | C12: 7.304208966e-12 | S12: 330.3153647 | T12: 0.0002385174137 | U12: 5657.029278 | V12: 2.246154755e-06 | W12: 0.001317478054 | X12: 262.8864748 | Y12: 480.375 | Z12: -0.002240896359 | AA12: 487.3181156 | AB12: 0.0003491615576 | AC12: 153.3683739 | AD12: 0.002146656723 | AE12: 432.8470321 | AF12: 0.0002824705751 | AG12: 0.003952434161 | AH12: 87.62882495 | AI12: 158.375 | AJ12: -0.006015037594 | AK12: 162.4393719 | AL12: 0.001047484673 | AM12: 175 | AN12: 0.005065933719 | AO12: 330.3153647 | AP12: 0.0002385174137 | AQ12: 153.3683739 | AR12: 0.002146656723
B13: Mean Success Probability | C13: 0.9999950045 | S13: 335.1824806 | T13: 0.0002773624086 | U13: 6222.731782 | V13: 1.884109218e-06 | W13: 0.001449035288 | X13: 245.3423879 | Y13: 475.9125 | Z13: -0.002240896359 | AA13: 487.9297591 | AB13: 0.0003813470685 | AC13: 153.9091645 | AD13: 0.002496261677 | AE13: 476.0070963 | AF13: 0.0002325035451 | AG13: 0.004347105863 | AH13: 81.78079597 | AI13: 156.7125 | AJ13: -0.006015037594 | AK13: 162.643253 | AL13: 0.001144041205 | AM13: 175 | AN13: 0.005065933719 | AO13: 335.1824806 | AP13: 0.0002773624086 | AQ13: 153.9091645 | AR13: 0.002496261677
B14: Run Time (Minutes) | C14: 0.02493489583 | S14: 340.0495965 | T14: 0.0003213040384 | U14: 6788.434285 | V14: 1.602987279e-06 | W14: 0.001580592521 | X14: 228.9691295 | Y14: 471.45 | Z14: -0.002240896359 | AA14: 488.5414027 | AB14: 0.0004164908051 | AC14: 154.4499552 | AD14: 0.002891736346 | AE14: 519.1671605 | AF14: 0.0001937572578 | AG14: 0.004741777564 | AH14: 76.32304317 | AI14: 155.05 | AJ14: -0.006015037594 | AK14: 162.8471342 | AL14: 0.001249472415 | AM14: 175 | AN14: 0.005065933719 | AO14: 340.0495965 | AP14: 0.0003213040384 | AQ14: 154.4499552 | AR14: 0.002891736346
S15: 344.9167124 | T15: 0.0003707881483 | U15: 7354.136789 | V15: 1.380264595e-06 | W15: 0.001712149755 | X15: 213.6885628 | Y15: 466.9875 | Z15: -0.002240896359 | AA15: 489.1530462 | AB15: 0.0004548629975 | AC15: 154.9907458 | AD15: 0.003337093335 | AE15: 562.3272247 | AF15: 0.0001632114626 | AG15: 0.005136449266 | AH15: 71.22952094 | AI15: 153.3875 | AJ15: -0.006015037594 | AK15: 163.0510154 | AL15: 0.001364588993 | AM15: 175 | AN15: 0.005065933719 | AO15: 344.9167124 | AP15: 0.0003707881483 | AQ15: 154.9907458 | AR15: 0.003337093335
S16: 349.7838282 | T16: 0.0004262619622 | U16: 7919.839292 | V16: 1.200769316e-06 | W16: 0.001843706989 | X16: 199.4277655 | Y16: 462.525 | Z16: -0.002240896359 | AA16: 489.7646897 | AB16: 0.0004967582385 | AC16: 155.5315365 | AD16: 0.00383635766 | AE16: 605.4872889 | AF16: 0.0001387827628 | AG16: 0.005531120968 | AH16: 66.47592185 | AI16: 151.725 | AJ16: -0.006015037594 | AK16: 163.2548966 | AL16: 0.001490274715 | AM16: 175 | AN16: 0.005065933719 | AO16: 349.7838282 | AP16: 0.0004262619622 | AQ16: 155.5315365 | AR16: 0.00383635766
S17: 354.6509441 | T17: 0.00048816697 | U17: 8485.541796 | V17: 1.053970851e-06 | W17: 0.001975264223 | X17: 186.118682 | Y17: 458.0625 | Z17: -0.002240896359 | AA17: 490.3763332 | AB17: 0.0005424976174 | AC17: 156.0723271 | AD17: 0.00439350273 | AE17: 648.6473531 | AF17: 0.0001189989331 | AG17: 0.005925792669 | AH17: 62.03956066 | AI17: 150.0625 | AJ17: -0.006015037594 | AK17: 163.4587777 | AL17: 0.001627492852 | AM17: 175 | AN17: 0.005065933719 | AO17: 354.6509441 | AP17: 0.00048816697 | AQ17: 156.0723271 | AR17: 0.00439350273
S18: 359.51806 | T18: 0.0005569308538 | U18: 9051.2443 | V18: 9.323699713e-07 | W18: 0.002106821457 | X18: 173.6977983 | Y18: 453.6 | Z18: -0.002240896359 | AA18: 490.9879767 | AB18: 0.0005924310286 | AC18: 156.6131178 | AD18: 0.005012377684 | AE18: 691.8074173 | AF18: 0.0001027975562 | AG18: 0.006320464371 | AH18: 57.89926609 | AI18: 148.4 | AJ18: -0.006015037594 | AK18: 163.6626589 | AL18: 0.001777293086 | AM18: 175 | AN18: 0.005065933719 | AO18: 359.51806 | AP18: 0.0005569308538 | AQ18: 156.6131178 | AR18: 0.005012377684
S19: 364.3851759 | T19: 0.000632958507 | U19: 9616.946803 | V19: 8.305061351e-07 | W19: 0.002238378691 | X19: 162.1058391 | Y19: 449.1375 | Z19: -0.002240896359 | AA19: 491.5996202 | AB19: 0.0006469396666 | AC19: 157.1539084 | AD19: 0.005696626563 | AE19: 734.9674815 | AF19: 8.939766541e-05 | AG19: 0.006715136073 | AH19: 54.03527971 | AI19: 146.7375 | AJ19: -0.006015037594 | AK19: 163.8665401 | AL19: 0.001940819 | AM19: 175 | AN19: 0.005065933719 | AO19: 364.3851759 | AP19: 0.000632958507 | AQ19: 157.1539084 | AR19: 0.005696626563
S20: 369.2522918 | T20: 0.0007166222361 | U20: 10182.64931 | V20: 7.443252002e-07 | W20: 0.002369935925 | X20: 151.2874852 | Y20: 444.675 | Z20: -0.002240896359 | AA20: 492.2112638 | AB20: 0.0007064387192 | AC20: 157.6946991 | AD20: 0.006449600125 | AE20: 778.1275457 | AF20: 7.821571384e-05 | AG20: 0.007109807774 | AH20: 50.42916173 | AI20: 145.075 | AJ20: -0.006015037594 | AK20: 164.0704213 | AL20: 0.002119316158 | AM20: 175 | AN20: 0.005065933719 | AO20: 369.2522918 | AP20: 0.0007166222361 | AQ20: 157.6946991 | AR20: 0.006449600125
S21: 374.1194077 | T21: 0.0008082512671 | U21: 10748.35181 | V21: 6.707651127e-07 | W21: 0.002501493159 | X21: 141.1911088 | Y21: 440.2125 | Z21: -0.002240896359 | AA21: 492.8229073 | AB21: 0.000771380272 | AC21: 158.2354897 | AD21: 0.007274261404 | AE21: 821.2876099 | AF21: 6.880925087e-05 | AG21: 0.007504479476 | AH21: 47.06370294 | AI21: 143.4125 | AJ21: -0.006015037594 | AK21: 164.2743024 | AL21: 0.002314140816 | AM21: 175 | AN21: 0.005065933719 | AO21: 374.1194077 | AP21: 0.0008082512671 | AQ21: 158.2354897 | AR21: 0.007274261404
S22: 378.9865235 | T22: 0.0009081207188 | U22: 11314.05431 | V22: 6.074775912e-07 | W22: 0.002633050393 | X22: 131.7685279 | Y22: 435.75 | Z22: -0.002240896359 | AA22: 493.4345508 | AB22: 0.0008422564356 | AC22: 158.7762804 | AD22: 0.008173086469 | AE22: 864.4476741 | AF22: 6.083837161e-05 | AG22: 0.007899151178 | AH22: 43.92284262 | AI22: 141.75 | AJ22: -0.006015037594 | AK22: 164.4781836 | AL22: 0.002526769307 | AM22: 175 | AN22: 0.005065933719 | AO22: 378.9865235 | AP22: 0.0009081207188 | AQ22: 158.7762804 | AR22: 0.008173086469
S23: 383.8536394 | T23: 0.00101644024 | U23: 11879.75682 | V23: 5.526369937e-07 | W23: 0.002764607626 | X23: 122.9747757 | Y23: 431.2875 | Z23: -0.002240896359 | AA23: 494.0461943 | AB23: 0.0009196027085 | AC23: 159.317071 | AD23: 0.009147962159 | AE23: 907.6077383 | AF23: 5.403883141e-05 | AG23: 0.008293822879 | AH23: 40.9915919 | AI23: 140.0875 | AJ23: -0.006015037594 | AK23: 164.6820648 | AL23: 0.002758808125 | AM23: 175 | AN23: 0.005065933719 | AO23: 383.8536394 | AP23: 0.00101644024 | AQ23: 159.317071 | AR23: 0.009147962159
S24: 388.7207553 | T24: 0.001133342543 | U24: 12445.45932 | V24: 5.048064454e-07 | W24: 0.00289616486 | X24: 114.7678866 | Y24: 426.825 | Z24: -0.002240896359 | AA24: 494.6578378 | AB24: 0.001004001585 | AC24: 159.8578617 | AD24: 0.01020008289 | AE24: 950.7678025 | AF24: 4.820297619e-05 | AG24: 0.008688494581 | AH24: 38.25596219 | AI24: 138.425 | AJ24: -0.006015037594 | AK24: 164.8859459 | AL24: 0.003012004756 | AM24: 175 | AN24: 0.005065933719 | AO24: 388.7207553 | AP24: 0.001133342543 | AQ24: 159.8578617 | AR24: 0.01020008289
S25: 393.5878712 | T25: 0.001258872101 | U25: 13011.16183 | V25: 4.628423987e-07 | W25: 0.003027722094 | X25: 107.1086953 | Y25: 422.3625 | Z25: -0.002240896359 | AA25: 495.2694813 | AB25: 0.001096086424 | AC25: 160.3986524 | AD25: 0.01132984891 | AE25: 993.9278667 | AF25: 4.31660077e-05 | AG25: 0.009083166282 | AH25: 35.70289845 | AI25: 136.7625 | AJ25: -0.006015037594 | AK25: 165.0898271 | AL25: 0.003288259273 | AM25: 175 | AN25: 0.005065933719 | AO25: 393.5878712 | AP25: 0.001258872101 | AQ25: 160.3986524 | AR25: 0.01132984891
S26: 398.4549871 | T26: 0.001392974294 | U26: 13576.86433 | V26: 4.258254945e-07 | W26: 0.003159279328 | X26: 99.96065068 | Y26: 417.9 | Z26: -0.002240896359 | AA26: 495.8811249 | AB26: 0.001196545579 | AC26: 160.939443 | AD26: 0.01253676864 | AE26: 1037.087931 | AF26: 3.879595243e-05 | AG26: 0.009477837984 | AH26: 33.32021689 | AI26: 135.1 | AJ26: -0.006015037594 | AK26: 165.2937083 | AL26: 0.003589636738 | AM26: 175 | AN26: 0.005065933719 | AO26: 398.4549871 | AP26: 0.001392974294 | AQ26: 160.939443 | AR26: 0.01253676864
S27: 403.3221029 | T27: 0.001535485327 | U27: 14142.56683 | V27: 3.930097452e-07 | W27: 0.003290836562 | X27: 93.28964052 | Y27: 413.4375 | Z27: -0.002240896359 | AA27: 496.4927684 | AB27: 0.001306126809 | AC27: 161.4802337 | AD27: 0.01381936794 | AE27: 1080.247995 | AF27: 3.498624136e-05 | AG27: 0.009872509686 | AH27: 31.09654684 | AI27: 133.4375 | AJ27: -0.006015037594 | AK27: 165.4975895 | AL27: 0.003918380426 | AM27: 175 | AN27: 0.005065933719 | AO27: 403.3221029 | AP27: 0.001535485327 | AQ27: 161.4802337 | AR27: 0.01381936794
S28: 408.1892188 | T28: 0.001686123243 | U28: 14708.26934 | V28: 3.637846833e-07 | W28: 0.003422393796 | X28: 87.0638293 | Y28: 408.975 | Z28: -0.002240896359 | AA28: 497.1044119 | AB28: 0.00142564196 | AC28: 162.0210243 | AD28: 0.01517510919 | AE28: 1123.408059 | AF28: 3.16501565e-05 | AG28: 0.01026718139 | AH28: 29.02127643 | AI28: 131.775 | AJ28: -0.006015037594 | AK28: 165.7014706 | AL28: 0.00427692588 | AM28: 175 | AN28: 0.005065933719 | AO28: 408.1892188 | AP28: 0.001686123243 | AQ28: 162.0210243 | AR28: 0.01517510919
S29: 413.0563347 | T29: 0.00184448036 | U29: 15273.97184 | V29: 3.376468264e-07 | W29: 0.00355395103 | X29: 81.25350608 | Y29: 404.5125 | Z29: -0.002240896359 | AA29: 497.7160554 | AB29: 0.001555971941 | AC29: 162.561815 | AD29: 0.01660032324 | AE29: 1166.568124 | AF29: 2.871662928e-05 | AG29: 0.01066185309 | AH29: 27.08450203 | AI29: 130.1125 | AJ29: -0.006015037594 | AK29: 165.9053518 | AL29: 0.004667915824 | AM29: 175 | AN29: 0.005065933719 | AO29: 413.0563347 | AP29: 0.00184448036 | AQ29: 162.561815 | AR29: 0.01660032324
S30: 417.9234506 | T30: 0.002010017466 | U30: 15839.67434 | V30: 3.141779209e-07 | W30: 0.003685508264 | X30: 75.83094269 | Y30: 400.05 | Z30: -0.002240896359 | AA30: 498.3276989 | AB30: 0.001698071966 | AC30: 163.1026056 | AD30: 0.0180901572 | AE30: 1209.728188 | AF30: 2.612703006e-05 | AG30: 0.01105652479 | AH30: 25.2769809 | AI30: 128.45 | AJ30: -0.006015037594 | AK30: 166.109233 | AL30: 0.005094215899 | AM30: 175 | AN30: 0.005065933719 | AO30: 417.9234506 | AP30: 0.002010017466 | AQ30: 163.1026056 | AR30: 0.0180901572
S31: 422.7905665 | T31: 0.002182060074 | U31: 16405.37685 | V31: 2.930281843e-07 | W31: 0.003817065497 | X31: 70.77026145 | Y31: 395.5875 | Z31: -0.002240896359 | AA31: 498.9393424 | AB31: 0.001852977076 | AC31: 163.6433963 | AD31: 0.01963854067 | AE31: 1252.888252 | AF31: 2.383269198e-05 | AG31: 0.01145119649 | AH31: 23.59008715 | AI31: 126.7875 | AJ31: -0.006015037594 | AK31: 166.3131141 | AL31: 0.005558931227 | AM31: 175 | AN31: 0.005065933719 | AO31: 422.7905665 | AP31: 0.002182060074 | AQ31: 163.6433963 | AR31: 0.01963854067
S32: 427.6576824 | T32: 0.002359797031 | U32: 16971.07935 | V32: 2.739032734e-07 | W32: 0.003948622731 | X32: 66.04731167 | Y32: 391.125 | Z32: -0.002240896359 | AA32: 499.550986 | AB32: 0.002021807913 | AC32: 164.1841869 | AD32: 0.02123817328 | AE32: 1296.048316 | AF32: 2.179298472e-05 | AG32: 0.01184586819 | AH32: 22.01577056 | AI32: 125.125 | AJ32: -0.006015037594 | AK32: 166.5169953 | AL32: 0.00606542374 | AM32: 175 | AN32: 0.005065933719 | AO32: 427.6576824 | AP32: 0.002359797031 | AQ32: 164.1841869 | AR32: 0.02123817328
S33: 432.5247982 | T33: 0.002542281713 | U33: 17536.78185 | V33: 2.565540593e-07 | W33: 0.004080179965 | X33: 61.63955437 | Y33: 386.6625 | Z33: -0.002240896359 | AA33: 500.1626295 | AB33: 0.002205776738 | AC33: 164.7249776 | AD33: 0.02288053542 | AE33: 1339.20838 | AF33: 1.997380401e-05 | AG33: 0.0122405399 | AH33: 20.54651812 | AI33: 123.4625 | AJ33: -0.006015037594 | AK33: 166.7208765 | AL33: 0.006617330213 | AM33: 175 | AN33: 0.005065933719 | AO33: 432.5247982 | AP33: 0.002542281713 | AQ33: 164.7249776 | AR33: 0.02288053542
S34: 437.3919141 | T34: 0.002728436008 | U34: 18102.48436 | V34: 2.407685395e-07 | W34: 0.004211737199 | X34: 57.52595476 | Y34: 382.2 | Z34: -0.002240896359 | AA34: 500.774273 | AB34: 0.002406193635 | AC34: 165.2657682 | AD34: 0.02455592408 | AE34: 1382.368445 | AF34: 1.834637809e-05 | AG34: 0.0126352116 | AH34: 19.17531825 | AI34: 121.8 | AJ34: -0.006015037594 | AK34: 166.9247577 | AL34: 0.007218580906 | AM34: 175 | AN34: 0.005065933719 | AO34: 437.3919141 | AP34: 0.002728436008 | AQ34: 165.2657682 | AR34: 0.02455592408
S35: 442.25903 | T35: 0.002917057213 | U35: 18668.18686 | V35: 2.263653889e-07 | W35: 0.004343294433 | X35: 53.68688182 | Y35: 377.7375 | Z35: -0.002240896359 | AA35: 501.3859165 | AB35: 0.002624472891 | AC35: 165.8065589 | AD35: 0.02625351491 | AE35: 1425.528509 | AF35: 1.688631811e-05 | AG35: 0.0130298833 | AH35: 17.89562727 | AI35: 120.1375 | AJ35: -0.006015037594 | AK35: 167.1286388 | AL35: 0.007873418674 | AM35: 175 | AN35: 0.005065933719 | AO35: 442.25903 | AP35: 0.002917057213 | AQ35: 165.8065589 | AR35: 0.02625351491
S36: 447.1261459 | T36: 0.003106827907 | U36: 19233.88937 | V36: 2.131887832e-07 | W36: 0.004474851667 | X36: 50.10401465 | Y36: 373.275 | Z36: -0.002240896359 | AA36: 501.99756 | AB36: 0.002862139452 | AC36: 166.3473495 | AD36: 0.02796145116 | AE36: 1468.688573 | AF36: 1.557285749e-05 | AG36: 0.013424555 | AH36: 16.70133822 | AI36: 118.475 | AJ36: -0.006015037594 | AK36: 167.33252 | AL36: 0.008586418357 | AM36: 175 | AN36: 0.005065933719 | AO36: 447.1261459 | AP36: 0.003106827907 | AQ36: 166.3473495 | AR36: 0.02796145116
S37: 451.9932618 | T37: 0.00329632879 | U37: 19799.59187 | V37: 2.011042132e-07 | W37: 0.004606408901 | X37: 46.76025499 | Y37: 368.8125 | Z37: -0.002240896359 | AA37: 502.6092035 | AB37: 0.003120835406 | AC37: 166.8881402 | AD37: 0.02966695911 | AE37: 1511.848637 | AF37: 1.438823883e-05 | AG37: 0.0138192267 | AH37: 15.58675166 | AI37: 116.8125 | AJ37: -0.006015037594 | AK37: 167.5364012 | AL37: 0.009362506218 | AM37: 175 | AN37: 0.005065933719 | AO37: 451.9932618 | AP37: 0.00329632879 | AQ37: 166.8881402 | AR37: 0.02966695911
S38: 456.8603776 | T38: 0.003484054384 | U38: 20365.29437 | V38: 1.8999508e-07 | W38: 0.004737966135 | X38: 43.63964569 | Y38: 364.35 | Z38: -0.002240896359 | AA38: 503.2208471 | AB38: 0.003402326373 | AC38: 167.4289308 | AD38: 0.03135648945 | AE38: 1555.008701 | AF38: 1.331721693e-05 | AG38: 0.0142138984 | AH38: 14.54654856 | AI38: 115.15 | AJ38: -0.006015037594 | AK38: 167.7402824 | AL38: 0.01020697912 | AM38: 175 | AN38: 0.005065933719 | AO38: 456.8603776 | AP38: 0.003484054384 | AQ38: 167.4289308 | AR38: 0.03135648945
S39: 461.7274935 | T39: 0.003668431407 | U39: 20930.99688 | V39: 1.797599082e-07 | W39: 0.004869523368 | X39: 40.7272945 | Y39: 359.8875 | Z39: -0.002240896359 | AA39: 503.8324906 | AB39: 0.003708507681 | AC39: 167.9697215 | AD39: 0.03301588266 | AE39: 1598.168766 | AF39: 1.234665361e-05 | AG39: 0.01460857011 | AH39: 13.57576483 | AI39: 113.4875 | AJ39: -0.006015037594 | AK39: 167.9441635 | AL39: 0.01112552304 | AM39: 175 | AN39: 0.005065933719 | AO39: 461.7274935 | AP39: 0.003668431407 | AQ39: 167.9697215 | AR39: 0.03301588266
S40: 466.5946094 | T40: 0.003847839568 | U40: 21496.69938 | V40: 1.70310053e-07 | W40: 0.005001080602 | X40: 38.00930303 | Y40: 355.425 | Z40: -0.002240896359 | AA40: 504.4441341 | AB40: 0.004041410161 | AC40: 168.5105122 | AD40: 0.03463055612 | AE40: 1641.32883 | AF40: 1.146518563e-05 | AG40: 0.01500324181 | AH40: 12.66976768 | AI40: 111.825 | AJ40: -0.006015037594 | AK40: 168.1480447 | AL40: 0.01212423048 | AM40: 175 | AN40: 0.005065933719 | AO40: 466.5946094 | AP40: 0.003847839568 | AQ40: 168.5105122 | AR40: 0.03463055612
S41: 471.4617253 | T41: 0.004020634411 | U41: 22062.40188 | V41: 1.615678021e-07 | W41: 0.005132637836 | X41: 35.47270043 | Y41: 350.9625 | Z41: -0.002240896359 | AA41: 505.0557776 | AB41: 0.004403205367 | AC41: 169.0513028 | AD41: 0.0361857097 | AE41: 1684.488894 | AF41: 1.066295125e-05 | AG41: 0.01539791351 | AH41: 11.82423348 | AI41: 110.1625 | AJ41: -0.006015037594 | AK41: 168.3519259 | AL41: 0.0132096161 | AM41: 175 | AN41: 0.005065933719 | AO41: 471.4617253 | AP41: 0.004020634411 | AQ41: 169.0513028 | AR41: 0.0361857097
S42: 476.3288412 | T42: 0.004185171798 | U42: 22628.10439 | V42: 1.534647979e-07 | W42: 0.00526419507 | X42: 33.10538145 | Y42: 346.5 | Z42: -0.002240896359 | AA42: 505.6674211 | AB42: 0.004796209969 | AC42: 169.5920935 | AD42: 0.03766654618 | AE42: 1727.648958 | AF42: 9.931363912e-06 | AG42: 0.01579258521 | AH42: 11.03512715 | AI42: 108.5 | AJ42: -0.006015037594 | AK42: 168.555807 | AL42: 0.01438862991 | AM42: 175 | AN42: 0.005065933719 | AO42: 476.3288412 | AP42: 0.004185171798 | AQ42: 169.5920935 | AR42: 0.03766654618
S43: 481.1959571 | T43: 0.004339833527 | U43: 23193.80689 | V43: 1.459407192e-07 | W43: 0.005395752304 | X43: 30.89604873 | Y43: 342.0375 | Z43: -0.002240896359 | AA43: 506.2790646 | AB43: 0.005222889033 | AC43: 170.1328841 | AD43: 0.03905850175 | AE43: 1770.809022 | AF43: 9.262924112e-06 | AG43: 0.01618725691 | AH43: 10.29868291 | AI43: 106.8375 | AJ43: -0.006015037594 | AK43: 168.7596882 | AL43: 0.0156686671 | AM43: 175 | AN43: 0.005065933719 | AO43: 481.1959571 | AP43: 0.004339833527 | AQ43: 170.1328841 | AR43: 0.03905850175
S44: 486.0630729 | T44: 0.004483053554 | U44: 23759.50939 | V44: 1.389421745e-07 | W44: 0.005527309538 | X44: 28.83415884 | Y44: 337.575 | Z44: -0.002240896359 | AA44: 506.8907081 | AB44: 0.005685857823 | AC44: 170.6736748 | AD44: 0.04034748198 | AE44: 1813.969087 | AF44: 8.651062418e-06 | AG44: 0.01658192861 | AH44: 9.611386281 | AI44: 105.175 | AJ44: -0.006015037594 | AK44: 168.9635694 | AL44: 0.01705757347 | AM44: 175 | AN44: 0.005065933719 | AO44: 486.0630729 | AP44: 0.004483053554 | AQ44: 170.6736748 | AR44: 0.04034748198
S45: 490.9301888 | T45: 0.004613344205 | U45: 24325.2119 | V45: 1.324217689e-07 | W45: 0.005658866772 | X45: 26.90987198 | Y45: 333.1125 | Z45: -0.002240896359 | AA45: 507.5023517 | AB45: 0.006187881703 | AC45: 171.2144654 | AD45: 0.04152009785 | AE45: 1857.129151 | AF45: 8.09000783e-06 | AG45: 0.01697660032 | AH45: 8.969957327 | AI45: 103.5125 | AJ45: -0.006015037594 | AK45: 169.1674506 | AL45: 0.01856364511 | AM45: 175 | AN45: 0.005065933719 | AO45: 490.9301888 | AP45: 0.004613344205 | AQ45: 171.2144654 | AR45: 0.04152009785
S46: 495.7973047 | T46: 0.004729321807 | U46: 24890.9144 | V46: 1.263373147e-07 | W46: 0.005790424006 | X46: 25.11400502 | Y46: 328.65 | Z46: -0.002240896359 | AA46: 508.1139952 | AB46: 0.00673187362 | AC46: 171.7552561 | AD46: 0.04256389626 | AE46: 1900.289215 | AF46: 7.574677041e-06 | AG46: 0.01737127202 | AH46: 8.371335008 | AI46: 101.85 | AJ46: -0.006015037594 | AK46: 169.3713317 | AL46: 0.02019562086 | AM46: 175 | AN46: 0.005065933719 | AO46: 495.7973047 | AP46: 0.004729321807 | AQ46: 171.7552561 | AR46: 0.04256389626
S47: 500.6644206 | T47: 0.004829731082 | U47: 25456.61691 | V47: 1.206511604e-07 | W47: 0.005921981239 | X47: 23.4379877 | Y47: 324.1875 | Z47: -0.002240896359 | AA47: 508.7256387 | AB47: 0.007320888586 | AC47: 172.2960467 | AD47: 0.04346757974 | AE47: 1943.449279 | AF47: 7.100580911e-06 | AG47: 0.01776594372 | AH47: 7.812662565 | AI47: 100.1875 | AJ47: -0.006015037594 | AK47: 169.5752129 | AL47: 0.02196266576 | AM47: 175 | AN47: 0.005065933719 | AO47: 500.6644206 | AP47: 0.004829731082 | AQ47: 172.2960467 | AR47: 0.04346757974
S48: 505.5315365 | T48: 0.004913467743 | U48: 26022.31941 | V48: 1.153296187e-07 | W48: 0.006053538473 | X48: 21.87382167 | Y48: 319.725 | Z48: -0.002240896359 | AA48: 509.3372822 | AB48: 0.007958114438 | AC48: 172.8368374 | AD48: 0.04422120969 | AE48: 1986.609343 | AF48: 6.663745192e-06 | AG48: 0.01816061542 | AH48: 7.291273889 | AI48: 98.525 | AJ48: -0.006015037594 | AK48: 169.7790941 | AL48: 0.02387434331 | AM48: 175 | AN48: 0.005065933719 | AO48: 505.5315365 | AP48: 0.004913467743 | AQ48: 172.8368374 | AR48: 0.04422120969
S49: 510.3986524 | T49: 0.004979598692 | U49: 26588.02191 | V49: 1.103424764e-07 | W49: 0.006185095707 | X49: 20.41404239 | Y49: 315.2625 | Z49: -0.002240896359 | AA49: 509.9489257 | AB49: 0.008646858067 | AC49: 173.377628 | AD49: 0.04481638823 | AE49: 2029.769408 | AF49: 6.260643119e-06 | AG49: 0.01855528712 | AH49: 6.804680795 | AI49: 96.8625 | AJ49: -0.006015037594 | AK49: 169.9829752 | AL49: 0.0259405742 | AM49: 175 | AN49: 0.005065933719 | AO49: 510.3986524 | AP49: 0.004979598692 | AQ49: 173.377628 | AR49: 0.04481638823
S50: 515.2657682 | T50: 0.005027379326 | U50: 27153.72442 | V50: 1.056625739e-07 | W50: 0.006316652941 | X50: 19.05168346 | Y50: 310.8 | Z50: -0.002240896359 | AA50: 510.5605692 | AB50: 0.009390526165 | AC50: 173.9184187 | AD50: 0.04524641393 | AE50: 2072.929472 | AF50: 5.888137886e-06 | AG50: 0.01894995882 | AH50: 6.350561155 | AI50: 95.2 | AJ50: -0.006015037594 | AK50: 170.1868564 | AL50: 0.0281715785 | AM50: 175 | AN50: 0.005065933719 | AO50: 515.2657682 | AP50: 0.005027379326 | AQ50: 173.9184187 | AR50: 0.04524641393
S51: 520.1328841 | T51: 0.00505626749 | U51: 27719.42692 | V51: 1.012654427e-07 | W51: 0.006448210175 | X51: 17.78024342 | Y51: 306.3375 | Z51: -0.002240896359 | AA51: 511.1722128 | AB51: 0.0101925994 | AC51: 174.4592093 | AD51: 0.04550640741 | AE51: 2116.089536 | AF51: 5.543433422e-06 | AG51: 0.01934463052 | AH51: 5.926747807 | AI51: 93.5375 | AJ51: -0.006015037594 | AK51: 170.3907376 | AL51: 0.03057779821 | AM51: 175 | AN51: 0.005065933719 | AO51: 520.1328841 | AP51: 0.00505626749 | AQ51: 174.4592093 | AR51: 0.04550640741
S52: 525 | T52: 0.005065933719 | U52: 28285.12942 | V52: 9.712899256e-08 | W52: 0.006579767409 | X52: 16.59365466 | Y52: 301.875 | Z52: -0.002240896359 | AA52: 511.7838563 | AB52: 0.01105659881 | AC52: 175 | AD52: 0.04559340347 | AE52: 2159.2496 | AF52: 5.224032132e-06 | AG52: 0.01973930223 | AH52: 5.53121822 | AI52: 91.875 | AJ52: -0.006015037594 | AK52: 170.5946188 | AL52: 0.03316979642 | AM52: 175 | AN52: 0.005065933719 | AO52: 525 | AP52: 0.005065933719 | AQ52: 175 | AR52: 0.04559340347
S53: 529.8671159 | T53: 0.00505626749 | U53: 28850.83193 | V53: 9.323323937e-08 | W53: 0.006711324643 | X53: 15.48625452 | Y53: 297.4125 | Z53: -0.002240896359 | AA53: 512.3954998 | AB53: 0.01198604293 | AC53: 175.5407907 | AD53: 0.04550640741 | AE53: 2202.409664 | AF53: 4.92769852e-06 | AG53: 0.02013397393 | AH53: 5.162084839 | AI53: 90.2125 | AJ53: -0.006015037594 | AK53: 170.7984999 | AL53: 0.03595812878 | AM53: 175 | AN53: 0.005065933719 | AO53: 529.8671159 | AP53: 0.00505626749 | AQ53: 175.5407907 | AR53: 0.04550640741
S54: 534.7342318 | T54: 0.005027379326 | U54: 29416.53443 | V54: 8.956006949e-08 | W54: 0.006842881877 | X54: 14.45275823 | Y54: 292.95 | Z54: -0.002240896359 | AA54: 513.0071433 | AB54: 0.01298439429 | AC54: 176.0815813 | AD54: 0.04524641393 | AE54: 2245.569729 | AF54: 4.652427778e-06 | AG54: 0.02052864563 | AH54: 4.817586077 | AI54: 88.55 | AJ54: -0.006015037594 | AK54: 171.0023811 | AL54: 0.03895318288 | AM54: 175 | AN54: 0.005065933719 | AO54: 534.7342318 | AP54: 0.005027379326 | AQ54: 176.0815813 | AR54: 0.04524641393
S55: 539.6013476 | T55: 0.004979598692 | U55: 29982.23693 | V55: 8.609303385e-08 | W55: 0.006974439111 | X55: 13.48823373 | Y55: 288.4875 | Z55: -0.002240896359 | AA55: 513.6187868 | AB55: 0.01405499339 | AC55: 176.622372 | AD55: 0.04481638823 | AE55: 2288.729793 | AF55: 4.396418607e-06 | AG55: 0.02092331733 | AH55: 4.496077909 | AI55: 86.8875 | AJ55: -0.006015037594 | AK55: 171.2062623 | AL55: 0.04216498017 | AM55: 175 | AN55: 0.005065933719 | AO55: 539.6013476 | AP55: 0.004979598692 | AQ55: 176.622372 | AR55: 0.04481638823
S56: 544.4684635 | T56: 0.004913467743 | U56: 30547.93944 | V56: 8.281716802e-08 | W56: 0.007105996344 | X56: 12.58807808 | Y56: 284.025 | Z56: -0.002240896359 | AA56: 514.2304303 | AB56: 0.01520097839 | AC56: 177.1631626 | AD56: 0.04422120969 | AE56: 2331.889857 | AF56: 4.158049627e-06 | AG56: 0.02131798903 | AH56: 4.196026026 | AI56: 85.225 | AJ56: -0.006015037594 | AK56: 171.4101434 | AL56: 0.04560293516 | AM56: 175 | AN56: 0.005065933719 | AO56: 544.4684635 | AP56: 0.004913467743 | AQ56: 177.1631626 | AR56: 0.04422120969
S57: 549.3355794 | T57: 0.004829731082 | U57: 31113.64194 | V57: 7.971883472e-08 | W57: 0.007237553578 | X57: 11.74799554 | Y57: 279.5625 | Z57: -0.002240896359 | AA57: 514.8420739 | AB57: 0.01642518862 | AC57: 177.7039533 | AD57: 0.04346757974 | AE57: 2375.049921 | AF57: 3.935858851e-06 | AG57: 0.02171266073 | AH57: 3.915998515 | AI57: 83.5625 | AJ57: -0.006015037594 | AK57: 171.6140246 | AL57: 0.04927556586 | AM57: 175 | AN57: 0.005065933719 | AO57: 549.3355794 | AP57: 0.004829731082 | AQ57: 177.7039533 | AR57: 0.04346757974
S58: 554.2026953 | T58: 0.004729321807 | U58: 31679.34445 | V58: 7.678558524e-08 | W58: 0.007369110812 | X58: 10.96397706 | Y58: 275.1 | Z58: -0.002240896359 | AA58: 515.4537174 | AB58: 0.01773004985 | AC58: 178.2447439 | AD58: 0.04256389626 | AE58: 2418.209985 | AF58: 3.728525794e-06 | AG58: 0.02210733244 | AH58: 3.65465902 | AI58: 81.9 | AJ58: -0.006015037594 | AK58: 171.8179058 | AL58: 0.05319014954 | AM58: 175 | AN58: 0.005065933719 | AO58: 554.2026953 | AP58: 0.004729321807 | AQ58: 178.2447439 | AR58: 0.04256389626
S59: 559.0698112 | T59: 0.004613344205 | U59: 32245.04695 | V59: 7.400603762e-08 | W59: 0.007500668046 | X59: 10.23228112 | Y59: 270.6375 | Z59: -0.002240896359 | AA59: 516.0653609 | AB59: 0.01911743926 | AC59: 178.7855346 | AD59: 0.04152009785 | AE59: 2461.37005 | AF59: 3.534855833e-06 | AG59: 0.02250200414 | AH59: 3.410760373 | AI59: 80.2375 | AJ59: -0.006015037594 | AK59: 172.021787 | AL59: 0.05735231779 | AM59: 175 | AN59: 0.005065933719 | AO59: 559.0698112 | AP59: 0.004613344205 | AQ59: 178.7855346 | AR59: 0.04152009785
S60: 563.9369271 | T60: 0.004483053554 | U60: 32810.74945 | V60: 7.136976905e-08 | W60: 0.00763222528 | X60: 9.549415903 | Y60: 266.175 | Z60: -0.002240896359 | AA60: 516.6770044 | AB60: 0.02058852839 | AC60: 179.3263252 | AD60: 0.04034748198 | AE60: 2504.530114 | AF60: 3.353766502e-06 | AG60: 0.02289667584 | AH60: 3.183138634 | AI60: 78.575 | AJ60: -0.006015037594 | AK60: 172.2256681 | AL60: 0.06176558516 | AM60: 175 | AN60: 0.005065933719 | AO60: 563.9369271 | AP60: 0.004483053554 | AQ60: 179.3263252 | AR60: 0.04034748198
S61: 568.8040429 | T61: 0.004339833527 | U61: 33376.45196 | V61: 6.886722071e-08 | W61: 0.007763782514 | X61: 8.912122627 | Y61: 261.7125 | Z61: -0.002240896359 | AA61: 517.2886479 | AB61: 0.02214360212 | AC61: 179.8671159 | AD61: 0.03905850175 | AE61: 2547.690178 | AF61: 3.184275473e-06 | AG61: 0.02329134754 | AH61: 2.970707542 | AI61: 76.9125 | AJ61: -0.006015037594 | AK61: 172.4295493 | AL61: 0.06643080635 | AM61: 175 | AN61: 0.005065933719 | AO61: 568.8040429 | AP61: 0.004339833527 | AQ61: 179.8671159 | AR61: 0.03905850175
S62: 573.6711588 | T62: 0.004185171798 | U62: 33942.15446 | V62: 6.648961346e-08 | W62: 0.007895339748 | X62: 8.317359986 | Y62: 257.25 | Z62: -0.002240896359 | AA62: 517.9002914 | AB62: 0.02378185279 | AC62: 180.4079065 | AD62: 0.03766654618 | AE62: 2590.850242 | AF62: 3.025489971e-06 | AG62: 0.02368601924 | AH62: 2.772453329 | AI62: 75.25 | AJ62: -0.006015037594 | AK62: 172.6334305 | AL62: 0.07134555838 | AM62: 175 | AN62: 0.005065933719 | AO62: 573.6711588 | AP62: 0.004185171798 | AQ62: 180.4079065 | AR62: 0.03766654618
S63: 578.5382747 | T63: 0.004020634411 | U63: 34507.85696 | V63: 6.422887295e-08 | W63: 0.008026896982 | X63: 7.762289639 | Y63: 252.7875 | Z63: -0.002240896359 | AA63: 518.511935 | AB63: 0.02550114859 | AC63: 180.9486972 | AD63: 0.0361857097 | AE63: 2634.010306 | AF63: 2.876597452e-06 | AG63: 0.02408069094 | AH63: 2.58742988 | AI63: 73.5875 | AJ63: -0.006015037594 | AK63: 172.8373117 | AL63: 0.07650344576 | AM63: 175 | AN63: 0.005065933719 | AO63: 578.5382747 | AP63: 0.004020634411 | AQ63: 180.9486972 | AR63: 0.0361857097
S64: 583.4053906 | T64: 0.003847839568 | U64: 35073.55947 | V64: 6.207756298e-08 | W64: 0.008158454215 | X64: 7.244262668 | Y64: 248.325 | Z64: -0.002240896359 | AA64: 519.1235785 | AB64: 0.02729777664 | AC64: 181.4894878 | AD64: 0.03463055612 | AE64: 2677.170371 | AF64: 2.736857368e-06 | AG64: 0.02447536265 | AH64: 2.414754223 | AI64: 71.925 | AJ64: -0.006015037594 | AK64: 173.0411928 | AL64: 0.08189332992 | AM64: 175 | AN64: 0.005065933719 | AO64: 583.4053906 | AP64: 0.003847839568 | AQ64: 181.4894878 | AR64: 0.03463055612
S65: 588.2725065 | T65: 0.003668431407 | U65: 35639.26197 | V65: 6.002882607e-08 | W65: 0.008290011449 | X65: 6.760806933 | Y65: 243.8625 | Z65: -0.002240896359 | AA65: 519.735222 | AB65: 0.0291661626 | AC65: 182.0302785 | AD65: 0.03301588266 | AE65: 2720.330435 | AF65: 2.605593884e-06 | AG65: 0.02487003435 | AH65: 2.253602311 | AI65: 70.2625 | AJ65: -0.006015037594 | AK65: 173.245074 | AL65: 0.08749848781 | AM65: 175 | AN65: 0.005065933719 | AO65: 588.2725065 | AP65: 0.003668431407 | AQ65: 182.0302785 | AR65: 0.03301588266
S66: 593.1396224 | T66: =NORMDIST(S66,$C$7,$C$8,0) -> 0.003484054384 | U66: 36204.96447 | V66: =EXP(-1*(LN(U66)-$U$104)^2/(2*$U$106^2))/(SQRT(2*PI())*($U$106*U66)) -> 5.807633043e-08 | W66: 0.008421568683 | X66: =$C$7*EXP(-W66*$C$7) -> 6.309615274 | Y66: 239.4 | Z66: =1/($C$8-$C$7) -> -0.002240896359 | AA66: 520.3468655 | AB66: =EXP((AA66-$AA$104)/$AA$106)*EXP(-EXP((AA66-$AA$104)/$AA$106))/$AA$106 -> 0.03109856995 | AC66: 182.5710692 | AD66: =NORMDIST(AC66,$C$3,$C$4,0) -> 0.03135648945 | AE66: 2763.490499 | AF66: =EXP(-1*(LN(AE66)-$AE$104)^2/(2*$AE$106^2))/(SQRT(2*PI())*($AE$106*AE66)) -> 2.482189414e-06 | AG66: 0.02526470605 | AH66: =$C$3*EXP(-AG66*$C$3) -> 2.103205091 | AI66: 68.6 | AJ66: =1/($C$4-$C$3) -> -0.006015037594 | AK66: 173.4489552 | AL66: 0.09329570984 | AM66: =$C$3 -> 175 | AN66: 0.005065933719 | AO66: =OFFSET($R$2,ROW(AO66)-2,2*$AT$7-1) -> 593.1396224 | AP66: =OFFSET($R$2,ROW(AO66)-2,2*$AT$7) -> 0.003484054384 | AQ66: 182.5710692 | AR66: 0.03135648945
S67: 598.0067382 | T67: 0.00329632879 | U67: 36770.66698 | V67: 5.621422245e-08 | W67: 0.008553125917 | X67: 5.888534506 | Y67: 234.9375 | Z67: -0.002240896359 | AA67: 520.958509 | AB67: 0.03308478482 | AC67: =($AC$101-$AC$2)/100+AC66 -> 183.1118598 | AD67: 0.02966695911 | AE67: 2806.650563 | AF67: 2.366078894e-06 | AG67: 0.02565937775 | AH67: 1.962844835 | AI67: 66.9375 | AJ67: -0.006015037594 | AK67: 173.6528363 | AL67: =EXP((AK67-$AK$104)/$AK$106)*EXP(-EXP((AK67-$AK$104)/$AK$106))/$AK$106 -> 0.09925435445 | AM67: 175 | AN67: 0.005065933719 | AO67: 598.0067382 | AP67: 0.00329632879 | AQ67: =OFFSET($AB$2,ROW(AQ67)-2,2*$AU$8-1) -> 183.1118598 | AR67: =OFFSET($AB$2,ROW(AQ67)-2,2*$AU$8) -> 0.02966695911
S68: =($S$101-$S$2)/100+S67 -> 602.8738541 | T68: 0.003106827907 | U68: =($U$101-$U$2)/100+U67 -> 37336.36948 | V68: 5.443708413e-08 | W68: =($W$101-$W$2)/100+W67 -> 0.008684683151 | X68: 5.495555136 | Y68: =($Y$101-$Y$2)/100+Y67 -> 230.475 | Z68: -0.002240896359 | AA68: =($AA$101-$AA$2)/100+AA67 -> 521.5701525 | AB68: 0.03511179481 | AC68: 183.6526505 | AD68: 0.02796145116 | AE68: =($AE$101-$AE$2)/100+AE67 -> 2849.810628 | AF68: 2.256744677e-06 | AG68: =($AG$101-$AG$2)/100+AG67 -> 0.02605404945 | AH68: 1.831851712 | AI68: =($AI$101-$AI$2)/100+AI67 -> 65.275 | AJ68: -0.006015037594 | AK68: =($AK$101-$AK$2)/100+AK67 -> 173.8567175 | AL68: 0.1053353844 | AM68: 175 | AN68: =MAX(AP:AP) -> 0.005065933719 | AO68: 602.8738541 | AP68: 0.003106827907 | AQ68: 183.6526505 | AR68: 0.02796145116
S69: 607.74097 | T69: 0.002917057213 | U69: 37902.07199 | V69: 5.273989489e-08 | W69: 0.008816240385 | X69: 5.128801779 | Y69: 226.0125 | Z69: -0.002240896359 | AA69: 522.1817961 | AB69: 0.03716347379 | AC69: 184.1934411 | AD69: 0.02625351491 | AE69: 2892.970692 | AF69: 2.153711987e-06 | AG69: 0.02644872115 | AH69: 1.709600593 | AI69: 63.6125 | AJ69: -0.006015037594 | AK69: 174.0605987 | AL69: 0.1114904214 | AM69: 175 | AN69: 0.005065933719 | AO69: 607.74097 | AP69: 0.002917057213 | AQ69: 184.1934411 | AR69: 0.02625351491
S70: 612.6080859 | T70: 0.002728436008 | U70: 38467.77449 | V70: 5.111799721e-08 | W70: 0.008947797619 | X70: 4.786524207 | Y70: 221.55 | Z70: -0.002240896359 | AA70: 522.7934396 | AB70: 0.03922028867 | AC70: 184.7342318 | AD70: 0.02455592408 | AE70: 2936.130756 | AF70: 2.056544869e-06 | AG70: 0.02684339286 | AH70: 1.595508069 | AI70: 61.95 | AJ70: -0.006015037594 | AK70: 174.2644799 | AL70: 0.117660866 | AM70: 175 | AN70: 0.005065933719 | AO70: 612.6080859 | AP70: 0.002728436008 | AQ70: 184.7342318 | AR70: 0.02455592408
S71: 617.4752018 | T71: 0.002542281713 | U71: 39033.47699 | V71: 4.956706564e-08 | W71: 0.009079354853 | X71: 4.467088995 | Y71: 217.0875 | Z71: -0.002240896359 | AA71: 523.4050831 | AB71: 0.04125904912 | AC71: 185.2750224 | AD71: 0.02288053542 | AE71: 2979.29082 | AF71: 1.964842561e-06 | AG71: 0.02723806456 | AH71: 1.489029665 | AI71: 60.2875 | AJ71: -0.006015037594 | AK71: 174.468361 | AL71: 0.1237771473 | AM71: 175 | AN71: 0.005065933719 | AO71: 617.4752018 | AP71: 0.002542281713 | AQ71: 185.2750224 | AR71: 0.02288053542
S72: 622.3423176 | T72: 0.002359797031 | U72: 39599.1795 | V72: 4.808307893e-08 | W72: 0.009210912086 | X72: 4.168971727 | Y72: 212.625 | Z72: -0.002240896359 | AA72: 524.0167266 | AB72: 0.043252726 | AC72: 185.8158131 | AD72: 0.02123817328 | AE72: 3022.450884 | AF72: 1.878236249e-06 | AG72: 0.02763273626 | AH72: 1.389657242 | AI72: 58.625 | AJ72: -0.006015037594 | AK72: 174.6722422 | AL72: 0.129758178 | AM72: 175 | AN72: 0.005065933719 | AO72: 622.3423176 | AP72: 0.002359797031 | AQ72: 185.8158131 | AR72: 0.02123817328
S73: 627.2094335 | T73: 0.002182060074 | U73: 40164.882 | V73: 4.666229475e-08 | W73: 0.00934246932 | X73: 3.890749721 | Y73: 208.1625 | Z73: -0.002240896359 | AA73: 524.6283701 | AB73: 0.04517037015 | AC73: 186.3566037 | AD73: 0.01963854067 | AE73: 3065.610949 | AF73: 1.796386161e-06 | AG73: 0.02802740796 | AH73: 1.296916574 | AI73: 56.9625 | AJ73: -0.006015037594 | AK73: 174.8761234 | AL73: 0.1355111104 | AM73: 175 | AN73: 0.005065933719 | AO73: 627.2094335 | AP73: 0.002182060074 | AQ73: 186.3566037 | AR73: 0.01963854067
S74: 632.0765494 | T74: 0.002010017466 | U74: 40730.5845 | V74: 4.530122691e-08 | W74: 0.009474026554 | X74: 3.631095239 | Y74: 203.7 | Z74: -0.002240896359 | AA74: 525.2400136 | AB74: 0.04697716799 | AC74: 186.8973944 | AD74: 0.0180901572 | AE74: 3108.771013 | AF74: 1.718978951e-06 | AG74: 0.02842207966 | AH74: 1.21036508 | AI74: 55.3 | AJ74: -0.006015037594 | AK74: 175.0800045 | AL74: 0.140931504 | AM74: 175 | AN74: 0.005065933719 | AO74: 632.0765494 | AP74: 0.002010017466 | AQ74: 186.8973944 | AR74: 0.0180901572
S75: 636.9436653 | T75: 0.00184448036 | U75: 41296.28701 | V75: 4.399662466e-08 | W75: 0.009605583788 | X75: 3.388769153 | Y75: 199.2375 | Z75: -0.002240896359 | AA75: 525.8516571 | AB75: 0.04863467557 | AC75: 187.438185 | AD75: 0.01660032324 | AE75: 3151.931077 | AF75: 1.645725357e-06 | AG75: 0.02881675136 | AH75: 1.129589718 | AI75: 53.6375 | AJ75: -0.006015037594 | AK75: 175.2838857 | AL75: 0.1459040267 | AM75: 175 | AN75: 0.005065933719 | AO75: 636.9436653 | AP75: 0.00184448036 | AQ75: 187.438185 | AR75: 0.01660032324
S76: 641.8107812 | T76: 0.001686123243 | U76: 41861.98951 | V76: 4.274545393e-08 | W76: 0.009737141022 | X76: 3.162615029 | Y76: 194.775 | Z76: -0.002240896359 | AA76: 526.4633007 | AB76: 0.05010127513 | AC76: 187.9789757 | AD76: 0.01517510919 | AE76: 3195.091141 | AF76: 1.576358085e-06 | AG76: 0.02921142307 | AH76: 1.05420501 | AI76: 51.975 | AJ76: -0.006015037594 | AK76: 175.4877669 | AL76: 0.1503038254 | AM76: 175 | AN76: 0.005065933719 | AO76: 641.8107812 | AP76: 0.001686123243 | AQ76: 187.9789757 | AR76: 0.01517510919
S77: 646.6778971 | T77: 0.001535485327 | U77: 42427.69201 | V77: 4.154488031e-08 | W77: 0.009868698256 | X77: 2.951553607 | Y77: 190.3125 | Z77: -0.002240896359 | AA77: 527.0749442 | AB77: 0.05133289929 | AC77: 188.5197663 | AD77: 0.01381936794 | AE77: 3238.251205 | AF77: 1.510629903e-06 | AG77: 0.02960609477 | AH77: 0.9838512024 | AI77: 50.3125 | AJ77: -0.006015037594 | AK77: 175.6916481 | AL77: 0.1539986979 | AM77: 175 | AN77: 0.005065933719 | AO77: 646.6778971 | AP77: 0.001535485327 | AQ77: 188.5197663 | AR77: 0.01381936794
S78: 651.5450129 | T78: 0.001392974294 | U78: 42993.39452 | V78: 4.039225351e-08 | W78: 0.01000025549 | X78: 2.754577657 | Y78: 185.85 | Z78: -0.002240896359 | AA78: 527.6865877 | AB78: 0.05228406435 | AC78: 189.060557 | AD78: 0.01253676864 | AE78: 3281.41127 | AF78: 1.448311923e-06 | AG78: 0.03000076647 | AH78: 0.9181925525 | AI78: 48.65 | AJ78: -0.006015037594 | AK78: 175.8955292 | AL78: 0.1568521931 | AM78: 175 | AN78: 0.005065933719 | AO78: 651.5450129 | AP78: 0.001392974294 | AQ78: 189.060557 | AR78: 0.01253676864
S79: 656.4121288 | T79: 0.001258872101 | U79: 43559.09702 | V79: 3.928509329e-08 | W79: 0.01013181272 | X79: 2.570747166 | Y79: 181.3875 | Z79: -0.002240896359 | AA79: 528.2982312 | AB79: 0.05290924555 | AC79: 189.6013476 | AD79: 0.01132984891 | AE79: 3324.571334 | AF79: 1.389192044e-06 | AG79: 0.03039543817 | AH79: 0.856915722 | AI79: 46.9875 | AJ79: -0.006015037594 | AK79: 176.0994104 | AL79: 0.1587277366 | AM79: 175 | AN79: 0.005065933719 | AO79: 656.4121288 | AP79: 0.001258872101 | AQ79: 189.6013476 | AR79: 0.01132984891
S80: 661.2792447 | T80: 0.001133342543 | U80: 44124.79953 | V80: 3.822107655e-08 | W80: 0.01026336996 | X80: 2.399184853 | Y80: 176.925 | Z80: -0.002240896359 | AA80: 528.9098747 | AB80: 0.05316461166 | AC80: 190.1421383 | AD80: 0.01020008289 | AE80: 3367.731398 | AF80: 1.333073551e-06 | AG80: 0.03079010987 | AH80: 0.7997282842 | AI80: 45.325 | AJ80: -0.006015037594 | AK80: 176.3032916 | AL80: 0.159493835 | AM80: 175 | AN80: 0.005065933719 | AO80: 661.2792447 | AP80: 0.001133342543 | AQ80: 190.1421383 | AR80: 0.01020008289
S81: 666.1463606 | T81: 0.00101644024 | U81: 44690.50203 | V81: 3.719802558e-08 | W81: 0.01039492719 | X81: 2.239071984 | Y81: 172.4625 | Z81: -0.002240896359 | AA81: 529.5215182 | AB81: 0.05301011227 | AC81: 190.682929 | AD81: 0.009147962159 | AE81: 3410.891462 | AF81: 1.279773836e-06 | AG81: 0.03118478157 | AH81: 0.746357328 | AI81: 43.6625 | AJ81: -0.006015037594 | AK81: 176.5071727 | AL81: 0.1590303368 | AM81: 175 | AN81: 0.005065933719 | AO81: 666.1463606 | AP81: 0.00101644024 | AQ81: 190.682929 | AR81: 0.009147962159
S82: 671.0134765 | T82: 0.0009081207188 | U82: 45256.20453 | V82: 3.621389733e-08 | W82: 0.01052648443 | X82: 2.089644466 | Y82: 168 | Z82: -0.002240896359 | AA82: 530.1331618 | AB82: 0.05241187794 | AC82: 191.2237196 | AD82: 0.008173086469 | AE82: 3454.051526 | AF82: 1.229123248e-06 | AG82: 0.03157945328 | AH82: 0.6965481552 | AI82: 42 | AJ82: -0.006015037594 | AK82: 176.7110539 | AL82: 0.1572356338 | AM82: 175 | AN82: 0.005065933719 | AO82: 671.0134765 | AP82: 0.0009081207188 | AQ82: 191.2237196 | AR82: 0.008173086469
S83: 675.8805923 | T83: 0.0008082512671 | U83: 45821.90704 | V83: 3.526677359e-08 | W83: 0.01065804166 | X83: 1.950189196 | Y83: 163.5375 | Z83: -0.002240896359 | AA83: 530.7448053 | AB83: 0.05134485072 | AC83: 191.7645103 | AD83: 0.007274261404 | AE83: 3497.211591 | AF83: 1.180964036e-06 | AG83: 0.03197412498 | AH83: 0.6500630654 | AI83: 40.3375 | AJ83: -0.006015037594 | AK83: 176.9149351 | AL83: 0.1540345522 | AM83: 175 | AN83: 0.005065933719 | AO83: 675.8805923 | AP83: 0.0008082512671 | AQ83: 191.7645103 | AR83: 0.007274261404
S84: 680.7477082 | T84: 0.0007166222361 | U84: 46387.60954 | V84: 3.435485196e-08 | W84: 0.01078959889 | X84: 1.820040664 | Y84: 159.075 | Z84: -0.002240896359 | AA84: 531.3564488 | AB84: 0.04979551164 | AC84: 192.3053009 | AD84: 0.006449600125 | AE84: 3540.371655 | AF84: 1.135149402e-06 | AG84: 0.03236879668 | AH84: 0.6066802214 | AI84: 38.675 | AJ84: -0.006015037594 | AK84: 177.1188163 | AL84: 0.1493865349 | AM84: 175 | AN84: 0.005065933719 | AO84: 680.7477082 | AP84: 0.0007166222361 | AQ84: 192.3053009 | AR84: 0.006449600125
S85: 685.6148241 | T85: 0.000632958507 | U85: 46953.31204 | V85: 3.34764376e-08 | W85: 0.01092115613 | X85: 1.698577772 | Y85: 154.6125 | Z85: -0.002240896359 | AA85: 531.9680923 | AB85: 0.04776451595 | AC85: 192.8460916 | AD85: 0.005696626563 | AE85: 3583.531719 | AF85: 1.091542632e-06 | AG85: 0.03276346838 | AH85: 0.5661925905 | AI85: 37.0125 | AJ85: -0.006015037594 | AK85: 177.3226974 | AL85: 0.1432935479 | AM85: 175 | AN85: 0.005065933719 | AO85: 685.6148241 | AP85: 0.000632958507 | AQ85: 192.8460916 | AR85: 0.005696626563
S86: 690.48194 | T86: 0.0005569308538 | U86: 47519.01455 | V86: 3.262993566e-08 | W86: 0.01105271336 | X86: 1.585220871 | Y86: 150.15 | Z86: -0.002240896359 | AA86: 532.5797358 | AB86: 0.04526899248 | AC86: 193.3868822 | AD86: 0.005012377684 | AE86: 3626.691783 | AF86: 1.050016303e-06 | AG86: 0.03315814008 | AH86: 0.5284069569 | AI86: 35.35 | AJ86: -0.006015037594 | AK86: 177.5265786 | AL86: 0.1358069774 | AM86: 175 | AN86: 0.005065933719 | AO86: 690.48194 | AP86: 0.0005569308538 | AQ86: 193.3868822 | AR86: 0.005012377684
S87: 695.3490559 | T87: 0.00048816697 | U87: 48084.71705 | V87: 3.18138443e-08 | W87: 0.01118427059 | X87: 1.479428997 | Y87: 145.6875 | Z87: -0.002240896359 | AA87: 533.1913793 | AB87: 0.04234421775 | AC87: 193.9276729 | AD87: 0.00439350273 | AE87: 3669.851847 | AF87: 1.010451564e-06 | AG87: 0.03355281178 | AH87: 0.493142999 | AI87: 33.6875 | AJ87: -0.006015037594 | AK87: 177.7304598 | AL87: 0.1270326532 | AM87: 175 | AN87: 0.005065933719 | AO87: 695.3490559 | AP87: 0.00048816697 | AQ87: 193.9276729 | AR87: 0.00439350273
S88: 700.2161718 | T88: 0.0004262619622 | U88: 48650.41955 | V88: 3.102674831e-08 | W88: 0.01131582783 | X88: 1.380697288 | Y88: 141.225 | Z88: -0.002240896359 | AA88: 533.8030229 | AB88: 0.03904435216 | AC88: 194.4684635 | AD88: 0.00383635766 | AE88: 3713.011912 | AF88: 9.727374754e-07 | AG88: 0.03394748349 | AH88: 0.4602324293 | AI88: 32.025 | AJ88: -0.006015037594 | AK88: 177.934341 | AL88: 0.1171330565 | AM88: 175 | AN88: 0.005065933719 | AO88: 700.2161718 | AP88: 0.0004262619622 | AQ88: 194.4684635 | AR88: 0.00383635766
S89: 705.0832876 | T89: 0.0003707881483 | U89: 49216.12206 | V89: 3.026731317e-08 | W89: 0.01144738506 | X89: 1.288554574 | Y89: 136.7625 | Z89: -0.002240896359 | AA89: 534.4146664 | AB89: 0.03544193498 | AC89: 195.0092542 | AD89: 0.003337093335 | AE89: 3756.171976 | AF89: 9.36770411e-07 | AG89: 0.03434215519 | AH89: 0.4295181913 | AI89: 30.3625 | AJ89: -0.006015037594 | AK89: 178.1382221 | AL89: 0.106325805 | AM89: 175 | AN89: 0.005065933719 | AO89: 705.0832876 | AP89: 0.0003707881483 | AQ89: 195.0092542 | AR89: 0.003337093335
S90: 709.9504035 | T90: 0.0003213040384 | U90: 49781.82456 | V90: 2.953427964e-08 | W90: 0.0115789423 | X90: 1.202561129 | Y90: 132.3 | Z90: -0.002240896359 | AA90: 535.0263099 | AB90: 0.03162589237 | AC90: 195.5500448 | AD90: 0.002891736346 | AE90: 3799.33204 | AF90: 9.024535054e-07 | AG90: 0.03473682689 | AH90: 0.4008537098 | AI90: 28.7 | AJ90: -0.006015037594 | AK90: 178.3421033 | AL90: 0.09487767711 | AM90: 175 | AN90: 0.005065933719 | AO90: 709.9504035 | AP90: 0.0003213040384 | AQ90: 195.5500448 | AR90: 0.002891736346
S91: 714.8175194 | T91: 0.0002773624086 | U91: 50347.52707 | V91: 2.882645874e-08 | W91: 0.01171049953 | X91: 1.122306575 | Y91: 127.8375 | Z91: -0.002240896359 | AA91: 535.6379534 | AB91: 0.02769792588 | AC91: 196.0908355 | AD91: 0.002496261677 | AE91: 3842.492104 | AF91: 8.696961514e-07 | AG91: 0.03513149859 | AH91: 0.3741021916 | AI91: 27.0375 | AJ91: -0.006015037594 | AK91: 178.5459845 | AL91: 0.08309377764 | AM91: 175 | AN91: 0.005065933719 | AO91: 714.8175194 | AP91: 0.0002773624086 | AQ91: 196.0908355 | AR91: 0.002496261677
S92: 719.6846353 | T92: 0.0002385174137 | U92: 50913.22957 | V92: 2.814272713e-08 | W92: 0.01184205676 | X92: 1.047407917 | Y92: 123.375 | Z92: -0.002240896359 | AA92: 536.2495969 | AB92: 0.02376732142 | AC92: 196.6316261 | AD92: 0.002146656723 | AE92: 3885.652168 | AF92: 8.38413538e-07 | AG92: 0.03552617029 | AH92: 0.3491359723 | AI92: 25.375 | AJ92: -0.006015037594 | AK92: 178.7498656 | AL92: 0.07130196425 | AM92: 175 | AN92: 0.005065933719 | AO92: 719.6846353 | AP92: 0.0002385174137 | AQ92: 196.6316261 | AR92: 0.002146656723
S93: 724.5517512 | T93: 0.0002043307169 | U93: 51478.93207 | V93: 2.74820228e-08 | W93: 0.011973614 | X93: 0.9775077231 | Y93: 118.9125 | Z93: -0.002240896359 | AA93: 536.8612404 | AB93: 0.01994443898 | AC93: 197.1724168 | AD93: 0.001838976452 | AE93: 3928.812233 | AF93: 8.085262277e-07 | AG93: 0.03592084199 | AH93: 0.3258359077 | AI93: 23.7125 | AJ93: -0.006015037594 | AK93: 178.9537468 | AL93: 0.05983331695 | AM93: 175 | AN93: 0.005065933719 | AO93: 724.5517512 | AP93: 0.0002043307169 | AQ93: 197.1724168 | AR93: 0.001838976452
S94: 729.4188671 | T94: 0.0001743766387 | U94: 52044.63458 | V94: 2.684334112e-08 | W94: 0.01210517123 | X94: 0.9122724139 | Y94: 114.45 | Z94: -0.002240896359 | AA94: 537.472884 | AB94: 0.0163333883 | AC94: 197.7132075 | AD94: 0.001569389748 | AE94: 3971.972297 | AF94: 7.799597676e-07 | AG94: 0.0363155137 | AH94: 0.3040908046 | AI94: 22.05 | AJ94: -0.006015037594 | AK94: 179.157628 | AL94: 0.04900016489 | AM94: 175 | AN94: 0.005065933719 | AO94: 729.4188671 | AP94: 0.0001743766387 | AQ94: 197.7132075 | AR94: 0.001569389748
S95: 734.2859829 | T95: 0.0001482463538 | U95: 52610.33708 | V95: 2.622573122e-08 | W95: 0.01223672847 | X95: 0.8513906719 | Y95: 109.9875 | Z95: -0.002240896359 | AA95: 538.0845275 | AB95: 0.01302462183 | AC95: 198.2539981 | AD95: 0.001334217185 | AE95: 4015.132361 | AF95: 7.526443323e-07 | AG95: 0.0367101854 | AH95: 0.2837968906 | AI95: 20.3875 | AJ95: -0.006015037594 | AK95: 179.3615092 | AL95: 0.0390738655 | AM95: 175 | AN95: 0.005065933719 | AO95: 734.2859829 | AP95: 0.0001482463538 | AQ95: 198.2539981 | AR95: 0.001334217185
S96: 739.1530988 | T96: 0.0001255511847 | U96: 53176.03958 | V96: 2.562829253e-08 | W96: 0.0123682857 | X96: 0.7945719558 | Y96: 105.525 | Z96: -0.002240896359 | AA96: 538.696171 | AB96: 0.01008833259 | AC96: 198.7947888 | AD96: 0.001129960662 | AE96: 4058.292425 | AF96: 7.26514396e-07 | AG96: 0.0371048571 | AH96: 0.2648573186 | AI96: 18.725 | AJ96: -0.006015037594 | AK96: 179.5653903 | AL96: 0.03026499778 | AM96: 175 | AN96: 0.005065933719 | AO96: 739.1530988 | AP96: 0.0001255511847 | AQ96: 198.7947888 | AR96: 0.001129960662
S97: 744.0202147 | T97: 0.0001059250519 | U97: 53741.74209 | V97: 2.505017168e-08 | W97: 0.01249984293 | X97: 0.7415451142 | Y97: 101.0625 | Z97: -0.002240896359 | AA97: 539.3078145 | AB97: 0.007569572587 | AC97: 199.3355794 | AD97: 0.0009533254667 | AE97: 4101.452489 | AF97: 7.015084302e-07 | AG97: 0.0374995288 | AH97: 0.2471817047 | AI97: 17.0625 | AJ97: -0.006015037594 | AK97: 179.7692715 | AL97: 0.02270871776 | AM97: 175 | AN97: 0.005065933719 | AO97: 744.0202147 | AP97: 0.0001059250519 | AQ97: 199.3355794 | AR97: 0.0009533254667
S98: 748.8873306 | T98: 8.902615796e-05 | U98: 54307.44459 | V98: 2.449055953e-08 | W98: 0.01263140017 | X98: 0.6920570911 | Y98: 96.6 | Z98: -0.002240896359 | AA98: 539.919458 | AB98: 0.005485868065 | AC98: 199.8763701 | AD98: 0.0008012354217 | AE98: 4144.612554 | AF98: 6.775686253e-07 | AG98: 0.0378942005 | AH98: 0.230685697 | AI98: 15.4 | AJ98: -0.006015037594 | AK98: 179.9731527 | AL98: 0.01645760419 | AM98: 175 | AN98: 0.005065933719 | AO98: 748.8873306 | AP98: 8.902615796e-05 | AQ98: 199.8763701 | AR98: 0.0008012354217
S99: 753.7544465 | T99: 7.453798581e-05 | U99: 54873.1471 | V99: 2.394868853e-08 | W99: 0.0127629574 | X99: 0.6458717185 | Y99: 92.1375 | Z99: -0.002240896359 | AA99: 540.5311015 | AB99: 0.003827787582 | AC99: 200.4171607 | AD99: 0.0006708418723 | AE99: 4187.772618 | AF99: 6.546406343e-07 | AG99: 0.0382888722 | AH99: 0.2152905728 | AI99: 13.7375 | AJ99: -0.006015037594 | AK99: 180.1770338 | AL99: 0.01148336275 | AM99: 175 | AN99: 0.005065933719 | AO99: 753.7544465 | AP99: 7.453798581e-05 | AQ99: 200.4171607 | AR99: 0.0006708418723
S100: 758.6215623 | T100: 6.216969695e-05 | U100: 55438.8496 | V100: 2.342383012e-08 | W100: 0.01289451464 | X100: 0.6027685898 | Y100: 87.675 | Z100: -0.002240896359 | AA100: 541.1427451 | AB100: 0.002562455938 | AC100: =($AC$101-$AC$2)/100+AC99 -> 200.9579514 | AD100: 0.0005595272725 | AE100: 4230.932682 | AF100: 6.326733358e-07 | AG100: 0.03868354391 | AH100: 0.2009228633 | AI100: 12.075 | AJ100: -0.006015037594 | AK100: 180.380915 | AL100: 0.007687367814 | AM100: 175 | AN100: 0.005065933719 | AO100: 758.6215623 | AP100: 6.216969695e-05 | AQ100: 200.9579514 | AR100: 0.0005595272725
S101: =_xlfn.NORM.INV(0.999,C7,C8) -> 768.3557941 | T101: 4.275669939e-05 | U101: =_xlfn.LOGNORM.INV(0.999,U104,U106) -> 56570.25461 | V101: 2.242241813e-08 | W101: =-LN(1-0.999)/C7 -> 0.0131576291 | X101: 0.525 | Y101: =C8 -> 78.75 | Z101: -0.002240896359 | AA101: =$AA$106*LN(-1*LN(1-0.999))+$AA$104 -> 542.3660321 | AB101: 0.0009983570973 | AC101: =_xlfn.NORM.INV(0.999,$C$3,$C$4) -> 202.0395327 | AD101: 0.0003848102945 | AE101: =_xlfn.LOGNORM.INV(0.999,AE104,AE106) -> 4317.25281 | AF101: 5.914311663e-07 | AG101: =-LN(1-0.999)/C3 -> 0.03947288731 | AH101: 0.175 | AI101: =C4 -> 8.75 | AJ101: -0.006015037594 | AK101: =$AK$106*LN(-1*LN(1-0.999))+$AK$104 -> 180.7886774 | AL101: 0.002995071292 | AM101: 175 | AN101: 0.005065933719 | AO101: 768.3557941 | AP101: 4.275669939e-05 | AQ101: 202.0395327 | AR101: 0.0003848102945
U103: m | AA103: m | AE103: m | AK103: m
U104: =LN(C7)-U106^2/2 -> 2.74019002 | AA104: =C7+AA106*0.57721566 -> 528.993826 | AE104: =LN(C3)-AE106^2/2 -> 4.295312976 | AK104: =C3+AK106*0.57721566 -> 176.3312753
U105: s | AA105: b | AE105: s | AK105: b
U106: =LN(C8)/NORMSINV(0.95) -> 2.654508709 | AA106: =(6*C8)^0.5/PI() -> 6.919122724 | AE106: =LN(C4)/NORMSINV(0.95) -> 1.318691016 | AK106: =(6*C4)^0.5/PI() -> 2.306374241

Sheet SUMMARY, Case A vs. Case B
A1: IF | F1: THEN1
A2: Case | B2: Assumptions2 | F2: Probability of Failure | G2: Safety Factor | H2: Safety Index, β | I2: Stress Ratio
A3: A | B3: Stress, Distribution | C3: ='INPUT, Case A'!$C$2 -> Normal
B4: Stress, Mean | D4: ='INPUT, Case A'!$C$3 -> 236.25
B5: Stress, Variability | E5: ='INPUT, Case A'!$C$4 -> 11.8125
B6: Strength, Distribution | C6: ='INPUT, Case A'!$C$6 -> Normal
B7: Strength, Mean | D7: ='INPUT, Case A'!$C$7 -> 525
B8: Strength, Variability | E8: ='INPUT, Case A'!$C$8 -> 78.75
B9: Measures → | F9: ='INPUT, Case A'!$C$10 -> 0.0001437783438 | G9: ='INPUT, Case A'!$E$3 -> 2.222222222 | H9: ='INPUT, Case A'!$E$7 -> 3.626099961 | I9: ='INPUT, Case A'!$F$3 -> 0.45
A10: B | B10: Stress, Distribution | C10: ='INPUT, Case B'!$C$2 -> Normal
B11: Stress, Mean | D11: ='INPUT, Case B'!$C$3 -> 175
B12: Stress, Variability | E12: ='INPUT, Case B'!$C$4 -> 8.75
B13: Strength, Distribution | C13: ='INPUT, Case B'!$C$6 -> Normal
B14: Strength, Mean | D14: ='INPUT, Case B'!$C$7 -> 525
B15: Strength, Variability | E15: ='INPUT, Case B'!$C$8 -> 78.75
B16: Measures → | F16: ='INPUT, Case B'!$C$10 -> 4.995480275e-06 | G16: ='INPUT, Case B'!$E$3 -> 3 | H16: ='INPUT, Case B'!$E$7 -> 4.417261043 | I16: ='INPUT, Case B'!$F$3 -> 0.3333333333
A17: Comparison Factor (Ratio) | D17: Case A/Case B | F17: =F9/F16 -> 28.78168582 | G17: =G9/G16 -> 0.7407407407 | H17: 0.8208932923 | I17: 1.35
D18: Case B/Case A | F18: =F16/F9 -> 0.03474431644 | G18: =G16/G9 -> 1.35 | H18: 1.218185128 | I18: 0.7407407407

Sheet ModelRiskSYS1 (hidden)
B21: 3 | C21: PEZJTFRFUlM+DQo8L0NOVDowDQpGSUxURVJTPg0KPFBBR0VTPg0KQ05UOjENCkNVUlBBR0U6MA0KTjoxDQpUWVBFOjEwDQpOTTpTdGF0aXN0aWNzDQpTRUxTOjENCkNVUlNFTDowDQpUUDowDQpSRzowDQpOTTonW1N0cmVzcyBTdHJlbmd0aCBUZW1wbGF0ZV9SMy54bHNtXVN0cmVzcy1TdHJlbmd0aCchRyQ0DQpDTFI6NDI3MjExMQ0KPFNFTF9PUFRJT05TPg0KQ05UOjANCjwvU0VMX09QVElPTlM+DQo8T1BUSU9OUz4NCkNOVDoxDQpOTTpNaW5QQ250DQpUUDowDQpWQUw6MjENCjwvT1BUSU9OUz4NCjwvUEFHRVM+DQo= | D21: 0KPFNFTF9PUFRJT05TPg0KQ05UOjANCjwvU0VMX09QVElPTlM+DQo8T1BUSU9OUz4NCkNOVDoxDQpOTTpNaW5QQ250DQpUUDowDQpWQUw6MjENCjwvT1BUSU9OUz4NCjwvUEFHRVM+DQo=
B4999: 2 | C4999: U3RyZXNzIFN0cmVuZ3RoIFRlbXBsYXRlX1IzLnhsc20=
B5000: 1
